Authority,Department,Spending Area,Expense Type,Posting Date,Reference,Amount,Supplier
OXFORDSHIRE CC,ENTERPRISEVC,,CAR LEASING - PRIVATE RENTALS,28/02/2023,10731463959,402.5,ENTERPRISE RENT-A-CAR
OXFORDSHIRE CC,"CHILDRENS, YOUNG PEOPLE AND FAMILIES","	LEAVING CARE SOUTH",OTHER TRANSPORT ARRANGEMENTS,28/02/2023,10731463667,17,OXFORDBUS.CO.UK
OXFORDSHIRE CC,ENTERPRISEVC,,CAR LEASING - PRIVATE RENTALS,28/02/2023,10731463967,290.9,ENTERPRISE RENT-A-CAR
OXFORDSHIRE CC,ENTERPRISEVC,,CAR LEASING - PRIVATE RENTALS,28/02/2023,10731463961,569.9,ENTERPRISE RENT-A-CAR
OXFORDSHIRE CC,ENTERPRISEVC,,CAR LEASING - PRIVATE RENTALS,28/02/2023,10731463963,"2,232.00",ENTERPRISE RENT-A-CAR
OXFORDSHIRE CC,ENTERPRISEVC,,CAR LEASING - PRIVATE RENTALS,28/02/2023,10731463965,402.5,ENTERPRISE RENT-A-CAR
OXFORDSHIRE CC,ENTERPRISEVC,,CAR LEASING - PRIVATE RENTALS,28/02/2023,10731463969,31.93,ENTERPRISE RENT-A-CAR
OXFORDSHIRE CC,ENTERPRISEVC,,CAR LEASING - PRIVATE RENTALS,28/02/2023,10731463971,"1,054.62",ENTERPRISE RENT-A-CAR
OXFORDSHIRE CC,ENTERPRISEVC,,CAR LEASING - PRIVATE RENTALS,28/02/2023,10731463973,402.5,ENTERPRISE RENT-A-CAR
OXFORDSHIRE CC,ENTERPRISEVC,,CAR LEASING - PRIVATE RENTALS,28/02/2023,10731463975,402.5,ENTERPRISE RENT-A-CAR
OXFORDSHIRE CC,ENTERPRISEVC,,CAR LEASING - PRIVATE RENTALS,28/02/2023,10731463977,402.5,ENTERPRISE RENT-A-CAR
OXFORDSHIRE CC,SOCIAL AND COMMUNITY SERVICES,BICESTER LIBRARY,MATERIALS,28/02/2023,10731463893,7.98,AMZNMKTPLACE AMAZON.CO
OXFORDSHIRE CC,SOCIAL AND COMMUNITY SERVICES,BICESTER LIBRARY,MATERIALS,28/02/2023,10731463895,2.29,AMZNMKTPLACE AMAZON.CO
OXFORDSHIRE CC,SOCIAL AND COMMUNITY SERVICES,CHILDREN IN CARE NON-STAFFING - NORTH,PAYMENTS TO TRANSPORT OPERATORS,28/02/2023,10731463597,80,CHILTERN RAILWAYS
OXFORDSHIRE CC,"CHILDRENS, YOUNG PEOPLE AND FAMILIES","	LEAVING CARE SOUTH",OTHER TRANSPORT ARRANGEMENTS,28/02/2023,10731463593,84.9,OXFORDBUS.CO.UK
OXFORDSHIRE CC,CORPORATE CORE,,STATIONERY,28/02/2023,10731463915,30.08,LYRECO UK LTD
OXFORDSHIRE CC,CORPORATE CORE,,STATIONERY,28/02/2023,10731463917,32.16,LYRECO UK LTD
OXFORDSHIRE CC,CORPORATE CORE,,STATIONERY,28/02/2023,10731463919,34.46,LYRECO UK LTD
OXFORDSHIRE CC,CORPORATE CORE,,STATIONERY,28/02/2023,10731463921,225.29,LYRECO UK LTD
OXFORDSHIRE CC,"CHILDRENS, YOUNG PEOPLE AND FAMILIES","	LOOKED AFTER NORTH",PAYMENTS TO TRANSPORT OPERATORS,28/02/2023,10731463617,19.45,TRAINLINE.COM
OXFORDSHIRE CC,"CHILDRENS, YOUNG PEOPLE AND FAMILIES","	LOOKED AFTER NORTH",CATERING PROVISIONS,28/02/2023,10731463619,100,ASDA STORES LTD
OXFORDSHIRE CC,"CHILDRENS, YOUNG PEOPLE AND FAMILIES",CHILDREN IN CARE NON-STAFFING - NORTH,HIRE OF ACCOMMODATION AND FACILITIES,28/02/2023,10731463621,"1,360.00",HOTEL AT BOOKING.COM
OXFORDSHIRE CC,ENTERPRISEVC,,CAR LEASING - PRIVATE RENTALS,28/02/2023,10731463929,281.52,ENTERPRISE RENT-A-CAR
OXFORDSHIRE CC,CORPORATE CORE,,STATIONERY,28/02/2023,10731463923,34.46,LYRECO UK LTD
OXFORDSHIRE CC,CORPORATE CORE,,STATIONERY,28/02/2023,10731463925,9.7,LYRECO UK LTD
OXFORDSHIRE CC,ENTERPRISEVC,,CAR LEASING - PRIVATE RENTALS,28/02/2023,10731463927,"1,441.44",ENTERPRISE RENT-A-CAR
OXFORDSHIRE CC,ENTERPRISEVC,,CAR LEASING - PRIVATE RENTALS,28/02/2023,10731463931,"1,990.30",ENTERPRISE RENT-A-CAR
OXFORDSHIRE CC,ENTERPRISEVC,,CAR LEASING - PRIVATE RENTALS,28/02/2023,10731463933,402.5,ENTERPRISE RENT-A-CAR
OXFORDSHIRE CC,ENTERPRISEVC,,CAR LEASING - PRIVATE RENTALS,28/02/2023,10731463935,402.5,ENTERPRISE RENT-A-CAR
OXFORDSHIRE CC,ENTERPRISEVC,,CAR LEASING - PRIVATE RENTALS,28/02/2023,10731463937,290.9,ENTERPRISE RENT-A-CAR
OXFORDSHIRE CC,ENTERPRISEVC,,CAR LEASING - PRIVATE RENTALS,28/02/2023,10731463939,290.9,ENTERPRISE RENT-A-CAR
OXFORDSHIRE CC,ENTERPRISEVC,,CAR LEASING - PRIVATE RENTALS,28/02/2023,10731463941,290.9,ENTERPRISE RENT-A-CAR
OXFORDSHIRE CC,"CHILDRENS, YOUNG PEOPLE AND FAMILIES",FSP NON-STAFFING - CENTRAL,FURNITURE,28/02/2023,10731463633,209.94,WWW.THERANGE.CO.UK
OXFORDSHIRE CC,"CHILDRENS, YOUNG PEOPLE AND FAMILIES",KINGFISHER,CATERING,28/02/2023,10731463643,9.38,MCDONALDS
OXFORDSHIRE CC,"CHILDRENS, YOUNG PEOPLE AND FAMILIES",THAME E&A HOME,CATERING PROVISIONS,28/02/2023,10731463645,32.54,ASDA SUPERSTORE
OXFORDSHIRE CC,"CHILDRENS, YOUNG PEOPLE AND FAMILIES",DIDCOT MOVE-ON HOME,CATERING PROVISIONS,28/02/2023,10731463649,18.91,TESCO STORES 2413
OXFORDSHIRE CC,ENTERPRISEVC,,CAR LEASING - PRIVATE RENTALS,28/02/2023,10731463949,402.5,ENTERPRISE RENT-A-CAR
OXFORDSHIRE CC,ENTERPRISEVC,,CAR LEASING - PRIVATE RENTALS,28/02/2023,10731463943,402.5,ENTERPRISE RENT-A-CAR
OXFORDSHIRE CC,ENTERPRISEVC,,CAR LEASING - PRIVATE RENTALS,28/02/2023,10731463945,770.56,ENTERPRISE RENT-A-CAR
OXFORDSHIRE CC,ENTERPRISEVC,,CAR LEASING - PRIVATE RENTALS,28/02/2023,10731463947,290.9,ENTERPRISE RENT-A-CAR
OXFORDSHIRE CC,ENTERPRISEVC,,CAR LEASING - PRIVATE RENTALS,28/02/2023,10731463951,290.9,ENTERPRISE RENT-A-CAR
OXFORDSHIRE CC,ENTERPRISEVC,,CAR LEASING - PRIVATE RENTALS,28/02/2023,10731463953,402.5,ENTERPRISE RENT-A-CAR
OXFORDSHIRE CC,ENTERPRISEVC,,CAR LEASING - PRIVATE RENTALS,28/02/2023,10731463955,802.45,ENTERPRISE RENT-A-CAR
OXFORDSHIRE CC,ENTERPRISEVC,,CAR LEASING - PRIVATE RENTALS,28/02/2023,10731463957,402.5,ENTERPRISE RENT-A-CAR
OXFORDSHIRE CC,"CHILDRENS, YOUNG PEOPLE AND FAMILIES",FSP NON-STAFFING - CENTRAL,PAYMENTS TO TRANSPORT OPERATORS,28/02/2023,10731463835,50,WWW.GWR.COM
OXFORDSHIRE CC,"CHILDRENS, YOUNG PEOPLE AND FAMILIES",SEND CASEWORK TEAM,POSTAGE AND DELIVERY,28/02/2023,10731464133,12.95,ROYAL MAIL GROUP LTD
OXFORDSHIRE CC,"CHILDRENS, YOUNG PEOPLE AND FAMILIES",SEND CASEWORK TEAM,POSTAGE AND DELIVERY,28/02/2023,10731464135,12.95,ROYAL MAIL GROUP LTD
OXFORDSHIRE CC,"CHILDRENS, YOUNG PEOPLE AND FAMILIES",UASC 16&17,RESIDENTIAL ACTIVITIES,28/02/2023,10731464137,25,RESULTS HEALTH CLUBS (
OXFORDSHIRE CC,"CHILDRENS, YOUNG PEOPLE AND FAMILIES",THAME E&A HOME,VEHICLE FUEL,28/02/2023,10731463549,13,EMPIRE PETROLEUM
OXFORDSHIRE CC,"CHILDRENS, YOUNG PEOPLE AND FAMILIES",40 THE MOORS,CATERING PROVISIONS,28/02/2023,10731463855,21.2,SAINSBURY'S S/MKT
OXFORDSHIRE CC,"CHILDRENS, YOUNG PEOPLE AND FAMILIES",THAME E&A HOME,CATERING PROVISIONS,28/02/2023,10731463551,202.39,TESCO STORES 2038
OXFORDSHIRE CC,SOCIAL AND COMMUNITY SERVICES,CSS - OXFORD,CATERING PROVISIONS,28/02/2023,10731463553,9.45,ALDI STORES 775-142
OXFORDSHIRE CC,SOCIAL AND COMMUNITY SERVICES,CSS - OXFORD,MATERIALS,28/02/2023,10731463555,26.44,ALDI STORES 775-142
OXFORDSHIRE CC,"CHILDRENS, YOUNG PEOPLE AND FAMILIES","	HOME SUPPORT",DOMESTIC AND CLEANING EQUIPMENT,28/02/2023,10731463561,39.42,ROBERT DYAS ECOM
OXFORDSHIRE CC,CORPORATE CORE,INCOME TEAM,PAYMENT TO GOVERNMENT DEPARTMENTS,28/02/2023,10731463567,11,OXFORDSHIRE CC WEB1
OXFORDSHIRE CC,CORPORATE CORE,INCOME TEAM,PAYMENT TO GOVERNMENT DEPARTMENTS,28/02/2023,10731463569,11,OXFORDSHIRE CC WEB1
OXFORDSHIRE CC,"CHILDRENS, YOUNG PEOPLE AND FAMILIES",NRPF & HOMELESSNESS,MATERIALS,28/02/2023,10731463865,108,SHELTER TRADING LTD
OXFORDSHIRE CC,"CHILDRENS, YOUNG PEOPLE AND FAMILIES",40 THE MOORS,STATIONERY,28/02/2023,10731463581,38.56,AMZNMKTPLACE AMAZON.CO
OXFORDSHIRE CC,SOCIAL AND COMMUNITY SERVICES,BICESTER LIBRARY,MATERIALS,28/02/2023,10731463891,17.99,AMZNMKTPLACE AMAZON.CO
OXFORDSHIRE CC,SOCIAL AND COMMUNITY SERVICES,CSS BICESTER,CATERING PROVISIONS,28/02/2023,10731463487,79.51,TESCO STORES 2162
OXFORDSHIRE CC,CORPORATE CORE,HISTORY SERVICE,EQUIPMENT,28/02/2023,10731463803,460.61,WWW.PRESERVATIONEQUIPM
OXFORDSHIRE CC,ENVIRONMENT AND ECONOMY,"	MUSEUM RETAIL",STATIONERY,28/02/2023,10731463805,3.3,AMZNMKTPLACE
OXFORDSHIRE CC,"CHILDRENS, YOUNG PEOPLE AND FAMILIES","	OCCG GRANT",MATERIALS,28/02/2023,10731464097,9,TIMPSON LTD
OXFORDSHIRE CC,CORPORATE CORE,ICT OPERATIONS & MAI,IT SERVICES,28/02/2023,10731464101,432,STONEWALL EVENTS
OXFORDSHIRE CC,SOCIAL AND COMMUNITY SERVICES,CSS - BANBURY,CATERING PROVISIONS,28/02/2023,10731464103,65.98,SAINSBURYS.CO.UK
OXFORDSHIRE CC,"CHILDRENS, YOUNG PEOPLE AND FAMILIES",THAME E&A HOME,MATERIALS,28/02/2023,10731464105,74.99,SCHUH
OXFORDSHIRE CC,"CHILDRENS, YOUNG PEOPLE AND FAMILIES","	LEAVING CARE CITY 2",OTHER EXPENSES,28/02/2023,10731463499,20,TESCO GIFT CARD
OXFORDSHIRE CC,"CHILDRENS, YOUNG PEOPLE AND FAMILIES",THAME E&A HOME,CATERING,28/02/2023,10731463497,12.96,MCDONALDS 296
OXFORDSHIRE CC,"CHILDRENS, YOUNG PEOPLE AND FAMILIES",FAMILY SOLUTIONS PLUS NON-STAFF � SOUTH,PAYMENTS TO TRANSPORT OPERATORS,28/02/2023,10731463505,121.7,TRIP_UK
OXFORDSHIRE CC,"CHILDRENS, YOUNG PEOPLE AND FAMILIES",FAMILY SOLUTIONS PLUS NON-STAFF � SOUTH,OTHER TRANSPORT ARRANGEMENTS,28/02/2023,10731463507,37,STAGECOACH SERVICE
OXFORDSHIRE CC,SOCIAL AND COMMUNITY SERVICES,HOLTON SITE,CATERING PROVISIONS,28/02/2023,10731463511,-5.95,MILK AND MORE
OXFORDSHIRE CC,ENVIRONMENT AND ECONOMY,"	OXFORDSHIRE MUSEUM",FURNITURE,28/02/2023,10731463807,203.99,BIGDUG LIMITED
OXFORDSHIRE CC,ENVIRONMENT AND ECONOMY,MUSEUMS COLLECTIONS,OTHER SERVICES,28/02/2023,10731463809,348.35,WWW.FIRST4MAGNETS.COM
OXFORDSHIRE CC,SOCIAL AND COMMUNITY SERVICES,CSS WITNEY,CATERING PROVISIONS,28/02/2023,10731463823,67.21,SAINSBURYS.CO.UK
OXFORDSHIRE CC,SOCIAL AND COMMUNITY SERVICES,CSS WANTAGE,HARDWARE AND CROCKERY,28/02/2023,10731463825,17.97,MILLETS FARM SHOP
OXFORDSHIRE CC,"CHILDRENS, YOUNG PEOPLE AND FAMILIES",NTH EARLY HELP-BNRBY,CATERING PROVISIONS,28/02/2023,10731464119,6.8,WAITROSE 874
OXFORDSHIRE CC,SOCIAL AND COMMUNITY SERVICES,SCHOOLS FM CATERING AREA 2,MATERIALS,28/02/2023,10731463519,35.96,AMZNMKTPLACE
OXFORDSHIRE CC,SOCIAL AND COMMUNITY SERVICES,SCHOOLS FM CATERING AREA 2,MATERIALS,28/02/2023,10731463517,45.13,AMZNMKTPLACE
OXFORDSHIRE CC,SOCIAL AND COMMUNITY SERVICES,SCHOOLS FM CATERING AREA 2,MATERIALS,28/02/2023,10731463521,89.96,AMZNMKTPLACE
OXFORDSHIRE CC,SOCIAL AND COMMUNITY SERVICES,SCHOOLS FM CATERING AREA 2,MATERIALS,28/02/2023,10731463523,79.52,AMZNMKTPLACE
OXFORDSHIRE CC,SOCIAL AND COMMUNITY SERVICES,CICC,CATERING PROVISIONS,28/02/2023,10731463525,4,WAITROSE 479
OXFORDSHIRE CC,"CHILDRENS, YOUNG PEOPLE AND FAMILIES",FSP NON-STAFFING - CENTRAL,MATERIALS,28/02/2023,10731463833,36.99,AMZNMKTPLACE
OXFORDSHIRE CC,"CHILDRENS, YOUNG PEOPLE AND FAMILIES","	SM QUALITY ASSURANCE",DAY ACTIVITIES,28/02/2023,10731464039,6.6,SILVERSTONE - DRIVE PI
OXFORDSHIRE CC,"CHILDRENS, YOUNG PEOPLE AND FAMILIES","	SM QUALITY ASSURANCE",DAY ACTIVITIES,28/02/2023,10731464037,10.65,HILTON
OXFORDSHIRE CC,CORPORATE CORE,OPERATIONS,MATERIALS,28/02/2023,10731463763,6.99,AMZNMKTPLACE
OXFORDSHIRE CC,CORPORATE CORE,OPERATIONS,MATERIALS,28/02/2023,10731463765,6.99,AMZNMKTPLACE
OXFORDSHIRE CC,SOCIAL AND COMMUNITY SERVICES,"	MTFC",ENTERTAINMENT EXPENSES,28/02/2023,10731464059,7.5,WWW.BETTER.ORG.UK
OXFORDSHIRE CC,"CHILDRENS, YOUNG PEOPLE AND FAMILIES",FAMILY SOLUTIONS PLUS NON-STAFF � SOUTH,MATERIALS,28/02/2023,10731464053,29.76,AMZNMKTPLACE
OXFORDSHIRE CC,"CHILDRENS, YOUNG PEOPLE AND FAMILIES",FAMILY SOLUTIONS PLUS NON-STAFF � SOUTH,MATERIALS,28/02/2023,10731464055,29.95,AMZNMKTPLACE
OXFORDSHIRE CC,"CHILDRENS, YOUNG PEOPLE AND FAMILIES",FAMILY SOLUTIONS PLUS NON-STAFF � SOUTH,MATERIALS,28/02/2023,10731464057,29.95,AMZNMKTPLACE
OXFORDSHIRE CC,SOCIAL AND COMMUNITY SERVICES,"	MTFC",ENTERTAINMENT EXPENSES,28/02/2023,10731464061,24.65,WWW.ODDSFARM.CO.UK
OXFORDSHIRE CC,"CHILDRENS, YOUNG PEOPLE AND FAMILIES",FAMILY SOLUTIONS PLUS NON-STAFF - NORTH,PAYMENTS TO TRANSPORT OPERATORS,28/02/2023,10731464063,12.12,TRAINLINE.COM
OXFORDSHIRE CC,CORPORATE CORE,SCHOOLS FM CATERING AREA 1,CATERING PROVISIONS,28/02/2023,10731464065,10.65,TESCO STORES
OXFORDSHIRE CC,"CHILDRENS, YOUNG PEOPLE AND FAMILIES",CSS WALLINGFORD,MATERIALS,28/02/2023,10731463463,47.51,AMZNMKTPLACE
OXFORDSHIRE CC,"CHILDRENS, YOUNG PEOPLE AND FAMILIES",CSS WALLINGFORD,MATERIALS,28/02/2023,10731463465,15.98,AMZNMKTPLACE
OXFORDSHIRE CC,"CHILDRENS, YOUNG PEOPLE AND FAMILIES",CSS WALLINGFORD,CATERING PROVISIONS,28/02/2023,10731463467,30.4,WAITROSE 675
OXFORDSHIRE CC,"CHILDRENS, YOUNG PEOPLE AND FAMILIES",ATV ADOPTION WOODLEY,HIRE OF ACCOMMODATION AND FACILITIES,28/02/2023,10731463471,105,SELECTSA
OXFORDSHIRE CC,SOCIAL AND COMMUNITY SERVICES,CSS - OXFORD,MATERIALS,28/02/2023,10731463771,23.94,AMZNMKTPLACE AMAZON.CO
OXFORDSHIRE CC,SOCIAL AND COMMUNITY SERVICES,"	MUSEUMS COLLECTIONS",STATIONERY,28/02/2023,10731463779,5.99,AMZNMKTPLACE AMAZON.CO
OXFORDSHIRE CC,SOCIAL AND COMMUNITY SERVICES,FINDS LIAISON OFFCER,"SUPPLIES, STATIONERY AND MATERIALS",28/02/2023,10731463781,38,AMZNMKTPLACE
OXFORDSHIRE CC,"CHILDRENS, YOUNG PEOPLE AND FAMILIES","	LOOKED AFTER CITY 2",VEHICLE FUEL,28/02/2023,10731463783,31.43,SHELL COWLEY
OXFORDSHIRE CC,"CHILDRENS, YOUNG PEOPLE AND FAMILIES","	LOOKED AFTER CITY 2",OTHER TRANSPORT ARRANGEMENTS,28/02/2023,10731463785,2,OXFORD BUS COMPANY
OXFORDSHIRE CC,"CHILDRENS, YOUNG PEOPLE AND FAMILIES",UASC 16&17,CATERING PROVISIONS,28/02/2023,10731464083,3.73,MEDINA FOODS MARKET
OXFORDSHIRE CC,"CHILDRENS, YOUNG PEOPLE AND FAMILIES",UASC 16&17,CATERING PROVISIONS,28/02/2023,10731464085,19.19,ICELAND
OXFORDSHIRE CC,"CHILDRENS, YOUNG PEOPLE AND FAMILIES",KINGFISHER,MANAGEMENT CONSULTANT FEES,28/02/2023,10731463477,"1,300.00",THE SAFETY BOX CIC
OXFORDSHIRE CC,ENVIRONMENT AND ECONOMY,HARD FM,GENERAL MAINTENANCE,28/02/2023,10731463481,322.39,SP EFANS
OXFORDSHIRE CC,SOCIAL AND COMMUNITY SERVICES,CSS WALLINGFORD,DISABILITY AIDS AND EQUIPMENT,28/02/2023,10731463527,-63.9,
OXFORDSHIRE CC,"CHILDRENS, YOUNG PEOPLE AND FAMILIES",VIRTUAL SCHOOL POST 16 PPP,"SUPPLIES, STATIONERY AND MATERIALS",28/02/2023,10731463677,14.99,AMAZON.CO.UK 1L42W7AO4
OXFORDSHIRE CC,"CHILDRENS, YOUNG PEOPLE AND FAMILIES","	LAC PUPIL PREMIUM","SUPPLIES, STATIONERY AND MATERIALS",28/02/2023,10731463679,430,AMAZON.CO.UK 1L8T54AH4
OXFORDSHIRE CC,"CHILDRENS, YOUNG PEOPLE AND FAMILIES",VIRTUAL SCHOOL POST 16 PPP,PURCHASE OF IT EQUIPMENT,28/02/2023,10731463681,279,VOUCHER EXPRESS
OXFORDSHIRE CC,CORPORATE CORE,INCOME TEAM,PAYMENT TO GOVERNMENT DEPARTMENTS,28/02/2023,10731463683,11,OXFORDSHIRE CC WEB1
OXFORDSHIRE CC,"CHILDRENS, YOUNG PEOPLE AND FAMILIES",PAUSE PROGRAMME,CATERING PROVISIONS,28/02/2023,10731463689,6.8,TESCO STORES 6167
OXFORDSHIRE CC,ENTERPRISEVC,,CAR LEASING - PRIVATE RENTALS,28/02/2023,10731463985,402.5,ENTERPRISE RENT-A-CAR
OXFORDSHIRE CC,ENTERPRISEVC,,CAR LEASING - PRIVATE RENTALS,28/02/2023,10731463979,402.5,ENTERPRISE RENT-A-CAR
OXFORDSHIRE CC,ENTERPRISEVC,,CAR LEASING - PRIVATE RENTALS,28/02/2023,10731463981,402.5,ENTERPRISE RENT-A-CAR
OXFORDSHIRE CC,ENTERPRISEVC,,CAR LEASING - PRIVATE RENTALS,28/02/2023,10731463983,402.5,ENTERPRISE RENT-A-CAR
OXFORDSHIRE CC,ENTERPRISEVC,,CAR LEASING - PRIVATE RENTALS,28/02/2023,10731463987,376.53,ENTERPRISE RENT-A-CAR
OXFORDSHIRE CC,ENTERPRISEVC,,CAR LEASING - PRIVATE RENTALS,28/02/2023,10731463989,290.9,ENTERPRISE RENT-A-CAR
OXFORDSHIRE CC,ENTERPRISEVC,,CAR LEASING - PRIVATE RENTALS,28/02/2023,10731463991,329.96,ENTERPRISE RENT-A-CAR
OXFORDSHIRE CC,ENTERPRISEVC,,CAR LEASING - PRIVATE RENTALS,28/02/2023,10731463993,402.5,ENTERPRISE RENT-A-CAR
OXFORDSHIRE CC,ENTERPRISEVC,,CAR LEASING - PRIVATE RENTALS,28/02/2023,10731463995,432.24,ENTERPRISE RENT-A-CAR
OXFORDSHIRE CC,ENVIRONMENT AND ECONOMY,"	KNIGHTS COURT",OTHER PREMISES RELATED COSTS,28/02/2023,10731463697,4.12,AMAZON.CO.UK 1L94220E4
OXFORDSHIRE CC,"CHILDRENS, YOUNG PEOPLE AND FAMILIES",THAME E&A HOME,CATERING PROVISIONS,28/02/2023,10731463691,13.1,SAINSBURYS S/MKTS
OXFORDSHIRE CC,ENVIRONMENT AND ECONOMY,LIBRARY PROJECTS,MATERIALS,28/02/2023,10731463707,49.98,AMZNMKTPLACE
OXFORDSHIRE CC,ENVIRONMENT AND ECONOMY,"	MOUNT HOUSE",MATERIALS,28/02/2023,10731464003,159,TVLICENSING.CO.UK
OXFORDSHIRE CC,ENTERPRISEVC,,CAR LEASING - PRIVATE RENTALS,28/02/2023,10731463997,78.77,ENTERPRISE RENT-A-CAR
OXFORDSHIRE CC,ENTERPRISEVC,,CAR LEASING - PRIVATE RENTALS,28/02/2023,10731463999,290.9,ENTERPRISE RENT-A-CAR
OXFORDSHIRE CC,ENTERPRISEVC,,CAR LEASING - PRIVATE RENTALS,28/02/2023,10731464001,290.9,ENTERPRISE RENT-A-CAR
OXFORDSHIRE CC,"CHILDRENS, YOUNG PEOPLE AND FAMILIES",HOUSE PROJECT,OTHER TRANSPORT ARRANGEMENTS,28/02/2023,10731464005,29.59,AMZNMKTPLACE
OXFORDSHIRE CC,CORPORATE CORE,,STATIONERY,27/02/2023,10725285237,60.79,LYRECO UK LTD
OXFORDSHIRE CC,CORPORATE CORE,,STATIONERY,27/02/2023,10725285243,5.3,LYRECO UK LTD
OXFORDSHIRE CC,"CHILDRENS, YOUNG PEOPLE AND FAMILIES",DIDCOT MOVE-ON HOME,CATERING PROVISIONS,27/02/2023,10725285351,42.04,TESCO STORES 2413
OXFORDSHIRE CC,"CHILDRENS, YOUNG PEOPLE AND FAMILIES",DIDCOT MOVE-ON HOME,CATERING PROVISIONS,27/02/2023,10725285335,12.54,ALDI 99 775
OXFORDSHIRE CC,"CHILDRENS, YOUNG PEOPLE AND FAMILIES",DIDCOT MOVE-ON HOME,FIXTURES & FITTINGS,27/02/2023,10725285341,11.98,B&M 514 - DICOT
OXFORDSHIRE CC,"CHILDRENS, YOUNG PEOPLE AND FAMILIES","	LOOKED AFTER NORTH",CATERING PROVISIONS,27/02/2023,10725285345,99.99,B&M 514 - DICOT
OXFORDSHIRE CC,"CHILDRENS, YOUNG PEOPLE AND FAMILIES",DIDCOT MOVE-ON HOME,CATERING PROVISIONS,27/02/2023,10725285359,22,TESCO STORES 2413
OXFORDSHIRE CC,"CHILDRENS, YOUNG PEOPLE AND FAMILIES",DIDCOT MOVE-ON HOME,CATERING PROVISIONS,27/02/2023,10725285361,17.29,TESCO STORES 2413
OXFORDSHIRE CC,"CHILDRENS, YOUNG PEOPLE AND FAMILIES",DIDCOT MOVE-ON HOME,ENTERTAINMENT EXPENSES,27/02/2023,10725285363,10.94,CINEWORLD
OXFORDSHIRE CC,"CHILDRENS, YOUNG PEOPLE AND FAMILIES",FSP NON-STAFFING - CENTRAL,PAYMENT TO GOVERNMENT DEPARTMENTS,27/02/2023,10725285371,11,OXFORDSHIRE CC WEB1
OXFORDSHIRE CC,CORPORATE CORE,ICT OPERATIONS & MAI,PURCHASE OF IT EQUIPMENT,27/02/2023,10725285477,"1,200.96",FS.COM GMBH
OXFORDSHIRE CC,"CHILDRENS, YOUNG PEOPLE AND FAMILIES",UASC 16&17,OTHER TRANSPORT ARRANGEMENTS,27/02/2023,10725285499,20,CROSS STREET CARS
OXFORDSHIRE CC,"CHILDRENS, YOUNG PEOPLE AND FAMILIES",UASC 16&17,OTHER TRANSPORT ARRANGEMENTS,27/02/2023,10725285503,20,CROSS STREET CARS
OXFORDSHIRE CC,"CHILDRENS, YOUNG PEOPLE AND FAMILIES",THAME E&A HOME,CATERING PROVISIONS,27/02/2023,10725285511,1.53,SAINSBURYS S/MKTS
OXFORDSHIRE CC,"CHILDRENS, YOUNG PEOPLE AND FAMILIES",EYNSHAM,VEHICLE FUEL,27/02/2023,10725285593,29.5,SHELL MARCHAM ROAD
OXFORDSHIRE CC,"CHILDRENS, YOUNG PEOPLE AND FAMILIES",FSP STAFFING � CENTRAL,MATERIALS,27/02/2023,10725285601,5,THEWORKS.CO.UK
OXFORDSHIRE CC,"CHILDRENS, YOUNG PEOPLE AND FAMILIES",NTH EARLY HELP-BCSTR,CATERING EQUIPMENT,27/02/2023,10725285621,58.95,WWW.ARGOS.CO.UK
OXFORDSHIRE CC,"CHILDRENS, YOUNG PEOPLE AND FAMILIES","BICESTER CC, LAUNTON RD",CATERING PROVISIONS,27/02/2023,10725285625,1.65,SAINSBURYS S/MKTS
OXFORDSHIRE CC,"CHILDRENS, YOUNG PEOPLE AND FAMILIES",SEND TRANSFORMATION,"SUPPLIES, STATIONERY AND MATERIALS",27/02/2023,10725285631,13.93,AMZNMKTPLACE
OXFORDSHIRE CC,"CHILDRENS, YOUNG PEOPLE AND FAMILIES",SEND TRANSFORMATION,"SUPPLIES, STATIONERY AND MATERIALS",27/02/2023,10725285635,12.49,AMZNMKTPLACE
OXFORDSHIRE CC,"CHILDRENS, YOUNG PEOPLE AND FAMILIES",SEND TRANSFORMATION,"SUPPLIES, STATIONERY AND MATERIALS",27/02/2023,10725285641,25.78,AMZNMKTPLACE
OXFORDSHIRE CC,"CHILDRENS, YOUNG PEOPLE AND FAMILIES",40 THE MOORS,SUBSCRIPTIONS,27/02/2023,10725285415,77.1,HOLLYWOOD BOWL
OXFORDSHIRE CC,"CHILDRENS, YOUNG PEOPLE AND FAMILIES",40 THE MOORS,CATERING,27/02/2023,10725285419,11.2,SQ  (UNIT 3) SOUTH WES
OXFORDSHIRE CC,"CHILDRENS, YOUNG PEOPLE AND FAMILIES",40 THE MOORS,CATERING PROVISIONS,27/02/2023,10725285423,26.91,SAINSBURY'S S/MKT
OXFORDSHIRE CC,"CHILDRENS, YOUNG PEOPLE AND FAMILIES",40 THE MOORS,CATERING PROVISIONS,27/02/2023,10725285429,21.12,SAINSBURY'S S/MKT
OXFORDSHIRE CC,"CHILDRENS, YOUNG PEOPLE AND FAMILIES",40 THE MOORS,MATERIALS,27/02/2023,10725285435,19.98,AMZNMKTPLACE AMAZON.CO
OXFORDSHIRE CC,"CHILDRENS, YOUNG PEOPLE AND FAMILIES",FAMILY SOLUTIONS PLUS NON-STAFF � SOUTH,HOSPITALITY EXPENSES,27/02/2023,10725285545,120,GREAT WESTERN HOTEL
OXFORDSHIRE CC,"CHILDRENS, YOUNG PEOPLE AND FAMILIES",THAME E&A HOME,MATERIALS,27/02/2023,10725285517,11,SPORTSDIRECT 218
OXFORDSHIRE CC,"CHILDRENS, YOUNG PEOPLE AND FAMILIES",THAME E&A HOME,CATERING PROVISIONS,27/02/2023,10725285521,21.6,WELCOME BREAK-OXFORD S
OXFORDSHIRE CC,"CHILDRENS, YOUNG PEOPLE AND FAMILIES","	LEAVING CARE NORTH",CATERING,27/02/2023,10725285539,9.88,MCDONALDS
OXFORDSHIRE CC,"CHILDRENS, YOUNG PEOPLE AND FAMILIES",FAMILY SOLUTIONS PLUS NON-STAFF � SOUTH,PAYMENTS TO TRANSPORT OPERATORS,27/02/2023,10725285547,40.7,TRAINLINE
OXFORDSHIRE CC,"CHILDRENS, YOUNG PEOPLE AND FAMILIES","	LEAVING CARE CITY 2",FURNITURE,27/02/2023,10725285559,84.99,AMZNMKTPLACE
OXFORDSHIRE CC,"CHILDRENS, YOUNG PEOPLE AND FAMILIES",THAME E&A HOME,CATERING PROVISIONS,27/02/2023,10725285569,35.46,AMZNMKTPLACE AMAZON.CO
OXFORDSHIRE CC,"CHILDRENS, YOUNG PEOPLE AND FAMILIES","	LOOKED AFTER SOUTH",MATERIALS,27/02/2023,10725285577,23,ARGOS LTD
OXFORDSHIRE CC,"CHILDRENS, YOUNG PEOPLE AND FAMILIES","	LOOKED AFTER SOUTH",CATERING PROVISIONS,27/02/2023,10725285581,59.75,B&M 515 - ABINGDON
OXFORDSHIRE CC,"CHILDRENS, YOUNG PEOPLE AND FAMILIES","	LOOKED AFTER SOUTH",CATERING,27/02/2023,10725285587,14.8,COSTA COFFEE 43011689
OXFORDSHIRE CC,"CHILDRENS, YOUNG PEOPLE AND FAMILIES",SEND TRANSFORMATION,"SUPPLIES, STATIONERY AND MATERIALS",27/02/2023,10725285657,6.99,AMZNMKTPLACE
OXFORDSHIRE CC,"CHILDRENS, YOUNG PEOPLE AND FAMILIES",SEND TRANSFORMATION,"SUPPLIES, STATIONERY AND MATERIALS",27/02/2023,10725285645,6.49,AMZNMKTPLACE
OXFORDSHIRE CC,"CHILDRENS, YOUNG PEOPLE AND FAMILIES",SEND TRANSFORMATION,"SUPPLIES, STATIONERY AND MATERIALS",27/02/2023,10725285647,1.7,AMZNMKTPLACE
OXFORDSHIRE CC,"CHILDRENS, YOUNG PEOPLE AND FAMILIES",SEND TRANSFORMATION,"SUPPLIES, STATIONERY AND MATERIALS",27/02/2023,10725285653,6.89,AMZNMKTPLACE
OXFORDSHIRE CC,"CHILDRENS, YOUNG PEOPLE AND FAMILIES","	OCCG GRANT",MATERIALS,27/02/2023,10725285663,9,TIMPSON LTD
OXFORDSHIRE CC,"CHILDRENS, YOUNG PEOPLE AND FAMILIES",CSS - ABINGDON,CATERING PROVISIONS,27/02/2023,10725285673,55.2,TESCO STORES 2008
OXFORDSHIRE CC,"CHILDRENS, YOUNG PEOPLE AND FAMILIES",THAME E&A HOME,CATERING PROVISIONS,27/02/2023,10725284377,12.8,ASDA SUPERSTORE
OXFORDSHIRE CC,"CHILDRENS, YOUNG PEOPLE AND FAMILIES","	RESIDENTIAL STRATEGY",CATERING PROVISIONS,27/02/2023,10725284501,26.16,TESCO STORES 2994
OXFORDSHIRE CC,"CHILDRENS, YOUNG PEOPLE AND FAMILIES","	LEAVING CARE SOUTH",MATERIALS,27/02/2023,10725284483,14.99,TIMPSON LTD
OXFORDSHIRE CC,ENVIRONMENT AND ECONOMY,BANBURY LIBRARY,"NEWSPAPERS, PERIODICALS AND PUBLICATIONS",27/02/2023,10725284523,47.99,GUARDIAN NEWS & MEDIA
OXFORDSHIRE CC,"CHILDRENS, YOUNG PEOPLE AND FAMILIES",THAME E&A HOME,MATERIALS,27/02/2023,10725284537,375.95,HART & SONS  DORSET  L
OXFORDSHIRE CC,CORPORATE CORE,OPERATIONS,MATERIALS,27/02/2023,10725284801,2.99,AMZNMKTPLACE
OXFORDSHIRE CC,SOCIAL AND COMMUNITY SERVICES,"	VISUAL IMP. TEAM",DISABILITY AIDS AND EQUIPMENT,27/02/2023,10725284793,232.2,RNIB ENTERPRISE
OXFORDSHIRE CC,CORPORATE CORE,OPERATIONS,MATERIALS,27/02/2023,10725284807,4.42,AMZNMKTPLACE
OXFORDSHIRE CC,"CHILDRENS, YOUNG PEOPLE AND FAMILIES",PD EQUIPMENT,DISABILITY AIDS AND EQUIPMENT,27/02/2023,10725284939,11.9,SP HAMILTON PEN CO
OXFORDSHIRE CC,"CHILDRENS, YOUNG PEOPLE AND FAMILIES","	LEAVING CARE NORTH",CLOTHING AND UNIFORMS,27/02/2023,10725284923,26.39,BOOHOO.COM UK LIMITED
OXFORDSHIRE CC,"CHILDRENS, YOUNG PEOPLE AND FAMILIES",WITNEY,OTHER TRANSPORT ARRANGEMENTS,27/02/2023,10725284967,4,OXFORD BUS COMPANY
OXFORDSHIRE CC,"CHILDRENS, YOUNG PEOPLE AND FAMILIES",40 THE MOORS,MATERIALS,27/02/2023,10725284985,429,CURRYS ONLINE
OXFORDSHIRE CC,CORPORATE CORE,"MARKETING, COMMUNICATIONS & ENGAGEMENT","PUBLICITY, PROMOTIONS AND ADVERTISEMENT",27/02/2023,10725285035,500,FACEBK QWJUDNF9Z2
OXFORDSHIRE CC,"CHILDRENS, YOUNG PEOPLE AND FAMILIES",40 THE MOORS,CATERING,27/02/2023,10725285039,6.09,TESCO STORES 2788
OXFORDSHIRE CC,CORPORATE CORE,OTHER,INSUR AD HOLD ACC-E,27/02/2023,10725285175,413.94,PREMIER INN
OXFORDSHIRE CC,"CHILDRENS, YOUNG PEOPLE AND FAMILIES","	LOOKED AFTER CITY 2",OTHER TRANSPORT ARRANGEMENTS,27/02/2023,10725284847,2,OXFORD BUS COMPANY
OXFORDSHIRE CC,"CHILDRENS, YOUNG PEOPLE AND FAMILIES","	RIVERSIDE CENTRE",CATERING PROVISIONS,27/02/2023,10725284883,9,CO-OPERATIVE FOOD
OXFORDSHIRE CC,ENVIRONMENT AND ECONOMY,MUSEUM CAFE,MATERIALS,27/02/2023,10725284895,81.27,CROCUS.CO.UK LTD
OXFORDSHIRE CC,CORPORATE CORE,"MARKETING, COMMUNICATIONS & ENGAGEMENT","PUBLICITY, PROMOTIONS AND ADVERTISEMENT",27/02/2023,10725285019,500,GOOGLE ADS4896546035
OXFORDSHIRE CC,CORPORATE CORE,"MARKETING, COMMUNICATIONS & ENGAGEMENT",IT SOFTWARE,27/02/2023,10725285021,167.44,ADOBE STOCK
OXFORDSHIRE CC,CORPORATE CORE,"MARKETING, COMMUNICATIONS & ENGAGEMENT","PUBLICITY, PROMOTIONS AND ADVERTISEMENT",27/02/2023,10725285025,500,GOOGLE ADS4896546035
OXFORDSHIRE CC,CORPORATE CORE,"MARKETING, COMMUNICATIONS & ENGAGEMENT","PUBLICITY, PROMOTIONS AND ADVERTISEMENT",27/02/2023,10725285031,46.57,LINKEDIN 8787893194
OXFORDSHIRE CC,"CHILDRENS, YOUNG PEOPLE AND FAMILIES",FSP NON-STAFFING - CENTRAL,PAYMENTS TO TRANSPORT OPERATORS,27/02/2023,10725285115,115.9,WWW.GWR.COM
OXFORDSHIRE CC,"CHILDRENS, YOUNG PEOPLE AND FAMILIES",FSP NON-STAFFING - CENTRAL,HIRE OF ACCOMMODATION AND FACILITIES,27/02/2023,10725285123,335.75,PREMIER INN
OXFORDSHIRE CC,"CHILDRENS, YOUNG PEOPLE AND FAMILIES",EYNSHAM,CATERING PROVISIONS,27/02/2023,10725285135,92.54,TESCO STORES 2008
OXFORDSHIRE CC,"CHILDRENS, YOUNG PEOPLE AND FAMILIES",EYNSHAM,OTHER MISC INC,27/02/2023,10725285143,7.99,TESCO SUBSCRIPTION
OXFORDSHIRE CC,CORPORATE CORE,,STATIONERY,27/02/2023,10725285247,-4.88,LYRECO UK LTD
OXFORDSHIRE CC,"CHILDRENS, YOUNG PEOPLE AND FAMILIES",NTS UASC AGENCY,OTHER MISC INC,27/02/2023,10725285303,56.5,ASDA STORE 4442
OXFORDSHIRE CC,"CHILDRENS, YOUNG PEOPLE AND FAMILIES",FSP NON-STAFFING - CENTRAL,HIRE OF ACCOMMODATION AND FACILITIES,27/02/2023,10725285313,115.24,PREMIER INN
OXFORDSHIRE CC,SOCIAL AND COMMUNITY SERVICES,"	KINGFISHER",CATERING,27/02/2023,10725285321,3.88,MCDONALDS
OXFORDSHIRE CC,"CHILDRENS, YOUNG PEOPLE AND FAMILIES","	LEAVING CARE CITY 2",OTHER TRANSPORT ARRANGEMENTS,27/02/2023,10725283813,4.5,WORCESTER STREET CAR P
OXFORDSHIRE CC,CORPORATE CORE,LEADERSHIP TEAM,PROFESSIONAL SUBSCRIPTIONS,27/02/2023,10725283791,580,WWW.ADASS.ORG.UK
OXFORDSHIRE CC,CORPORATE CORE,LEADERSHIP TEAM,PAYMENTS TO TRANSPORT OPERATORS,27/02/2023,10725283797,"4,088.00",RAIL SEASONS
OXFORDSHIRE CC,"CHILDRENS, YOUNG PEOPLE AND FAMILIES","	LEAVING CARE CITY 2",RESIDENTIAL ACTIVITIES,27/02/2023,10725283805,9.05,COSTA TEMPLARS
OXFORDSHIRE CC,"CHILDRENS, YOUNG PEOPLE AND FAMILIES","	LEAVING CARE CITY 2",OTHER EXPENSES,27/02/2023,10725283819,350,SOVEREIGN HOUSING
OXFORDSHIRE CC,"CHILDRENS, YOUNG PEOPLE AND FAMILIES","	LEAVING CARE CITY 2",OTHER EXPENSES,27/02/2023,10725283821,360.08,SOVEREIGN HOUSING
OXFORDSHIRE CC,"CHILDRENS, YOUNG PEOPLE AND FAMILIES",CHILDREN IN CARE NON-STAFFING - CENTRL 1,ENTERTAINMENT EXPENSES,27/02/2023,10725283831,14.71,WWW.JOLLYROGERPLAY.COM
OXFORDSHIRE CC,"CHILDRENS, YOUNG PEOPLE AND FAMILIES",CHILDREN IN CARE NON-STAFFING - CENTRL 2,MATERIALS,27/02/2023,10725283835,29.95,AMZNMKTPLACE
OXFORDSHIRE CC,"CHILDRENS, YOUNG PEOPLE AND FAMILIES",THAME E&A HOME,OTHER TRANSPORT ARRANGEMENTS,27/02/2023,10725283953,1.1,CAR PARK CHARGES
OXFORDSHIRE CC,"CHILDRENS, YOUNG PEOPLE AND FAMILIES",THAME E&A HOME,MATERIALS,27/02/2023,10725283939,2.43,HOBBYCRAFT
OXFORDSHIRE CC,"CHILDRENS, YOUNG PEOPLE AND FAMILIES",THAME E&A HOME,CATERING PROVISIONS,27/02/2023,10725283943,12,ONEBELOW
OXFORDSHIRE CC,"CHILDRENS, YOUNG PEOPLE AND FAMILIES",THAME E&A HOME,MATERIALS,27/02/2023,10725283947,3.57,CARD FACTORY
OXFORDSHIRE CC,ENVIRONMENT AND ECONOMY,WASTE REDUCTION GEN,"PUBLICITY, PROMOTIONS AND ADVERTISEMENT",27/02/2023,10725283959,149.85,CHEEKY WIPES
OXFORDSHIRE CC,"CHILDRENS, YOUNG PEOPLE AND FAMILIES",CSC SUPP & SERVICES,MATERIALS,27/02/2023,10725283971,9.99,AMZNMKTPLACE
OXFORDSHIRE CC,SOCIAL AND COMMUNITY SERVICES,CSS - OXFORD,CATERING PROVISIONS,27/02/2023,10725283979,73.2,ALDI STORES 775-142
OXFORDSHIRE CC,"CHILDRENS, YOUNG PEOPLE AND FAMILIES",FAMILY SOLUTIONS PLUS NON-STAFF - NORTH,CATERING PROVISIONS,27/02/2023,10725283985,9.87,TESCO STORES 2008
OXFORDSHIRE CC,"CHILDRENS, YOUNG PEOPLE AND FAMILIES",40 THE MOORS,CLEANING MATERIALS,27/02/2023,10725284129,21.37,AMZNMKTPLACE AMAZON.CO
OXFORDSHIRE CC,"CHILDRENS, YOUNG PEOPLE AND FAMILIES",40 THE MOORS,MATERIALS,27/02/2023,10725284103,44.99,WWW.ARGOS.CO.UK
OXFORDSHIRE CC,"CHILDRENS, YOUNG PEOPLE AND FAMILIES",40 THE MOORS,CATERING PROVISIONS,27/02/2023,10725284109,173.95,SAINSBURYS.CO.UK
OXFORDSHIRE CC,"CHILDRENS, YOUNG PEOPLE AND FAMILIES",CHILDREN IN CARE NON-STAFFING - CENTRL 2,OTHER TRANSPORT ARRANGEMENTS,27/02/2023,10725284123,47.25,WWW.THEKEY.CO.UK
OXFORDSHIRE CC,"CHILDRENS, YOUNG PEOPLE AND FAMILIES","	LEAVING CARE SOUTH",HARDWARE AND CROCKERY,27/02/2023,10725284159,89.84,TOOLSTATION LTD - BICE
OXFORDSHIRE CC,"CHILDRENS, YOUNG PEOPLE AND FAMILIES","	LEAVING CARE SOUTH",CATERING PROVISIONS,27/02/2023,10725284165,10,TESCO STORES 2064
OXFORDSHIRE CC,SOCIAL AND COMMUNITY SERVICES,CHILDREN IN CARE NON-STAFFING - NORTH,PAYMENTS TO TRANSPORT OPERATORS,27/02/2023,10725284171,96.98,WWW.HXPAYMENTS.COM
OXFORDSHIRE CC,SOCIAL AND COMMUNITY SERVICES,CHILDREN IN CARE NON-STAFFING - NORTH,OTHER TRANSPORT ARRANGEMENTS,27/02/2023,10725284177,5,CHERWELL
OXFORDSHIRE CC,"CHILDRENS, YOUNG PEOPLE AND FAMILIES",UASC POST 18,VEHICLE FUEL,27/02/2023,10725284273,61,SAINSBURYS PETROL
OXFORDSHIRE CC,"CHILDRENS, YOUNG PEOPLE AND FAMILIES","	RESIDENTIAL STRATEGY",EDUCATIONAL AND VOCATIONAL TRAINING ,27/02/2023,10725284303,25,PROTRAININGS
OXFORDSHIRE CC,"CHILDRENS, YOUNG PEOPLE AND FAMILIES","	LOOKED AFTER SOUTH",CATERING PROVISIONS,27/02/2023,10725284319,42.99,TESCO STORES 4338
OXFORDSHIRE CC,"CHILDRENS, YOUNG PEOPLE AND FAMILIES","	LOOKED AFTER SOUTH",CATERING PROVISIONS,27/02/2023,10725284325,49.99,TESCO STORES 4338
OXFORDSHIRE CC,"CHILDRENS, YOUNG PEOPLE AND FAMILIES","	LOOKED AFTER SOUTH",CATERING PROVISIONS,27/02/2023,10725284333,-29.99,TESCO STORES 4338
OXFORDSHIRE CC,SOCIAL AND COMMUNITY SERVICES,SCHOOLS FM CATERING AREA 1,MATERIALS,27/02/2023,10725284443,47.94,AMZNMKTPLACE AMAZON.CO
OXFORDSHIRE CC,SOCIAL AND COMMUNITY SERVICES,SCHOOLS FM CATERING AREA 1,MATERIALS,27/02/2023,10725284447,56.94,AMZNMKTPLACE AMAZON.CO
OXFORDSHIRE CC,"CHILDRENS, YOUNG PEOPLE AND FAMILIES",WITNEY,CATERING PROVISIONS,27/02/2023,10725284459,159.91,SAINSBURY'S S/MKT
OXFORDSHIRE CC,"CHILDRENS, YOUNG PEOPLE AND FAMILIES",WITNEY,CATERING,27/02/2023,10725284463,5.8,GREGGS
OXFORDSHIRE CC,"CHILDRENS, YOUNG PEOPLE AND FAMILIES","	LEAVING CARE SOUTH",CATERING PROVISIONS,27/02/2023,10725284479,10.45,BABYRICE LTD
OXFORDSHIRE CC,SOCIAL AND COMMUNITY SERVICES,SCHOOLS FM CATERING AREA 2,CATERING PROVISIONS,27/02/2023,10725284583,10.5,SAINSBURYS S/MKTS
OXFORDSHIRE CC,ENVIRONMENT AND ECONOMY,"	ROW MAINT",EQUIPMENT,27/02/2023,10725284589,97.54,AMZNMKTPLACE AMAZON.CO
OXFORDSHIRE CC,"CHILDRENS, YOUNG PEOPLE AND FAMILIES",FAMILY SOLUTIONS PLUS NON-STAFF - NORTH,PAYMENTS TO TRANSPORT OPERATORS,27/02/2023,10725284655,25.06,TRAINLINE.COM
OXFORDSHIRE CC,"CHILDRENS, YOUNG PEOPLE AND FAMILIES",EYNSHAM,CATERING,27/02/2023,10725283681,4.75,CO-OPERATIVE FOOD
OXFORDSHIRE CC,"CHILDRENS, YOUNG PEOPLE AND FAMILIES",CSS WALLINGFORD,CATERING PROVISIONS,27/02/2023,10725283651,30.55,WAITROSE 675
OXFORDSHIRE CC,"CHILDRENS, YOUNG PEOPLE AND FAMILIES",FSP NON-STAFFING - CENTRAL,OTHER TRANSPORT ARRANGEMENTS,27/02/2023,10725283659,7.5,WESTGATE OXFORD CAR PA
OXFORDSHIRE CC,CORPORATE CORE,CATERING MANAGEMENT SOFT FM,CATERING PROVISIONS,27/02/2023,10725283671,91.24,TESCO STORES 5014
OXFORDSHIRE CC,SOCIAL AND COMMUNITY SERVICES,CSS WANTAGE,CATERING PROVISIONS,27/02/2023,10725283689,19.5,SAINSBURYS S/MKTS
OXFORDSHIRE CC,SOCIAL AND COMMUNITY SERVICES,CSS WANTAGE,VEHICLE FUEL,27/02/2023,10725283695,13.5,SAINSBURYS PETROL
OXFORDSHIRE CC,SOCIAL AND COMMUNITY SERVICES,CSS WANTAGE,VEHICLES AND PLANT - REPAIRS AND MAIN,27/02/2023,10725283699,16,WANTAGE MOTORIST CENTR
OXFORDSHIRE CC,SOCIAL AND COMMUNITY SERVICES,CSS - ABINGDON,MATERIALS,27/02/2023,10725283717,7.99,AMZNMKTPLACE AMAZON.CO
OXFORDSHIRE CC,SOCIAL AND COMMUNITY SERVICES,CSS - ABINGDON,MATERIALS,27/02/2023,10725283723,74.87,AMZNMKTPLACE AMAZON.CO
OXFORDSHIRE CC,SOCIAL AND COMMUNITY SERVICES,CSS - OXFORD,CATERING PROVISIONS,27/02/2023,10725283755,56.3,TESCO STORES 2994
OXFORDSHIRE CC,SOCIAL AND COMMUNITY SERVICES,UASC 16&17,MATERIALS,27/02/2023,10725283773,108,SPORTSDIRECT.COM
OXFORDSHIRE CC,SOCIAL AND COMMUNITY SERVICES,UASC 16&17,CATERING PROVISIONS,27/02/2023,10725283777,54.37,TESCO STORES 4480
OXFORDSHIRE CC,CORPORATE CORE,LEADERSHIP TEAM,PAYMENTS TO TRANSPORT OPERATORS,27/02/2023,10725283787,43.8,CROSS COUNTRY RAIL
OXFORDSHIRE CC,SOCIAL AND COMMUNITY SERVICES,COMMUNITY PARTNERSHIP TEAM,MATERIALS,27/02/2023,10725283913,3.32,AMZNMKTPLACE AMAZON.CO
OXFORDSHIRE CC,"CHILDRENS, YOUNG PEOPLE AND FAMILIES",THAME E&A HOME,CATERING PROVISIONS,27/02/2023,10725283927,210.87,TESCO STORES 2038
OXFORDSHIRE CC,"CHILDRENS, YOUNG PEOPLE AND FAMILIES",THAME E&A HOME,CATERING PROVISIONS,27/02/2023,10725283933,3,TESCO STORES 4480
OXFORDSHIRE CC,"CHILDRENS, YOUNG PEOPLE AND FAMILIES","	HOME SUPPORT",DOMESTIC AND CLEANING EQUIPMENT,27/02/2023,10725284021,60,PARKINGEYE PAYMENT
OXFORDSHIRE CC,CORPORATE CORE,INCOME TEAM,PAYMENT TO GOVERNMENT DEPARTMENTS,27/02/2023,10725284071,11,OXFORDSHIRE CC WEB1
OXFORDSHIRE CC,SOCIAL AND COMMUNITY SERVICES,CHILDREN IN CARE NON-STAFFING - NORTH,HIRE OF ACCOMMODATION AND FACILITIES,27/02/2023,10725284183,374,THE GEORGE HOTEL
OXFORDSHIRE CC,"CHILDRENS, YOUNG PEOPLE AND FAMILIES","	OCCG GRANT",MATERIALS,27/02/2023,10725284213,5,PETS AT HOME LTD
OXFORDSHIRE CC,"CHILDRENS, YOUNG PEOPLE AND FAMILIES","	OCCG GRANT",CATERING PROVISIONS,27/02/2023,10725284221,14.99,B&M 514 - DICOT
OXFORDSHIRE CC,"CHILDRENS, YOUNG PEOPLE AND FAMILIES","	LOOKED AFTER NORTH",CLOTHING AND UNIFORMS,27/02/2023,10725284253,63,PRIMARK 689
OXFORDSHIRE CC,"CHILDRENS, YOUNG PEOPLE AND FAMILIES","	LOOKED AFTER NORTH",OTHER SERVICES,27/02/2023,10725284265,40,BLACKHAWK CS   ICELAND
OXFORDSHIRE CC,"CHILDRENS, YOUNG PEOPLE AND FAMILIES","	MUSIC UNALLOCABLE",MATERIALS,27/02/2023,10725284405,52.03,AMAZON.CO.UK 1L4OH1JB4
OXFORDSHIRE CC,"CHILDRENS, YOUNG PEOPLE AND FAMILIES",UASC UNDER 16,CATERING,27/02/2023,10725284401,9,KHAIRO?S STREET FOOD
OXFORDSHIRE CC,CORPORATE CORE,SCHOOLS FM CATERING AREA 4,CATERING PROVISIONS,27/02/2023,10725284417,5.13,CO-OPERATIVE FOOD
OXFORDSHIRE CC,"CHILDRENS, YOUNG PEOPLE AND FAMILIES","	LEAVING CARE SOUTH",RESIDENTIAL ACTIVITIES,27/02/2023,10725284431,6,COSTA FARINGDON
OXFORDSHIRE CC,SOCIAL AND COMMUNITY SERVICES,SCHOOLS FM CATERING AREA 1,MATERIALS,27/02/2023,10725284439,62,AMZNMKTPLACE AMAZON.CO
OXFORDSHIRE CC,"CHILDRENS, YOUNG PEOPLE AND FAMILIES",THAME E&A HOME,MATERIALS,27/02/2023,10725284539,14.99,AMZNMKTPLACE AMAZON.CO
OXFORDSHIRE CC,"CHILDRENS, YOUNG PEOPLE AND FAMILIES",THAME E&A HOME,MATERIALS,27/02/2023,10725284543,25.85,AMZNMKTPLACE AMAZON.CO
OXFORDSHIRE CC,"CHILDRENS, YOUNG PEOPLE AND FAMILIES",PAUSE PROGRAMME,CATERING,27/02/2023,10725284549,7.99,BURGER KINGBURGER KING
OXFORDSHIRE CC,"CHILDRENS, YOUNG PEOPLE AND FAMILIES","	LOOKED AFTER CITY 2",OTHER TRANSPORT ARRANGEMENTS,24/02/2023,10715795615,2,OXFORD BUS COMPANY
OXFORDSHIRE CC,CORPORATE CORE,"	ORGANISATIONAL DEV'T",SUBSCRIPTIONS,24/02/2023,10715795623,432,STONEWALL EVENTS
OXFORDSHIRE CC,"CHILDRENS, YOUNG PEOPLE AND FAMILIES",FSP STAFFING � NORTH,CATERING PROVISIONS,24/02/2023,10715795637,6.05,TESCO STORES 4377
OXFORDSHIRE CC,CORPORATE CORE,SCHOOLS FM CATERING AREA 1,CATERING PROVISIONS,24/02/2023,10715796079,24.8,TESCO-STORES 2305
OXFORDSHIRE CC,SOCIAL AND COMMUNITY SERVICES,"	MTFC",CATERING PROVISIONS,24/02/2023,10715796063,4.3,SAINSBURYS S/MKTS
OXFORDSHIRE CC,SOCIAL AND COMMUNITY SERVICES,"	MTFC",CATERING,24/02/2023,10715796067,12.45,COSTA COFFEE-HENLEY ON
OXFORDSHIRE CC,SOCIAL AND COMMUNITY SERVICES,"	MTFC",OTHER TRANSPORT ARRANGEMENTS,24/02/2023,10715796073,2.2,S OXFORDS PARKING FEE
OXFORDSHIRE CC,"CHILDRENS, YOUNG PEOPLE AND FAMILIES",40 THE MOORS,CATERING,24/02/2023,10715795033,1.9,GREGGS
OXFORDSHIRE CC,"CHILDRENS, YOUNG PEOPLE AND FAMILIES",PAUSE PROGRAMME,CATERING PROVISIONS,24/02/2023,10715795403,7.75,CORNFIELD BAKERY
OXFORDSHIRE CC,"CHILDRENS, YOUNG PEOPLE AND FAMILIES",PAUSE PROGRAMME,ENTERTAINMENT EXPENSES,24/02/2023,10715795409,9.18,HOLLYWOOD BOWL
OXFORDSHIRE CC,"CHILDRENS, YOUNG PEOPLE AND FAMILIES","	LEAVING CARE NORTH",HARDWARE AND CROCKERY,24/02/2023,10715796017,269.4,B & Q 1176
OXFORDSHIRE CC,"CHILDRENS, YOUNG PEOPLE AND FAMILIES",FIELDWORK UASC,OTHER TRANSPORT ARRANGEMENTS,24/02/2023,10715795997,-12.75,OXFORD BUS TICKETS
OXFORDSHIRE CC,SOCIAL AND COMMUNITY SERVICES,WALLINGFORD LIBRARY,CATERING PROVISIONS,24/02/2023,10715796003,2.95,WAITROSE 675
OXFORDSHIRE CC,"CHILDRENS, YOUNG PEOPLE AND FAMILIES","	LEAVING CARE NORTH",OTHER TRANSPORT ARRANGEMENTS,24/02/2023,10715796011,33,WWW.THEKEY.CO.UK
OXFORDSHIRE CC,ENVIRONMENT AND ECONOMY,HARD FM,PREMISES REPAIRS,24/02/2023,10715794813,45.6,B & Q 1062
OXFORDSHIRE CC,SOCIAL AND COMMUNITY SERVICES,CSS - OXFORD,DAY ACTIVITIES,24/02/2023,10715794805,5.35,WWW.BETTER.ORG.UK
OXFORDSHIRE CC,"CHILDRENS, YOUNG PEOPLE AND FAMILIES","	LOOKED AFTER NORTH",CATERING,24/02/2023,10715795173,9.25,GREGGS PLC
OXFORDSHIRE CC,"CHILDRENS, YOUNG PEOPLE AND FAMILIES","	LOOKED AFTER NORTH",OTHER TRANSPORT ARRANGEMENTS,24/02/2023,10715795177,10,B4 PARKING LIMITED
OXFORDSHIRE CC,ENVIRONMENT AND ECONOMY,"	SAMUELSON HOUSE",CATERING PROVISIONS,24/02/2023,10715795183,41.4,MILK AND MORE (RECUR
OXFORDSHIRE CC,SOCIAL AND COMMUNITY SERVICES,"	MUSEUMS COLLECTIONS",CATERING PROVISIONS,24/02/2023,10715795591,4.5,MILK AND MORE (RECUR
OXFORDSHIRE CC,"CHILDRENS, YOUNG PEOPLE AND FAMILIES","	LEAVING CARE NORTH",CATERING PROVISIONS,24/02/2023,10715796033,6.55,TESCO PFS 3418
OXFORDSHIRE CC,"CHILDRENS, YOUNG PEOPLE AND FAMILIES","	LEAVING CARE NORTH",MATERIALS,24/02/2023,10715796021,48,ARGOS DIDCOT
OXFORDSHIRE CC,"CHILDRENS, YOUNG PEOPLE AND FAMILIES","	LEAVING CARE NORTH",HARDWARE AND CROCKERY,24/02/2023,10715796025,172.39,SAINSBURYS SMKT
OXFORDSHIRE CC,"CHILDRENS, YOUNG PEOPLE AND FAMILIES","	LEAVING CARE NORTH",CLOTHING AND UNIFORMS,24/02/2023,10715796029,88.96,TK MAXX
OXFORDSHIRE CC,"CHILDRENS, YOUNG PEOPLE AND FAMILIES","	LEAVING CARE NORTH",OTHER TRANSPORT ARRANGEMENTS,24/02/2023,10715796037,2.2,S OXFORDS PARKING FEE
OXFORDSHIRE CC,"CHILDRENS, YOUNG PEOPLE AND FAMILIES",LEADERSHIP TEAM,OTHER TRANSPORT ARRANGEMENTS,24/02/2023,10715794833,16,SUMUP   READING TAXI
OXFORDSHIRE CC,ENVIRONMENT AND ECONOMY,"	COUNTY PRINT FINSHRS",MATERIALS,24/02/2023,10715794819,201.65,AMZNMKTPLACE
OXFORDSHIRE CC,ENVIRONMENT AND ECONOMY,"	COUNTY PRINT FINSHRS",MATERIALS,24/02/2023,10715794823,20.53,AMZNMKTPLACE
OXFORDSHIRE CC,SOCIAL AND COMMUNITY SERVICES,CSS BICESTER,MATERIALS,24/02/2023,10715794829,6.98,AMZNMKTPLACE AMAZON.CO
OXFORDSHIRE CC,"CHILDRENS, YOUNG PEOPLE AND FAMILIES","	LOOKED AFTER CITY 2",OTHER TRANSPORT ARRANGEMENTS,24/02/2023,10715795607,2,STGCOACH/CTYLINK
OXFORDSHIRE CC,"CHILDRENS, YOUNG PEOPLE AND FAMILIES","	LOOKED AFTER CITY 2",IT SERVICES,24/02/2023,10715795595,6.22,IDENTITE PHOTO
OXFORDSHIRE CC,"CHILDRENS, YOUNG PEOPLE AND FAMILIES","	LOOKED AFTER CITY 2",OTHER TRANSPORT ARRANGEMENTS,24/02/2023,10715795599,2,OXFORD BUS COMPANY
OXFORDSHIRE CC,"CHILDRENS, YOUNG PEOPLE AND FAMILIES","	LOOKED AFTER CITY 2",OTHER TRANSPORT ARRANGEMENTS,24/02/2023,10715795603,2,STGCOACH/CTYLINK
OXFORDSHIRE CC,"CHILDRENS, YOUNG PEOPLE AND FAMILIES","	LOOKED AFTER CITY 2",PAYMENT TO GOVERNMENT DEPARTMENTS,24/02/2023,10715795609,87.5,HM PASSPORT OFFICE
OXFORDSHIRE CC,"CHILDRENS, YOUNG PEOPLE AND FAMILIES",FSP NON-STAFFING - CENTRAL,VEHICLE - HIRE CHARGES,24/02/2023,10715796051,310.31,HUGHES AND SALVIDGE HO
OXFORDSHIRE CC,"CHILDRENS, YOUNG PEOPLE AND FAMILIES","	LEAVING CARE NORTH",CATERING,24/02/2023,10715796041,7.49,MCDONALDS
OXFORDSHIRE CC,"CHILDRENS, YOUNG PEOPLE AND FAMILIES","	LEAVING CARE NORTH",MATERIALS,24/02/2023,10715796043,66.2,KLARNA GRAFF-CITY.COM
OXFORDSHIRE CC,"CHILDRENS, YOUNG PEOPLE AND FAMILIES","	LEAVING CARE NORTH",PAYMENTS TO TRANSPORT OPERATORS,24/02/2023,10715796045,-65.5,TRAINLINE
OXFORDSHIRE CC,"CHILDRENS, YOUNG PEOPLE AND FAMILIES",FAMILY SOLUTIONS PLUS NON-STAFF � SOUTH,POSTAGE AND DELIVERY,24/02/2023,10715796057,6.85,POST OFFICE COUNTER
OXFORDSHIRE CC,"CHILDRENS, YOUNG PEOPLE AND FAMILIES",LEADERSHIP TEAM,OTHER TRANSPORT ARRANGEMENTS,24/02/2023,10715794837,2.5,TFL TRAVEL CH
OXFORDSHIRE CC,"CHILDRENS, YOUNG PEOPLE AND FAMILIES",MANAGEMENT RECHARGES,PAYMENTS TO VOLUNTARY BODIES,24/02/2023,10715795249,89,CVAA UK LTD
OXFORDSHIRE CC,"CHILDRENS, YOUNG PEOPLE AND FAMILIES",THAME E&A HOME,CATERING PROVISIONS,24/02/2023,10715795253,21.64,SAINSBURYS S/MKTS
OXFORDSHIRE CC,"CHILDRENS, YOUNG PEOPLE AND FAMILIES",EET SERVICE,MATERIALS,24/02/2023,10715795633,229.99,AMAZON.CO.UK 1384E9YA4
OXFORDSHIRE CC,SOCIAL AND COMMUNITY SERVICES,CSS WITNEY,CATERING PROVISIONS,24/02/2023,10715795769,27.6,MILK AND MORE (RECUR
OXFORDSHIRE CC,SOCIAL AND COMMUNITY SERVICES,CSS WANTAGE,ENTERTAINMENT EXPENSES,24/02/2023,10715795775,16.05,WWW.BETTER.ORG.UK
OXFORDSHIRE CC,SOCIAL AND COMMUNITY SERVICES,CSS WANTAGE,ENTERTAINMENT EXPENSES,24/02/2023,10715795779,9,WWW.BETTER.ORG.UK
OXFORDSHIRE CC,ENVIRONMENT AND ECONOMY,HOLDING CODE FOR REA,PREMISES REPAIRS,24/02/2023,10715796207,109.99,WWW.SCREWFIX.COM
OXFORDSHIRE CC,"CHILDRENS, YOUNG PEOPLE AND FAMILIES","	LOOKED AFTER SOUTH",CATERING,24/02/2023,10715796195,6.75,COSTA COFFEE 43011187
OXFORDSHIRE CC,"CHILDRENS, YOUNG PEOPLE AND FAMILIES","	LEAVING CARE NORTH",DRUGS AND MEDICAL SUPPLIES,24/02/2023,10715796203,50.12,"BOOTS,BANBURY"
OXFORDSHIRE CC,ENVIRONMENT AND ECONOMY,"	FLEET OPERATIONS",POSTAGE AND DELIVERY,24/02/2023,10715795799,19.25,POST OFFICE COUNTER
OXFORDSHIRE CC,ENVIRONMENT AND ECONOMY,"	FLEET OPERATIONS",CATERING PROVISIONS,24/02/2023,10715795803,19.04,MILK AND MORE (RECUR
OXFORDSHIRE CC,"CHILDRENS, YOUNG PEOPLE AND FAMILIES","	LEAVING CARE CITY 2",CLOTHING AND UNIFORMS,24/02/2023,10715796225,61.3,PRIMARK 693
OXFORDSHIRE CC,"CHILDRENS, YOUNG PEOPLE AND FAMILIES",THAME E&A HOME,CATERING PROVISIONS,24/02/2023,10715796231,16.8,SAINSBURYS S/MKTS
OXFORDSHIRE CC,CORPORATE CORE,INCOME TEAM,PAYMENT TO GOVERNMENT DEPARTMENTS,24/02/2023,10715795013,1.5,FIND A WILL
OXFORDSHIRE CC,"CHILDRENS, YOUNG PEOPLE AND FAMILIES","	LAC PUPIL PREMIUM","BOOKS, DVDS AND CDS",24/02/2023,10715795393,6.99,AMZNMKTPLACE
OXFORDSHIRE CC,"CHILDRENS, YOUNG PEOPLE AND FAMILIES","	LEAVING CARE SOUTH",PAYMENT TO GOVERNMENT DEPARTMENTS,24/02/2023,10715795377,100,VALE OF WHITE HORSE DC
OXFORDSHIRE CC,"CHILDRENS, YOUNG PEOPLE AND FAMILIES","	LEAVING CARE SOUTH",OTHER EXPENSES,24/02/2023,10715795383,15,VOUCHER EXPRESS
OXFORDSHIRE CC,"CHILDRENS, YOUNG PEOPLE AND FAMILIES","DIDCOT CC, PARK ROAD",CATERING PROVISIONS,24/02/2023,10715795397,3.5,SAINSBURYS S/MKTS
OXFORDSHIRE CC,"CHILDRENS, YOUNG PEOPLE AND FAMILIES",NRPF & HOMELESSNESS,HIRE OF ACCOMMODATION AND FACILITIES,24/02/2023,10715795399,"1,629.67",TRAVELODGE
OXFORDSHIRE CC,"CHILDRENS, YOUNG PEOPLE AND FAMILIES",40 THE MOORS,FURNITURE,24/02/2023,10715795821,780,BEDS TO U
OXFORDSHIRE CC,"CHILDRENS, YOUNG PEOPLE AND FAMILIES",THAME E&A HOME,MATERIALS,24/02/2023,10715796235,10.99,AMZNMKTPLACE
OXFORDSHIRE CC,"CHILDRENS, YOUNG PEOPLE AND FAMILIES",40 THE MOORS,CATERING PROVISIONS,24/02/2023,10715795037,2.75,B&M 236 - COWLEY
OXFORDSHIRE CC,"CHILDRENS, YOUNG PEOPLE AND FAMILIES",40 THE MOORS,CATERING,24/02/2023,10715795029,18.4,BOSWELLS CAF? COWLEY
OXFORDSHIRE CC,"CHILDRENS, YOUNG PEOPLE AND FAMILIES","	BUSINESS DEVELOPMENT",MATERIALS,24/02/2023,10715796123,28.73,AMZNMKTPLACE AMAZON.CO
OXFORDSHIRE CC,"CHILDRENS, YOUNG PEOPLE AND FAMILIES",FSP STAFFING � CENTRAL,CATERING,24/02/2023,10715796289,23.24,KFC
OXFORDSHIRE CC,"CHILDRENS, YOUNG PEOPLE AND FAMILIES",FSP STAFFING � CENTRAL,OTHER TRANSPORT ARRANGEMENTS,24/02/2023,10715796279,4,READING TRANSPORT LIMI
OXFORDSHIRE CC,"CHILDRENS, YOUNG PEOPLE AND FAMILIES",FSP STAFFING � CENTRAL,PAYMENTS TO TRANSPORT OPERATORS,24/02/2023,10715796281,10.8,GWR OXFORD SST
OXFORDSHIRE CC,"CHILDRENS, YOUNG PEOPLE AND FAMILIES",FSP STAFFING � CENTRAL,CATERING,24/02/2023,10715796285,5.49,KFC
OXFORDSHIRE CC,"CHILDRENS, YOUNG PEOPLE AND FAMILIES",FSP STAFFING � CENTRAL,CATERING,24/02/2023,10715796293,2.59,KFC
OXFORDSHIRE CC,"CHILDRENS, YOUNG PEOPLE AND FAMILIES",FSP STAFFING � CENTRAL,CATERING,24/02/2023,10715796295,0.4,KFC
OXFORDSHIRE CC,"CHILDRENS, YOUNG PEOPLE AND FAMILIES",FSP STAFFING � CENTRAL,CATERING,24/02/2023,10715796299,16.55,CREAMS READING
OXFORDSHIRE CC,"CHILDRENS, YOUNG PEOPLE AND FAMILIES",FSP STAFFING � CENTRAL,CATERING,24/02/2023,10715796301,4.95,CREAMS READING
OXFORDSHIRE CC,"CHILDRENS, YOUNG PEOPLE AND FAMILIES","	LOOKED AFTER NORTH",CLOTHING AND UNIFORMS,24/02/2023,10715795169,36,SCHUH LIMITED
OXFORDSHIRE CC,SOCIAL AND COMMUNITY SERVICES,SCHOOLS FM CATERING AREA 2,MATERIALS,24/02/2023,10715794905,116.76,AMZNMKTPLACE
OXFORDSHIRE CC,SOCIAL AND COMMUNITY SERVICES,SCHOOLS FM CATERING AREA 2,MATERIALS,24/02/2023,10715794907,39.76,AMZNMKTPLACE
OXFORDSHIRE CC,SOCIAL AND COMMUNITY SERVICES,SCHOOLS FM CATERING AREA 2,MATERIALS,24/02/2023,10715794911,81.8,AMZNMKTPLACE
OXFORDSHIRE CC,"CHILDRENS, YOUNG PEOPLE AND FAMILIES",CHILDREN IN CARE NON-STAFFING - SOUTH,VEHICLE FUEL,24/02/2023,10715796321,55.21,SHELL BEACONSFIELD
OXFORDSHIRE CC,"CHILDRENS, YOUNG PEOPLE AND FAMILIES","	LEAVING CARE SOUTH",CATERING PROVISIONS,24/02/2023,10715796345,3.99,MCDONALDS
OXFORDSHIRE CC,SOCIAL AND COMMUNITY SERVICES,SCHOOLS FM CATERING AREA 2,MATERIALS,24/02/2023,10715794915,72.75,AMZNMKTPLACE
OXFORDSHIRE CC,SOCIAL AND COMMUNITY SERVICES,CSS WALLINGFORD,CATERING PROVISIONS,24/02/2023,10715794919,6.8,WAITROSE 675
OXFORDSHIRE CC,"CHILDRENS, YOUNG PEOPLE AND FAMILIES","	LEAVING CARE SOUTH",VEHICLE FUEL,24/02/2023,10715795313,19.19,MOTOR FUEL LIMITED-GLA
OXFORDSHIRE CC,SOCIAL AND COMMUNITY SERVICES,ABINGDON LIBRARY,"NEWSPAPERS, PERIODICALS AND PUBLICATIONS",24/02/2023,10715795901,55.99,GUARDIAN NEWS & MEDIA
OXFORDSHIRE CC,CORPORATE CORE,MOTOR FLEET,MOTOR IF FEES,24/02/2023,10715795915,42,SIDNEY H HOOPER & COMP
OXFORDSHIRE CC,"CHILDRENS, YOUNG PEOPLE AND FAMILIES","	LEAVING CARE NORTH",OTHER TRANSPORT ARRANGEMENTS,24/02/2023,10715795101,72,STAGECOACH SERVICE
OXFORDSHIRE CC,"CHILDRENS, YOUNG PEOPLE AND FAMILIES","	LEAVING CARE NORTH",OTHER TRANSPORT ARRANGEMENTS,24/02/2023,10715795091,72,STAGECOACH SERVICE
OXFORDSHIRE CC,"CHILDRENS, YOUNG PEOPLE AND FAMILIES","	LEAVING CARE NORTH",OTHER TRANSPORT ARRANGEMENTS,24/02/2023,10715795095,72,STAGECOACH SERVICE
OXFORDSHIRE CC,"CHILDRENS, YOUNG PEOPLE AND FAMILIES",CSS WANTAGE,HARDWARE AND CROCKERY,24/02/2023,10715794751,3.1,CHILTON GARDEN CENTRE
OXFORDSHIRE CC,"CHILDRENS, YOUNG PEOPLE AND FAMILIES",CSS WANTAGE,HARDWARE AND CROCKERY,24/02/2023,10715794747,6,CHILTON GARDEN CENTRE
OXFORDSHIRE CC,"CHILDRENS, YOUNG PEOPLE AND FAMILIES",CSS WANTAGE,HOSPITALITY EXPENSES,24/02/2023,10715794755,4.3,LORD NELSON
OXFORDSHIRE CC,"CHILDRENS, YOUNG PEOPLE AND FAMILIES",CSS WANTAGE,HOSPITALITY EXPENSES,24/02/2023,10715794759,4.1,LORD NELSON
OXFORDSHIRE CC,"CHILDRENS, YOUNG PEOPLE AND FAMILIES",PAUSE PROGRAMME,ENTERTAINMENT EXPENSES,24/02/2023,10715795119,3.09,HOLLYWOOD BOWL
OXFORDSHIRE CC,"CHILDRENS, YOUNG PEOPLE AND FAMILIES",PAUSE PROGRAMME,ENTERTAINMENT EXPENSES,24/02/2023,10715795115,3.09,HOLLYWOOD BOWL
OXFORDSHIRE CC,"CHILDRENS, YOUNG PEOPLE AND FAMILIES",PAUSE PROGRAMME,ENTERTAINMENT EXPENSES,24/02/2023,10715795121,33.65,HOLLYWOOD BOWL
OXFORDSHIRE CC,CORPORATE CORE,,STATIONERY,24/02/2023,10715795977,90.41,LYRECO UK LTD
OXFORDSHIRE CC,"CHILDRENS, YOUNG PEOPLE AND FAMILIES",HOUSE PROJECT,OTHER TRANSPORT ARRANGEMENTS,24/02/2023,10715795983,9.5,WESTGATE OXFORD CAR PA
OXFORDSHIRE CC,"CHILDRENS, YOUNG PEOPLE AND FAMILIES",THAME E&A HOME,MATERIALS,24/02/2023,10715796241,10.99,AMZNMKTPLACE
OXFORDSHIRE CC,"CHILDRENS, YOUNG PEOPLE AND FAMILIES",THAME E&A HOME,MATERIALS,24/02/2023,10715796243,13.3,AMZNMKTPLACE
OXFORDSHIRE CC,"CHILDRENS, YOUNG PEOPLE AND FAMILIES",THAME E&A HOME,MATERIALS,24/02/2023,10715796247,16.95,AMZNMKTPLACE
OXFORDSHIRE CC,"CHILDRENS, YOUNG PEOPLE AND FAMILIES",FSP STAFFING � CENTRAL,OTHER TRANSPORT ARRANGEMENTS,24/02/2023,10715796275,2,READING TRANSPORT LIMI
OXFORDSHIRE CC,"CHILDRENS, YOUNG PEOPLE AND FAMILIES",CSS WANTAGE,HOSPITALITY EXPENSES,24/02/2023,10715794761,5.5,LORD NELSON
OXFORDSHIRE CC,"CHILDRENS, YOUNG PEOPLE AND FAMILIES",HOUSE PROJECT,OTHER TRANSPORT ARRANGEMENTS,24/02/2023,10715795129,7.5,WESTGATE OXFORD CAR PA
OXFORDSHIRE CC,"CHILDRENS, YOUNG PEOPLE AND FAMILIES",HOUSE PROJECT,OTHER TRANSPORT ARRANGEMENTS,24/02/2023,10715795133,7.5,WESTGATE OXFORD CAR PA
OXFORDSHIRE CC,"CHILDRENS, YOUNG PEOPLE AND FAMILIES",HOUSE PROJECT,OTHER TRANSPORT ARRANGEMENTS,24/02/2023,10715795137,12.35,SAINSBURY'S S/MKT
OXFORDSHIRE CC,"CHILDRENS, YOUNG PEOPLE AND FAMILIES","	OCCG GRANT",CATERING,24/02/2023,10715795141,12,COSTA COFFEE 43011357
OXFORDSHIRE CC,CORPORATE CORE,OPERATIONS,MATERIALS,24/02/2023,10715795539,16.77,AMZNMKTPLACE
OXFORDSHIRE CC,SOCIAL AND COMMUNITY SERVICES,"	MUSEUMS COLLECTIONS",OTHER SERVICES,24/02/2023,10715795693,3.98,AMZNMKTPLACE
OXFORDSHIRE CC,SOCIAL AND COMMUNITY SERVICES,SCHOOLS FM CATERING AREA 4,CATERING PROVISIONS,24/02/2023,10715794873,40.5,TESCO STORES 2008
OXFORDSHIRE CC,"CHILDRENS, YOUNG PEOPLE AND FAMILIES",FSP NON-STAFFING - CENTRAL,MATERIALS,24/02/2023,10715794857,199.49,AMAZON.CO.UK 1L6142C74
OXFORDSHIRE CC,SOCIAL AND COMMUNITY SERVICES,SCHOOLS FM CATERING AREA 4,CATERING PROVISIONS,24/02/2023,10715794867,23.6,SAINSBURYS S/MKTS
OXFORDSHIRE CC,SOCIAL AND COMMUNITY SERVICES,SCHOOLS FM CATERING AREA 4,CATERING PROVISIONS,24/02/2023,10715794871,20.55,SAINSBURYS S/MKTS
OXFORDSHIRE CC,"CHILDRENS, YOUNG PEOPLE AND FAMILIES",FAMILY TIME COSTS,CLOTHING AND UNIFORMS,24/02/2023,10715794879,203.79,PRINTERPIX UK LIMITED
OXFORDSHIRE CC,"CHILDRENS, YOUNG PEOPLE AND FAMILIES","	LEAVING CARE CITY 2",OTHER EXPENSES,24/02/2023,10715794885,390,WWW.ARGOS.CO.UK
OXFORDSHIRE CC,ENVIRONMENT AND ECONOMY,"	OXFORDSHIRE MUSEUM",EQUIPMENT,24/02/2023,10715795663,-14.4,BLACKBOX AV
OXFORDSHIRE CC,CORPORATE CORE,HISTORY SERVICE,FURNITURE,24/02/2023,10715795645,159,TVLICENSING.CO.UK
OXFORDSHIRE CC,SOCIAL AND COMMUNITY SERVICES,"	CENTRAL LIBRARY",MATERIALS,24/02/2023,10715795651,12,EXTRA
OXFORDSHIRE CC,ENVIRONMENT AND ECONOMY,MUSEUM CAFE,MATERIALS,24/02/2023,10715795655,35.99,AMZNMKTPLACE
OXFORDSHIRE CC,ENVIRONMENT AND ECONOMY,MUSEUM CAFE,MATERIALS,24/02/2023,10715795661,134.1,ZETTLE_ BUNKERS HILL F
OXFORDSHIRE CC,SOCIAL AND COMMUNITY SERVICES,"	MUSEUMS COLLECTIONS",OTHER SERVICES,24/02/2023,10715795669,3.94,AMZNMKTPLACE
OXFORDSHIRE CC,"CHILDRENS, YOUNG PEOPLE AND FAMILIES",DIDCOT MOVE-ON HOME,ENTERTAINMENT EXPENSES,24/02/2023,10715796109,159,TVLICENSING.CO.UK
OXFORDSHIRE CC,"CHILDRENS, YOUNG PEOPLE AND FAMILIES",UASC 16&17,DRUGS AND MEDICAL SUPPLIES,24/02/2023,10715795273,1,HEADINGTON PHARMACY
OXFORDSHIRE CC,"CHILDRENS, YOUNG PEOPLE AND FAMILIES",FAMILY SOLUTIONS PLUS NON-STAFF � SOUTH,PAYMENT TO GOVERNMENT DEPARTMENTS,24/02/2023,10715794893,56,GEN REGISTER OFFICE
OXFORDSHIRE CC,SOCIAL AND COMMUNITY SERVICES,HOLTON SITE,CATERING PROVISIONS,24/02/2023,10715794897,16.66,MILK AND MORE (RECUR
OXFORDSHIRE CC,"CHILDRENS, YOUNG PEOPLE AND FAMILIES",UASC 16&17,CLOTHING AND UNIFORMS,24/02/2023,10715795277,49.94,PRO-DIRECT SPORT LIMIT
OXFORDSHIRE CC,"CHILDRENS, YOUNG PEOPLE AND FAMILIES",PAUSE PROGRAMME,CATERING PROVISIONS,24/02/2023,10715795423,12.35,44171 OLE  STEEN  OXFO
OXFORDSHIRE CC,ENVIRONMENT AND ECONOMY,"	ROW MAINT",EQUIPMENT,24/02/2023,10715795429,84,BANBURY PLANT AND SKIP
OXFORDSHIRE CC,SOCIAL AND COMMUNITY SERVICES,"	MUSEUMS COLLECTIONS",OTHER SERVICES,24/02/2023,10715795683,13.8,AMZNMKTPLACE
OXFORDSHIRE CC,SOCIAL AND COMMUNITY SERVICES,"	MUSEUMS COLLECTIONS",MATERIALS,24/02/2023,10715795689,16.65,AMZNMKTPLACE
OXFORDSHIRE CC,CORPORATE CORE,"MARKETING, COMMUNICATIONS & ENGAGEMENT","PUBLICITY, PROMOTIONS AND ADVERTISEMENT",24/02/2023,10715795839,500,FACEBK CHJAMMB9Z2
OXFORDSHIRE CC,"CHILDRENS, YOUNG PEOPLE AND FAMILIES",UASC POST 18,OTHER TRANSPORT ARRANGEMENTS,24/02/2023,10715795853,4.5,WESTGATE OXFORD CAR PA
OXFORDSHIRE CC,"CHILDRENS, YOUNG PEOPLE AND FAMILIES",40 THE MOORS,CATERING PROVISIONS,24/02/2023,10715795051,16.48,SUNDAES GELATO
OXFORDSHIRE CC,"CHILDRENS, YOUNG PEOPLE AND FAMILIES",40 THE MOORS,CATERING PROVISIONS,24/02/2023,10715795039,5,ICELAND
OXFORDSHIRE CC,"CHILDRENS, YOUNG PEOPLE AND FAMILIES",40 THE MOORS,CATERING PROVISIONS,24/02/2023,10715795045,5,ICELAND
OXFORDSHIRE CC,"CHILDRENS, YOUNG PEOPLE AND FAMILIES",40 THE MOORS,CATERING,24/02/2023,10715795049,38.7,NANDOS OXFORD
OXFORDSHIRE CC,SHARED SERVICES,CSC SUPP & SERVICES,STATIONERY,24/02/2023,10715795073,27.98,AMZNMKTPLACE AMAZON.CO
OXFORDSHIRE CC,CORPORATE CORE,SCHOOLS FM CATERING AREA 4,CATERING PROVISIONS,24/02/2023,10715795301,26.3,SAINSBURYS S/MKTS
OXFORDSHIRE CC,"CHILDRENS, YOUNG PEOPLE AND FAMILIES","	FAM GRP CONFERENCES","PUBLICITY, PROMOTIONS AND ADVERTISEMENT",24/02/2023,10715795309,24,ISTOCK.COM
OXFORDSHIRE CC,"CHILDRENS, YOUNG PEOPLE AND FAMILIES",DIDCOT MOVE-ON HOME,ENTERTAINMENT EXPENSES,24/02/2023,10715795441,12.94,CINEWORLD
OXFORDSHIRE CC,ENVIRONMENT AND ECONOMY,"	ROW MAINT",EQUIPMENT,24/02/2023,10715795459,305.84,TUFF SHOP .CO.UK
OXFORDSHIRE CC,SHARED SERVICES,CSC SUPP & SERVICES,PURCHASE OF IT EQUIPMENT,23/02/2023,10710193913,89.09,AMZNMKTPLACE AMAZON.CO
OXFORDSHIRE CC,"CHILDRENS, YOUNG PEOPLE AND FAMILIES",FAMILY SOLUTIONS PLUS NON-STAFF � SOUTH,OTHER EXPENSES,23/02/2023,10710194215,-500,SUPERHOG.COM
OXFORDSHIRE CC,SOCIAL AND COMMUNITY SERVICES,"	MTFC",ENTERTAINMENT EXPENSES,23/02/2023,10710194217,7.85,RED KANGAROO
OXFORDSHIRE CC,SOCIAL AND COMMUNITY SERVICES,"	MTFC",CATERING PROVISIONS,23/02/2023,10710194219,3.9,CO-OP GROUP 310626
OXFORDSHIRE CC,"CHILDRENS, YOUNG PEOPLE AND FAMILIES",DIDCOT MOVE-ON HOME,TELEPHONE - EQUIPMENT,23/02/2023,10710194225,39.99,ARGOS DIDCOT
OXFORDSHIRE CC,"CHILDRENS, YOUNG PEOPLE AND FAMILIES",CSS - ABINGDON,CATERING PROVISIONS,23/02/2023,10710194227,39.88,TESCO STORES 2008
OXFORDSHIRE CC,SOCIAL AND COMMUNITY SERVICES,CHILDREN IN CARE NON-STAFFING - NORTH,VEHICLE FUEL,23/02/2023,10710193915,42.92,TESCO PAY AT PUMP 4267
OXFORDSHIRE CC,CORPORATE CORE,LEADERSHIP TEAM,PAYMENTS TO TRANSPORT OPERATORS,23/02/2023,10710193927,54,WWW.GWR.COM
OXFORDSHIRE CC,"CHILDRENS, YOUNG PEOPLE AND FAMILIES",PAUSE PROGRAMME,ENTERTAINMENT EXPENSES,23/02/2023,10710193933,43.5,HOLLYWOOD BOWL
OXFORDSHIRE CC,"CHILDRENS, YOUNG PEOPLE AND FAMILIES",CSS - ABINGDON,CATERING PROVISIONS,23/02/2023,10710194229,0.4,TESCO STORES 6426
OXFORDSHIRE CC,ENVIRONMENT AND ECONOMY,HARMONY,MATERIALS,23/02/2023,10710193839,21.65,AMZNMKTPLACE
OXFORDSHIRE CC,ENVIRONMENT AND ECONOMY,HARMONY,MATERIALS,23/02/2023,10710193841,14.44,AMZNMKTPLACE
OXFORDSHIRE CC,SOCIAL AND COMMUNITY SERVICES,SCHOOLS FM CATERING AREA 2,MATERIALS,23/02/2023,10710193847,45.9,AMZNMKTPLACE AMAZON.CO
OXFORDSHIRE CC,SOCIAL AND COMMUNITY SERVICES,CSS WALLINGFORD,CATERING PROVISIONS,23/02/2023,10710193849,5,WAITROSE 675
OXFORDSHIRE CC,ENVIRONMENT AND ECONOMY,P&S OPERATIONAL REV,HIRE OF ACCOMMODATION AND FACILITIES,23/02/2023,10710193853,124.41,TRAVELODGE
OXFORDSHIRE CC,"CHILDRENS, YOUNG PEOPLE AND FAMILIES",FSP NON-STAFFING - CENTRAL,HIRED AND CONTRACTED SERVICES,23/02/2023,10710194155,128.83,FORT LOCKS SELF STORAG
OXFORDSHIRE CC,CORPORATE CORE,"MARKETING, COMMUNICATIONS & ENGAGEMENT","PUBLICITY, PROMOTIONS AND ADVERTISEMENT",23/02/2023,10710194163,500,GOOGLE ADS4896546035
OXFORDSHIRE CC,CORPORATE CORE,"MARKETING, COMMUNICATIONS & ENGAGEMENT","SUPPLIES, STATIONERY AND MATERIALS",23/02/2023,10710194165,120,UNAWARDS TICKETS
OXFORDSHIRE CC,"CHILDRENS, YOUNG PEOPLE AND FAMILIES",UASC POST 18,PAYMENT TO GOVERNMENT DEPARTMENTS,23/02/2023,10710194167,75,2MAA035576947 TD E-PMT
OXFORDSHIRE CC,SOCIAL AND COMMUNITY SERVICES,COMMUNITY PARTNERSHIP TEAM,MATERIALS,23/02/2023,10710193873,5.49,AMZNMKTPLACE
OXFORDSHIRE CC,SOCIAL AND COMMUNITY SERVICES,CSS - OXFORD,MATERIALS,23/02/2023,10710193875,50.15,ALDI STORES 775-142
OXFORDSHIRE CC,"CHILDRENS, YOUNG PEOPLE AND FAMILIES",FSP NON-STAFFING - CENTRAL,HIRE OF ACCOMMODATION AND FACILITIES,23/02/2023,10710194185,79.9,PREMIER INN
OXFORDSHIRE CC,"CHILDRENS, YOUNG PEOPLE AND FAMILIES","	LOOKED AFTER CITY 2",OTHER TRANSPORT ARRANGEMENTS,23/02/2023,10710194187,4.7,RINGGO PARKING
OXFORDSHIRE CC,"CHILDRENS, YOUNG PEOPLE AND FAMILIES",KINGFISHER,HIRED AND CONTRACTED SERVICES,23/02/2023,10710193883,"8,760.00",THE SAFETY BOX CIC
OXFORDSHIRE CC,"CHILDRENS, YOUNG PEOPLE AND FAMILIES",DIDCOT MOVE-ON HOME,MATERIALS,23/02/2023,10710193877,8.99,AMAZON PRIME 138FG8RX4
OXFORDSHIRE CC,CORPORATE CORE,INCOME TEAM,PAYMENT TO GOVERNMENT DEPARTMENTS,23/02/2023,10710193895,1.5,FIND A WILL
OXFORDSHIRE CC,CORPORATE CORE,,STATIONERY,23/02/2023,10710194201,224.96,LYRECO UK LTD
OXFORDSHIRE CC,CORPORATE CORE,,STATIONERY,23/02/2023,10710194203,4.15,LYRECO UK LTD
OXFORDSHIRE CC,CORPORATE CORE,,STATIONERY,23/02/2023,10710194205,9.96,LYRECO UK LTD
OXFORDSHIRE CC,CORPORATE CORE,INCOME TEAM,PAYMENT TO GOVERNMENT DEPARTMENTS,23/02/2023,10710193897,1.5,FIND A WILL
OXFORDSHIRE CC,CORPORATE CORE,OPERATIONS,MATERIALS,23/02/2023,10710194085,7.29,AMZNMKTPLACE
OXFORDSHIRE CC,CORPORATE CORE,OPERATIONS,MATERIALS,23/02/2023,10710194087,1.65,AMZNMKTPLACE
OXFORDSHIRE CC,CORPORATE CORE,OPERATIONS,MATERIALS,23/02/2023,10710194089,15.21,AMZNMKTPLACE
OXFORDSHIRE CC,SOCIAL AND COMMUNITY SERVICES,CSS - OXFORD,SUBSCRIPTIONS,23/02/2023,10710193787,36.2,HOLLYWOOD BOWL
OXFORDSHIRE CC,SOCIAL AND COMMUNITY SERVICES,CSS - OXFORD,MATERIALS,23/02/2023,10710193785,37.45,AMZNMKTPLACE
OXFORDSHIRE CC,SOCIAL AND COMMUNITY SERVICES,CSS - OXFORD,MATERIALS,23/02/2023,10710193789,27.38,AMZNMKTPLACE AMAZON.CO
OXFORDSHIRE CC,ENVIRONMENT AND ECONOMY,HARD FM,PREMISES REPAIRS,23/02/2023,10710193791,64.52,HG BUILDBASE OXFORD
OXFORDSHIRE CC,SOCIAL AND COMMUNITY SERVICES,CSS BICESTER,MATERIALS,23/02/2023,10710193795,7.99,TESCO SUBSCRIPTION
OXFORDSHIRE CC,"CHILDRENS, YOUNG PEOPLE AND FAMILIES",LEADERSHIP TEAM,OTHER TRANSPORT ARRANGEMENTS,23/02/2023,10710193797,7.1,TXW LONDON TAXI 75610
OXFORDSHIRE CC,"CHILDRENS, YOUNG PEOPLE AND FAMILIES",LEADERSHIP TEAM,OTHER TRANSPORT ARRANGEMENTS,23/02/2023,10710193799,2.5,TFL TRAVEL CH
OXFORDSHIRE CC,SOCIAL AND COMMUNITY SERVICES,CSS - OXFORD,MATERIALS,23/02/2023,10710194101,7.89,AMZNMKTPLACE
OXFORDSHIRE CC,SOCIAL AND COMMUNITY SERVICES,CSS - OXFORD,MATERIALS,23/02/2023,10710194103,8.88,AMZNMKTPLACE
OXFORDSHIRE CC,SOCIAL AND COMMUNITY SERVICES,CSS - OXFORD,MATERIALS,23/02/2023,10710194105,22.98,AMZNMKTPLACE
OXFORDSHIRE CC,SOCIAL AND COMMUNITY SERVICES,SCHOOLS FM CATERING AREA 4,CATERING PROVISIONS,23/02/2023,10710193807,15.3,CO-OPERATIVE FOOD
OXFORDSHIRE CC,SOCIAL AND COMMUNITY SERVICES,UASC 16&17,MATERIALS,23/02/2023,10710193801,145.95,SPORTSDIRECT 218
OXFORDSHIRE CC,"CHILDRENS, YOUNG PEOPLE AND FAMILIES",FSP NON-STAFFING - CENTRAL,PAYMENTS TO TRANSPORT OPERATORS,23/02/2023,10710193805,5.2,WWW.GWR.COM
OXFORDSHIRE CC,SOCIAL AND COMMUNITY SERVICES,SCHOOLS FM CATERING AREA 4,CATERING PROVISIONS,23/02/2023,10710193809,18,CO-OPERATIVE FOOD
OXFORDSHIRE CC,"CHILDRENS, YOUNG PEOPLE AND FAMILIES","	DISABILITIES TEAM-C",PAYMENTS TO TRANSPORT OPERATORS,23/02/2023,10710193813,60.31,TRAINLINE
OXFORDSHIRE CC,SOCIAL AND COMMUNITY SERVICES,"	CENTRAL LIBRARY",MATERIALS,23/02/2023,10710194115,5.98,EXTRA
OXFORDSHIRE CC,"CHILDRENS, YOUNG PEOPLE AND FAMILIES","	LOOKED AFTER CITY 2",OTHER TRANSPORT ARRANGEMENTS,23/02/2023,10710194109,6,OXFORDBUS.CO.UK
OXFORDSHIRE CC,ENVIRONMENT AND ECONOMY,MUSEUM CAFE,MATERIALS,23/02/2023,10710194117,215.82,SP DANDYS TOPSOIL
OXFORDSHIRE CC,SOCIAL AND COMMUNITY SERVICES,"	MUSEUMS COLLECTIONS",OTHER SERVICES,23/02/2023,10710194119,96,DUNELM LTD
OXFORDSHIRE CC,ENVIRONMENT AND ECONOMY,HARMONY,EXHIBITIONS (PURCHAS,23/02/2023,10710193827,90,AIMSUN PTY LTD
OXFORDSHIRE CC,SOCIAL AND COMMUNITY SERVICES,CSS BICESTER,MATERIALS,23/02/2023,10710193823,283.47,HOBBYCRAFT TRADING LIM
OXFORDSHIRE CC,ENVIRONMENT AND ECONOMY,HARMONY,MATERIALS,23/02/2023,10710193829,34.32,AMZNMKTPLACE
OXFORDSHIRE CC,ENVIRONMENT AND ECONOMY,HARMONY,MATERIALS,23/02/2023,10710193831,39.99,AMZNMKTPLACE
OXFORDSHIRE CC,ENVIRONMENT AND ECONOMY,HARMONY,MATERIALS,23/02/2023,10710193833,13.1,AMZNMKTPLACE
OXFORDSHIRE CC,ENVIRONMENT AND ECONOMY,HARMONY,MATERIALS,23/02/2023,10710193835,45.94,AMZNMKTPLACE
OXFORDSHIRE CC,ENVIRONMENT AND ECONOMY,HARMONY,MATERIALS,23/02/2023,10710193837,259.96,AMZNMKTPLACE
OXFORDSHIRE CC,SOCIAL AND COMMUNITY SERVICES,CSS WITNEY,MATERIALS,23/02/2023,10710194135,27.99,AMZNMKTPLACE
OXFORDSHIRE CC,SOCIAL AND COMMUNITY SERVICES,CSS WANTAGE,ENTERTAINMENT EXPENSES,23/02/2023,10710194137,10.86,HOLLYWOOD BOWL
OXFORDSHIRE CC,SOCIAL AND COMMUNITY SERVICES,CSS WANTAGE,OTHER SERVICES,23/02/2023,10710194139,26,ZETTLE_ JANET LYNN FOO
OXFORDSHIRE CC,ENVIRONMENT AND ECONOMY,"	COUNTY HALL",PAYMENTS TO TRANSPORT OPERATORS,23/02/2023,10710194145,14.2,GWR OXFORD SST
OXFORDSHIRE CC,ENVIRONMENT AND ECONOMY,DIDCOT LIBRARY,FIXTURES & FITTINGS,23/02/2023,10710194003,11.55,AMZNMKTPLACE AMAZON.CO
OXFORDSHIRE CC,ENVIRONMENT AND ECONOMY,DIDCOT LIBRARY,FIXTURES & FITTINGS,23/02/2023,10710194005,5.58,AMZNMKTPLACE AMAZON.CO
OXFORDSHIRE CC,"CHILDRENS, YOUNG PEOPLE AND FAMILIES",WITNEY,CATERING PROVISIONS,23/02/2023,10710194011,29.53,SAINSBURYS S/MKTS
OXFORDSHIRE CC,SOCIAL AND COMMUNITY SERVICES,COWLEY LIBRARY,"NEWSPAPERS, PERIODICALS AND PUBLICATIONS",23/02/2023,10710194309,53.7,KELBURNE ROAD NEWS
OXFORDSHIRE CC,"CHILDRENS, YOUNG PEOPLE AND FAMILIES",FAMILY SOLUTIONS PLUS NON-STAFF � SOUTH,OTHER TRANSPORT ARRANGEMENTS,23/02/2023,10710194317,3.5,REDROSE TRAVEL LTD
OXFORDSHIRE CC,"CHILDRENS, YOUNG PEOPLE AND FAMILIES",FSP STAFFING � CENTRAL,CATERING PROVISIONS,23/02/2023,10710194319,22.98,SP BUMBLETREE LTD
OXFORDSHIRE CC,"CHILDRENS, YOUNG PEOPLE AND FAMILIES",FAMILY SOLUTIONS PLUS NON-STAFF � SOUTH,OTHER TRANSPORT ARRANGEMENTS,23/02/2023,10710194321,2,ARRIVA THE SHIRES LIMI
OXFORDSHIRE CC,"CHILDRENS, YOUNG PEOPLE AND FAMILIES","BICESTER CC, LAUNTON RD",CATERING PROVISIONS,23/02/2023,10710194323,1.85,CO-OPERATIVE FOOD
OXFORDSHIRE CC,"CHILDRENS, YOUNG PEOPLE AND FAMILIES",CHILDREN IN CARE NON-STAFFING - SOUTH,CATERING PROVISIONS,23/02/2023,10710194325,11.64,SAINSBURYS S/MKTS
OXFORDSHIRE CC,ENVIRONMENT AND ECONOMY,HARD FM,HARDWARE AND CROCKERY,23/02/2023,10710194027,86,B AND Q
OXFORDSHIRE CC,"CHILDRENS, YOUNG PEOPLE AND FAMILIES",EYNSHAM,CATERING PROVISIONS,23/02/2023,10710194033,6,CO-OPERATIVE FOOD
OXFORDSHIRE CC,"CHILDRENS, YOUNG PEOPLE AND FAMILIES",CHILDREN IN CARE NON-STAFFING - SOUTH,CATERING,23/02/2023,10710194327,21.48,WETHERBY BK
OXFORDSHIRE CC,"CHILDRENS, YOUNG PEOPLE AND FAMILIES",CSS - ABINGDON,HARDWARE AND CROCKERY,23/02/2023,10710194335,22,HOMEBASE LTD
OXFORDSHIRE CC,"CHILDRENS, YOUNG PEOPLE AND FAMILIES",CSS - ABINGDON,HARDWARE AND CROCKERY,23/02/2023,10710194337,23.92,TOOLSTATION LTD
OXFORDSHIRE CC,"CHILDRENS, YOUNG PEOPLE AND FAMILIES",CSS - ABINGDON,CATERING PROVISIONS,23/02/2023,10710194339,2.6,TESCO STORES 6519
OXFORDSHIRE CC,CORPORATE CORE,BRIDGES GENERAL,PAYMENTS TO OTHER ESTABLISHMENTS,23/02/2023,10710194341,142.02,ENVIROMENT AGENCY
OXFORDSHIRE CC,"CHILDRENS, YOUNG PEOPLE AND FAMILIES",DIDCOT MOVE-ON HOME,ENTERTAINMENT EXPENSES,23/02/2023,10710194041,29.65,ATGTICKETS.COM
OXFORDSHIRE CC,"CHILDRENS, YOUNG PEOPLE AND FAMILIES",DIDCOT MOVE-ON HOME,PAYMENT TO GOVERNMENT DEPARTMENTS,23/02/2023,10710194039,10,HTTPS://LIVE.EKASHU.CO
OXFORDSHIRE CC,"CHILDRENS, YOUNG PEOPLE AND FAMILIES",CHILDREN IN CARE NON-STAFFING - CENTRL 2,ENTERTAINMENT EXPENSES,23/02/2023,10710194043,191,FORD FARM
OXFORDSHIRE CC,"CHILDRENS, YOUNG PEOPLE AND FAMILIES",CHILDREN IN CARE NON-STAFFING - NORTH,VEHICLE FUEL,23/02/2023,10710194045,27.28,W M MORRISON PETROL
OXFORDSHIRE CC,SOCIAL AND COMMUNITY SERVICES,SCHOOLS FM CATERING AREA 2,CATERING PROVISIONS,23/02/2023,10710194049,11.25,SAINSBURYS S/MKTS
OXFORDSHIRE CC,SOCIAL AND COMMUNITY SERVICES,SCHOOLS FM CATERING AREA 2,CATERING PROVISIONS,23/02/2023,10710194051,1.8,ASDA STORE 4442
OXFORDSHIRE CC,"CHILDRENS, YOUNG PEOPLE AND FAMILIES","	LEAVING CARE NORTH",OTHER PREMISES RELATED COSTS,23/02/2023,10710194057,342,PROPERTY SOLUTIONS
OXFORDSHIRE CC,SOCIAL AND COMMUNITY SERVICES,CSS WANTAGE,CATERING PROVISIONS,23/02/2023,10710193765,12,ASDA STORES 5123
OXFORDSHIRE CC,"CHILDRENS, YOUNG PEOPLE AND FAMILIES","	LOOKED AFTER CITY 1",OTHER TRANSPORT ARRANGEMENTS,23/02/2023,10710193767,84,OXFORD BUS CO
OXFORDSHIRE CC,CORPORATE CORE,BUSINESS INTELLECTUAL PROPERTY CENTRE,CATERING PROVISIONS,23/02/2023,10710194073,23.1,SAINSBURY'S S/MKT
OXFORDSHIRE CC,CORPORATE CORE,BUSINESS INTELLECTUAL PROPERTY CENTRE,CATERING PROVISIONS,23/02/2023,10710194075,12.6,SAINSBURYS S/MKTS
OXFORDSHIRE CC,"CHILDRENS, YOUNG PEOPLE AND FAMILIES",STEP INTO TRAINING,MATERIALS,23/02/2023,10710193941,16.72,AMZNMKTPLACE
OXFORDSHIRE CC,CORPORATE CORE,REGISTRAR,PURCHASE OF ADMIN IT EQUIPMENT,23/02/2023,10710193937,71.94,AMZNMKTPLACE
OXFORDSHIRE CC,"CHILDRENS, YOUNG PEOPLE AND FAMILIES",STEP INTO TRAINING,MATERIALS,23/02/2023,10710193939,28.22,AMZNMKTPLACE
OXFORDSHIRE CC,CORPORATE CORE,LIBRARY COLLECTIONS,"BOOKS, DVDS AND CDS",23/02/2023,10710193943,840.76,OVERDRIVE DIST
OXFORDSHIRE CC,"CHILDRENS, YOUNG PEOPLE AND FAMILIES",FAMILY SOLUTIONS PLUS NON-STAFF - NORTH,CATERING,23/02/2023,10710193953,14.25,ZETTLE_ ART CAFE
OXFORDSHIRE CC,"CHILDRENS, YOUNG PEOPLE AND FAMILIES",DIDCOT MOVE-ON HOME,CATERING PROVISIONS,23/02/2023,10710194253,27.32,SAINSBURYS S/MKTS
OXFORDSHIRE CC,"CHILDRENS, YOUNG PEOPLE AND FAMILIES","ABINGDON CC, STRATTON WAY",CATERING PROVISIONS,23/02/2023,10710194247,3.7,CO-OPERATIVE FOOD
OXFORDSHIRE CC,"CHILDRENS, YOUNG PEOPLE AND FAMILIES",UASC 16&17,OTHER TRANSPORT ARRANGEMENTS,23/02/2023,10710194249,9,OXFORD BUS COMPANY
OXFORDSHIRE CC,"CHILDRENS, YOUNG PEOPLE AND FAMILIES",DIDCOT MOVE-ON HOME,CATERING PROVISIONS,23/02/2023,10710194251,36.47,SAINSBURYS S/MKTS
OXFORDSHIRE CC,"CHILDRENS, YOUNG PEOPLE AND FAMILIES",DIDCOT MOVE-ON HOME,CATERING PROVISIONS,23/02/2023,10710194255,6.7,SAINSBURYS S/MKTS
OXFORDSHIRE CC,"CHILDRENS, YOUNG PEOPLE AND FAMILIES",KINGFISHER,CATERING PROVISIONS,23/02/2023,10710193963,3.85,ASDA STORES 4920
OXFORDSHIRE CC,"CHILDRENS, YOUNG PEOPLE AND FAMILIES","	RESIDENTIAL STRATEGY",CATERING PROVISIONS,23/02/2023,10710193965,2.5,SAINSBURYS S/MKTS
OXFORDSHIRE CC,"CHILDRENS, YOUNG PEOPLE AND FAMILIES",THAME E&A HOME,DRUGS AND MEDICAL SUPPLIES,23/02/2023,10710193967,49.95,BOOTS UK ECOMM
OXFORDSHIRE CC,"CHILDRENS, YOUNG PEOPLE AND FAMILIES",UASC 16&17,MATERIALS,23/02/2023,10710193981,4.95,SPORTSDIRECT 218
OXFORDSHIRE CC,"CHILDRENS, YOUNG PEOPLE AND FAMILIES",UASC 16&17,TRANSPORT TO SCHOOL,23/02/2023,10710193975,12.75,OXFORDBUS.CO.UK
OXFORDSHIRE CC,"CHILDRENS, YOUNG PEOPLE AND FAMILIES",UASC 16&17,TRANSPORT TO SCHOOL,23/02/2023,10710193977,25,WWW.THEKEY.CO.UK
OXFORDSHIRE CC,"CHILDRENS, YOUNG PEOPLE AND FAMILIES",UASC 16&17,TRANSPORT TO SCHOOL,23/02/2023,10710193979,40.5,WWW.THEKEY.CO.UK
OXFORDSHIRE CC,"CHILDRENS, YOUNG PEOPLE AND FAMILIES",UASC 16&17,RESIDENTIAL ACTIVITIES,23/02/2023,10710193983,21.99,THE GYM LIMITED
OXFORDSHIRE CC,"CHILDRENS, YOUNG PEOPLE AND FAMILIES",UASC 16&17,PAYMENT TO GOVERNMENT DEPARTMENTS,23/02/2023,10710193985,250,HMCTSLONDONCSE077P
OXFORDSHIRE CC,"CHILDRENS, YOUNG PEOPLE AND FAMILIES",UASC 16&17,PAYMENT TO GOVERNMENT DEPARTMENTS,23/02/2023,10710193987,272,HMCTSLONDONCSE077P
OXFORDSHIRE CC,"CHILDRENS, YOUNG PEOPLE AND FAMILIES",UASC 16&17,OTHER TRANSPORT ARRANGEMENTS,23/02/2023,10710193989,2,STGCOACH/CTYLINK
OXFORDSHIRE CC,SOCIAL AND COMMUNITY SERVICES,CSS - OXFORD,CATERING PROVISIONS,23/02/2023,10710193991,46.67,ALDI STORES 775-142
OXFORDSHIRE CC,"CHILDRENS, YOUNG PEOPLE AND FAMILIES",FAMILY SOLUTIONS PLUS NON-STAFF � SOUTH,HIRE OF ACCOMMODATION AND FACILITIES,23/02/2023,10710194299,58,PREMIER INN
OXFORDSHIRE CC,"CHILDRENS, YOUNG PEOPLE AND FAMILIES","	LEAVING CARE CITY 2",CLOTHING AND UNIFORMS,23/02/2023,10710194301,36,NEXT RETAIL LTD
OXFORDSHIRE CC,"CHILDRENS, YOUNG PEOPLE AND FAMILIES","	LEAVING CARE CITY 2",CATERING,23/02/2023,10710194303,5.91,MCDONALDS
OXFORDSHIRE CC,SOCIAL AND COMMUNITY SERVICES,SCHOOLS FM CATERING AREA 1,CATERING PROVISIONS,23/02/2023,10710194001,32.57,WM MORRISONS STORE
OXFORDSHIRE CC,"CHILDRENS, YOUNG PEOPLE AND FAMILIES","	MUSIC UNALLOCABLE",HIRE OF ACCOMMODATION AND FACILITIES,23/02/2023,10710193995,373.2,YOTEL CLERKENWELL
OXFORDSHIRE CC,"CHILDRENS, YOUNG PEOPLE AND FAMILIES","	LEAVING CARE SOUTH",RESIDENTIAL ACTIVITIES,23/02/2023,10710193999,15,HOLIDAY INNS
OXFORDSHIRE CC,"CHILDRENS, YOUNG PEOPLE AND FAMILIES",FAMILY SOLUTIONS PLUS NON-STAFF - NORTH,FURNITURE,22/02/2023,10705284497,100,KARPET KINGDOM
OXFORDSHIRE CC,"CHILDRENS, YOUNG PEOPLE AND FAMILIES",FAMILY SOLUTIONS PLUS NON-STAFF - NORTH,OTHER TRANSPORT ARRANGEMENTS,22/02/2023,10705284503,56,STAGECOACH SERVICE
OXFORDSHIRE CC,SOCIAL AND COMMUNITY SERVICES,CSS - BANBURY,ENTERTAINMENT EXPENSES,22/02/2023,10705284511,4.5,SPICEBALL LEISURE CENT
OXFORDSHIRE CC,SOCIAL AND COMMUNITY SERVICES,CSS - ABINGDON,MATERIALS,22/02/2023,10705284517,6.49,AMZNMKTPLACE AMAZON.CO
OXFORDSHIRE CC,"CHILDRENS, YOUNG PEOPLE AND FAMILIES",CHILDREN IN CARE NON-STAFFING - SOUTH,OTHER TRANSPORT ARRANGEMENTS,22/02/2023,10705284615,8.9,EXCEL PARKING (E)
OXFORDSHIRE CC,"CHILDRENS, YOUNG PEOPLE AND FAMILIES",SEND TRANSFORMATION,"SUPPLIES, STATIONERY AND MATERIALS",22/02/2023,10705284603,6.69,AMZNMKTPLACE
OXFORDSHIRE CC,ENVIRONMENT AND ECONOMY,"	NAT TRAILS GENERAL",HOSPITALITY EXPENSES,22/02/2023,10705284607,34.5,BARKBY GROUP PLC
OXFORDSHIRE CC,"CHILDRENS, YOUNG PEOPLE AND FAMILIES",CHILDREN IN CARE NON-STAFFING - SOUTH,HIRE OF ACCOMMODATION AND FACILITIES,22/02/2023,10705284611,110.29,PREMIER INN
OXFORDSHIRE CC,"CHILDRENS, YOUNG PEOPLE AND FAMILIES",HOUSE PROJECT,CATERING,22/02/2023,10705283589,8.4,COSTA COFFEE 43011357
OXFORDSHIRE CC,CORPORATE CORE,REGISTRAR,"SUPPLIES, STATIONERY AND MATERIALS",22/02/2023,10705283603,39.98,AMZNMKTPLACE AMAZON.CO
OXFORDSHIRE CC,"CHILDRENS, YOUNG PEOPLE AND FAMILIES",UASC POST 18,LICENCES,22/02/2023,10705283613,159,TVLICENSING.CO.UK
OXFORDSHIRE CC,SOCIAL AND COMMUNITY SERVICES,CSS WANTAGE,CATERING PROVISIONS,22/02/2023,10705283999,-27.95,ASDA GROCERIES ONLINE
OXFORDSHIRE CC,"CHILDRENS, YOUNG PEOPLE AND FAMILIES",SEND TRANSFORMATION,"SUPPLIES, STATIONERY AND MATERIALS",22/02/2023,10705284585,6.96,AMZNMKTPLACE
OXFORDSHIRE CC,"CHILDRENS, YOUNG PEOPLE AND FAMILIES",FSP STAFFING � CENTRAL,OTHER TRANSPORT ARRANGEMENTS,22/02/2023,10705284569,2,READING TRANSPORT LIMI
OXFORDSHIRE CC,"CHILDRENS, YOUNG PEOPLE AND FAMILIES",FSP STAFFING � CENTRAL,CATERING,22/02/2023,10705284575,64.45,AZZURRI RESTAURANT
OXFORDSHIRE CC,"CHILDRENS, YOUNG PEOPLE AND FAMILIES",FSP STAFFING � CENTRAL,PAYMENTS TO TRANSPORT OPERATORS,22/02/2023,10705284579,7.1,GWR OXFORD SST
OXFORDSHIRE CC,"CHILDRENS, YOUNG PEOPLE AND FAMILIES",SEND TRANSFORMATION,"SUPPLIES, STATIONERY AND MATERIALS",22/02/2023,10705284589,3.99,AMZNMKTPLACE
OXFORDSHIRE CC,"CHILDRENS, YOUNG PEOPLE AND FAMILIES",SEND TRANSFORMATION,"SUPPLIES, STATIONERY AND MATERIALS",22/02/2023,10705284593,14.42,AMZNMKTPLACE
OXFORDSHIRE CC,"CHILDRENS, YOUNG PEOPLE AND FAMILIES",SEND TRANSFORMATION,"SUPPLIES, STATIONERY AND MATERIALS",22/02/2023,10705284597,18.64,AMZNMKTPLACE
OXFORDSHIRE CC,"CHILDRENS, YOUNG PEOPLE AND FAMILIES",SEND TRANSFORMATION,"SUPPLIES, STATIONERY AND MATERIALS",22/02/2023,10705284601,5.99,AMZNMKTPLACE
OXFORDSHIRE CC,ENTERPRISEVC,,CAR LEASING - PRIVATE RENTALS,22/02/2023,10705284255,89.74,ENTERPRISE RENT-A-CAR
OXFORDSHIRE CC,ENTERPRISEVC,,CAR LEASING - PRIVATE RENTALS,22/02/2023,10705284241,73.96,ENTERPRISE RENT-A-CAR
OXFORDSHIRE CC,ENTERPRISEVC,,CAR LEASING - PRIVATE RENTALS,22/02/2023,10705284245,124.07,ENTERPRISE RENT-A-CAR
OXFORDSHIRE CC,ENTERPRISEVC,,CAR LEASING - PRIVATE RENTALS,22/02/2023,10705284251,37.84,ENTERPRISE RENT-A-CAR
OXFORDSHIRE CC,ENTERPRISEVC,,CAR LEASING - PRIVATE RENTALS,22/02/2023,10705284259,192.68,ENTERPRISE RENT-A-CAR
OXFORDSHIRE CC,ENTERPRISEVC,,CAR LEASING - PRIVATE RENTALS,22/02/2023,10705284263,77.75,ENTERPRISE RENT-A-CAR
OXFORDSHIRE CC,ENTERPRISEVC,,CAR LEASING - PRIVATE RENTALS,22/02/2023,10705284267,62.87,ENTERPRISE RENT-A-CAR
OXFORDSHIRE CC,ENTERPRISEVC,,CAR LEASING - PRIVATE RENTALS,22/02/2023,10705284271,73.1,ENTERPRISE RENT-A-CAR
OXFORDSHIRE CC,SOCIAL AND COMMUNITY SERVICES,"	MTFC",MATERIALS,22/02/2023,10705284357,0.99,TOY GALAXY
OXFORDSHIRE CC,SOCIAL AND COMMUNITY SERVICES,"	MTFC",ENTERTAINMENT EXPENSES,22/02/2023,10705284345,27.67,FAIRYTALE FARM
OXFORDSHIRE CC,SOCIAL AND COMMUNITY SERVICES,"	MTFC",ENTERTAINMENT EXPENSES,22/02/2023,10705284349,6.4,FAIRYTALE FARM
OXFORDSHIRE CC,SOCIAL AND COMMUNITY SERVICES,"	MTFC",ENTERTAINMENT EXPENSES,22/02/2023,10705284355,2,FAIRYTALE FARM
OXFORDSHIRE CC,SOCIAL AND COMMUNITY SERVICES,"	MTFC",MATERIALS,22/02/2023,10705284361,2.99,TOY GALAXY
OXFORDSHIRE CC,SOCIAL AND COMMUNITY SERVICES,"	MTFC",MATERIALS,22/02/2023,10705284365,6,THE ENTERTAINER 92
OXFORDSHIRE CC,SOCIAL AND COMMUNITY SERVICES,"	MTFC",CATERING,22/02/2023,10705284369,9.2,ZETTLE_ GELATERIA ALFO
OXFORDSHIRE CC,CORPORATE CORE,SCHOOLS FM CATERING AREA 1,VEHICLE FUEL,22/02/2023,10705284375,6.3,TEXACO WORTHS MOTO
OXFORDSHIRE CC,CORPORATE CORE,SCHOOLS FM CATERING AREA 1,CATERING PROVISIONS,22/02/2023,10705284379,1.95,TESCO-STORES 2305
OXFORDSHIRE CC,"CHILDRENS, YOUNG PEOPLE AND FAMILIES",UASC 16&17,OTHER TRANSPORT ARRANGEMENTS,22/02/2023,10705284419,9,OXFORD BUS COMPANY
OXFORDSHIRE CC,"CHILDRENS, YOUNG PEOPLE AND FAMILIES",40 THE MOORS,CATERING,22/02/2023,10705284435,3.89,MCDONALDS
OXFORDSHIRE CC,"CHILDRENS, YOUNG PEOPLE AND FAMILIES","	LOOKED AFTER SOUTH",SUBSCRIPTIONS,22/02/2023,10705284441,13.09,HOLLYWOOD BOWL
OXFORDSHIRE CC,"CHILDRENS, YOUNG PEOPLE AND FAMILIES","	LOOKED AFTER SOUTH",SUBSCRIPTIONS,22/02/2023,10705284445,13.09,HOLLYWOOD BOWL
OXFORDSHIRE CC,"CHILDRENS, YOUNG PEOPLE AND FAMILIES",PAUSE PROGRAMME,PAYMENTS TO TRANSPORT OPERATORS,22/02/2023,10705283573,8.45,TRAINLINE
OXFORDSHIRE CC,SOCIAL AND COMMUNITY SERVICES,CSS WITNEY,MATERIALS,22/02/2023,10705283973,23.97,AMZNMKTPLACE
OXFORDSHIRE CC,SOCIAL AND COMMUNITY SERVICES,CSS WITNEY,MATERIALS,22/02/2023,10705283971,29.28,AMAZON.CO.UK 132W08704
OXFORDSHIRE CC,SOCIAL AND COMMUNITY SERVICES,CSS WANTAGE,CATERING PROVISIONS,22/02/2023,10705283977,53.94,SP MILLETS FARM ONLI
OXFORDSHIRE CC,SOCIAL AND COMMUNITY SERVICES,CSS WANTAGE,ENTERTAINMENT EXPENSES,22/02/2023,10705283983,14.48,HOLLYWOOD BOWL
OXFORDSHIRE CC,SOCIAL AND COMMUNITY SERVICES,CSS WANTAGE,ENTERTAINMENT EXPENSES,22/02/2023,10705283985,3.62,HOLLYWOOD BOWL
OXFORDSHIRE CC,SOCIAL AND COMMUNITY SERVICES,CSS WANTAGE,ENTERTAINMENT EXPENSES,22/02/2023,10705283989,18.1,HOLLYWOOD BOWL
OXFORDSHIRE CC,SOCIAL AND COMMUNITY SERVICES,CSS WANTAGE,CATERING PROVISIONS,22/02/2023,10705283993,107.98,ASDA GROCERIES ONLINE
OXFORDSHIRE CC,SOCIAL AND COMMUNITY SERVICES,CSS WANTAGE,CATERING PROVISIONS,22/02/2023,10705283997,1.85,SAINSBURYS S/MKTS
OXFORDSHIRE CC,"CHILDRENS, YOUNG PEOPLE AND FAMILIES","	LOOKED AFTER CITY 2",MATERIALS,22/02/2023,10705284151,199.97,SPORTSBIKESHOP LTD
OXFORDSHIRE CC,"CHILDRENS, YOUNG PEOPLE AND FAMILIES",EYNSHAM,CATERING PROVISIONS,22/02/2023,10705284159,72.57,TESCO STORES 2008
OXFORDSHIRE CC,"CHILDRENS, YOUNG PEOPLE AND FAMILIES",DIDCOT MOVE-ON HOME,CATERING PROVISIONS,22/02/2023,10705284393,8.15,TESCO STORES 2413
OXFORDSHIRE CC,CORPORATE CORE,ICT OPERATIONS & MAI,PURCHASE OF IT EQUIPMENT,22/02/2023,10705284477,16.82,AMZN MKTP UK 1341Q2K94
OXFORDSHIRE CC,"CHILDRENS, YOUNG PEOPLE AND FAMILIES",40 THE MOORS,CATERING PROVISIONS,22/02/2023,10705284489,168.71,SAINSBURYS.CO.UK
OXFORDSHIRE CC,ENVIRONMENT AND ECONOMY,EET SERVICE,MATERIALS,22/02/2023,10705284187,60,HIGH STREET VOUCHERS
OXFORDSHIRE CC,SOCIAL AND COMMUNITY SERVICES,BICESTER LIBRARY,MATERIALS,22/02/2023,10705284191,30.99,AMZNMKTPLACE
OXFORDSHIRE CC,"CHILDRENS, YOUNG PEOPLE AND FAMILIES",CNTL ERLY HELP-BBLEY,CATERING PROVISIONS,22/02/2023,10705284201,4.6,SAINSBURYS S/MKTS
OXFORDSHIRE CC,"CHILDRENS, YOUNG PEOPLE AND FAMILIES",HOUSE PROJECT,CATERING,22/02/2023,10705284291,5.25,COSTA COFFEE 43011357
OXFORDSHIRE CC,ENTERPRISEVC,,CAR LEASING - PRIVATE RENTALS,22/02/2023,10705284275,77.75,ENTERPRISE RENT-A-CAR
OXFORDSHIRE CC,"CHILDRENS, YOUNG PEOPLE AND FAMILIES",FAMILY SOLUTIONS PLUS NON-STAFF - NORTH,STATIONERY,22/02/2023,10705284279,3.49,AMZNMKTPLACE AMAZON.CO
OXFORDSHIRE CC,"CHILDRENS, YOUNG PEOPLE AND FAMILIES",HOUSE PROJECT,HOSPITALITY EXPENSES,22/02/2023,10705284287,5.35,TANDEM
OXFORDSHIRE CC,"CHILDRENS, YOUNG PEOPLE AND FAMILIES",HOUSE PROJECT,CATERING PROVISIONS,22/02/2023,10705284295,5.34,TODAY'S LOCAL
OXFORDSHIRE CC,"CHILDRENS, YOUNG PEOPLE AND FAMILIES","	MUSIC UNALLOCABLE",IT SOFTWARE,22/02/2023,10705283741,312,SP PERCUSSIONPLUS
OXFORDSHIRE CC,CORPORATE CORE,SCHOOLS FM CATERING AREA 4,CATERING PROVISIONS,22/02/2023,10705283753,38.75,SAINSBURYS S/MKTS
OXFORDSHIRE CC,"CHILDRENS, YOUNG PEOPLE AND FAMILIES","	LAC PUPIL PREMIUM","BOOKS, DVDS AND CDS",22/02/2023,10705283765,3.05,AMZNMKTPLACE
OXFORDSHIRE CC,"CHILDRENS, YOUNG PEOPLE AND FAMILIES","	LAC PUPIL PREMIUM","BOOKS, DVDS AND CDS",22/02/2023,10705283767,12.85,AMZNMKTPLACE
OXFORDSHIRE CC,"CHILDRENS, YOUNG PEOPLE AND FAMILIES","	LAC PUPIL PREMIUM","BOOKS, DVDS AND CDS",22/02/2023,10705283771,8.26,AMZNMKTPLACE
OXFORDSHIRE CC,"CHILDRENS, YOUNG PEOPLE AND FAMILIES","	LAC PUPIL PREMIUM","SUPPLIES, STATIONERY AND MATERIALS",22/02/2023,10705283773,168.98,AMZNMKTPLACE
OXFORDSHIRE CC,"CHILDRENS, YOUNG PEOPLE AND FAMILIES",40 THE MOORS,HARDWARE AND CROCKERY,22/02/2023,10705284069,3.29,SCREWFIX DIR LTD
OXFORDSHIRE CC,"CHILDRENS, YOUNG PEOPLE AND FAMILIES",40 THE MOORS,CATERING PROVISIONS,22/02/2023,10705284053,61.19,POUNDSTRETCHER 700
OXFORDSHIRE CC,"CHILDRENS, YOUNG PEOPLE AND FAMILIES",40 THE MOORS,HARDWARE AND CROCKERY,22/02/2023,10705284057,58,B AND Q
OXFORDSHIRE CC,"CHILDRENS, YOUNG PEOPLE AND FAMILIES",40 THE MOORS,CATERING PROVISIONS,22/02/2023,10705284071,207.35,SAINSBURY'S S/MKT
OXFORDSHIRE CC,"CHILDRENS, YOUNG PEOPLE AND FAMILIES",EYNSHAM,CATERING EQUIPMENT,22/02/2023,10705284221,20.7,AMZNMKTPLACE AMAZON.CO
OXFORDSHIRE CC,"CHILDRENS, YOUNG PEOPLE AND FAMILIES",EYNSHAM,FURNITURE,22/02/2023,10705284217,27,AMAZON.CO.UK 135FO1K24
OXFORDSHIRE CC,CORPORATE CORE,,STATIONERY,22/02/2023,10705284225,32.56,LYRECO UK LTD
OXFORDSHIRE CC,CORPORATE CORE,,STATIONERY,22/02/2023,10705284229,20.83,LYRECO UK LTD
OXFORDSHIRE CC,CORPORATE CORE,,STATIONERY,22/02/2023,10705284233,17.04,LYRECO UK LTD
OXFORDSHIRE CC,ENTERPRISEVC,,CAR LEASING - PRIVATE RENTALS,22/02/2023,10705284235,86.4,ENTERPRISE RENT-A-CAR
OXFORDSHIRE CC,ENTERPRISEVC,,CAR LEASING - PRIVATE RENTALS,22/02/2023,10705284239,46.07,ENTERPRISE RENT-A-CAR
OXFORDSHIRE CC,"CHILDRENS, YOUNG PEOPLE AND FAMILIES",KINGFISHER,OTHER TRANSPORT ARRANGEMENTS,22/02/2023,10705284319,-77,STAGECOACH SERVICE
OXFORDSHIRE CC,SOCIAL AND COMMUNITY SERVICES,"	MTFC",ENTERTAINMENT EXPENSES,22/02/2023,10705284343,23.97,FAIRYTALE FARM
OXFORDSHIRE CC,"CHILDRENS, YOUNG PEOPLE AND FAMILIES",DIDCOT MOVE-ON HOME,CATERING PROVISIONS,22/02/2023,10705284397,7.06,TESCO STORES 2413
OXFORDSHIRE CC,"CHILDRENS, YOUNG PEOPLE AND FAMILIES",PAUSE PROGRAMME,CATERING,22/02/2023,10705283777,4.35,COSTA COFFEE 43011690
OXFORDSHIRE CC,"CHILDRENS, YOUNG PEOPLE AND FAMILIES",PAUSE PROGRAMME,CATERING,22/02/2023,10705283779,7.75,COSTA COFFEE 43011690
OXFORDSHIRE CC,ENVIRONMENT AND ECONOMY,"	MOUNT HOUSE",MATERIALS,22/02/2023,10705283933,13.2,AMAZON.CO.UK 136G38KI4
OXFORDSHIRE CC,"CHILDRENS, YOUNG PEOPLE AND FAMILIES","	LEAVING CARE NORTH",OTHER TRANSPORT ARRANGEMENTS,22/02/2023,10705283945,6.2,UNION STREET CAR PARK
OXFORDSHIRE CC,SOCIAL AND COMMUNITY SERVICES,SCHOOLS FM CATERING AREA 2,CATERING PROVISIONS,22/02/2023,10705283815,37.99,TESCO STORES 2994
OXFORDSHIRE CC,SOCIAL AND COMMUNITY SERVICES,COMMUNITY PARTNERSHIP TEAM,CATERING PROVISIONS,22/02/2023,10705283477,15.28,B&M 514 - DICOT
OXFORDSHIRE CC,SOCIAL AND COMMUNITY SERVICES,COMMUNITY PARTNERSHIP TEAM,CATERING PROVISIONS,22/02/2023,10705283481,25.23,TESCO STORES 2413
OXFORDSHIRE CC,SOCIAL AND COMMUNITY SERVICES,CSS - OXFORD,CATERING PROVISIONS,22/02/2023,10705283483,7.51,ALDI STORES 775-142
OXFORDSHIRE CC,"CHILDRENS, YOUNG PEOPLE AND FAMILIES",LOCALITY & COMMUNITY SUPPORT SERVICE,OTHER TRAINING COURSES AND QUALIFICATION,22/02/2023,10705283499,"1,300.00",ANNA FREUD CENTRE
OXFORDSHIRE CC,"CHILDRENS, YOUNG PEOPLE AND FAMILIES",DISABILITIES TEAM S,OTHER TRANSPORT ARRANGEMENTS,22/02/2023,10705283495,"1,073.75",SQ  CIARASCARS ALLOA
OXFORDSHIRE CC,CORPORATE CORE,INCOME TEAM,PAYMENT TO GOVERNMENT DEPARTMENTS,22/02/2023,10705283525,11,OXFORDSHIRE CC WEB1
OXFORDSHIRE CC,"CHILDRENS, YOUNG PEOPLE AND FAMILIES",SCHOOLS FM CATERING AREA 3,CATERING PROVISIONS,22/02/2023,10705283677,8.6,TESCO STORES 4338
OXFORDSHIRE CC,CORPORATE CORE,"	ORGANISATIONAL DEV'T",POSTAGE AND DELIVERY,22/02/2023,10705283901,25.35,ROYAL MAIL GROUP LTD
OXFORDSHIRE CC,"CHILDRENS, YOUNG PEOPLE AND FAMILIES","	RESIDENTIAL STRATEGY",MATERIALS,22/02/2023,10705283543,18,WWW.ARGOS.CO.UK
OXFORDSHIRE CC,"CHILDRENS, YOUNG PEOPLE AND FAMILIES",40 THE MOORS,PAYMENTS TO TRANSPORT OPERATORS,22/02/2023,10705283529,13.85,TRAINLINE.COM
OXFORDSHIRE CC,"CHILDRENS, YOUNG PEOPLE AND FAMILIES","	RESIDENTIAL STRATEGY",MATERIALS,22/02/2023,10705283535,189,WWW.ARGOS.CO.UK
OXFORDSHIRE CC,"CHILDRENS, YOUNG PEOPLE AND FAMILIES","	RESIDENTIAL STRATEGY",MATERIALS,22/02/2023,10705283539,189,WWW.ARGOS.CO.UK
OXFORDSHIRE CC,"CHILDRENS, YOUNG PEOPLE AND FAMILIES",40 THE MOORS,CATERING,22/02/2023,10705283545,53.92,DELIVEROO
OXFORDSHIRE CC,SHARED SERVICES,CSC SUPP & SERVICES,POSTAGE AND DELIVERY,22/02/2023,10705283553,8.45,ROYAL MAIL GROUP LTD
OXFORDSHIRE CC,"CHILDRENS, YOUNG PEOPLE AND FAMILIES","	RESIDENTIAL STRATEGY",MATERIALS,22/02/2023,10705283681,20,WITNEY INSIDE SAINSBUR
OXFORDSHIRE CC,"CHILDRENS, YOUNG PEOPLE AND FAMILIES","	RESIDENTIAL STRATEGY",MATERIALS,22/02/2023,10705283685,29.98,WITNEY INSIDE SAINSBUR
OXFORDSHIRE CC,"CHILDRENS, YOUNG PEOPLE AND FAMILIES","	RESIDENTIAL STRATEGY",MATERIALS,22/02/2023,10705283689,38,TIMPSON LTD
OXFORDSHIRE CC,SOCIAL AND COMMUNITY SERVICES,CSS - OXFORD,CATERING PROVISIONS,22/02/2023,10705283705,25.87,ALDI STORES 775-142
OXFORDSHIRE CC,"CHILDRENS, YOUNG PEOPLE AND FAMILIES",THAME E&A HOME,VEHICLE FUEL,22/02/2023,10705283709,5.5,THAME BP SF CONNECT
OXFORDSHIRE CC,"CHILDRENS, YOUNG PEOPLE AND FAMILIES",UASC 16&17,VEHICLE FUEL,22/02/2023,10705283717,31.32,BP FAMILY FARM CONNECT
OXFORDSHIRE CC,"CHILDRENS, YOUNG PEOPLE AND FAMILIES",UASC 16&17,RESIDENTIAL ACTIVITIES,22/02/2023,10705283721,25,RESULTS HEALTH CLUBS (
OXFORDSHIRE CC,"CHILDRENS, YOUNG PEOPLE AND FAMILIES",NTS UASC AGENCY,"SUPPLIES, STATIONERY AND MATERIALS",22/02/2023,10705283427,1.79,SPAR SUPER STORE
OXFORDSHIRE CC,"CHILDRENS, YOUNG PEOPLE AND FAMILIES",NTS UASC AGENCY,"SUPPLIES, STATIONERY AND MATERIALS",22/02/2023,10705283427,1.49,SPAR SUPER STORE
OXFORDSHIRE CC,ENVIRONMENT AND ECONOMY,HARMONY,HIRE OF ACCOMMODATION AND FACILITIES,22/02/2023,10705283417,"-1,500.85",HOTEL SEVENTY
OXFORDSHIRE CC,"CHILDRENS, YOUNG PEOPLE AND FAMILIES",NTS UASC AGENCY,DRUGS AND MEDICAL SUPPLIES,22/02/2023,10705283431,6.29,SAVERS HEALTH & BEAUTY
OXFORDSHIRE CC,"CHILDRENS, YOUNG PEOPLE AND FAMILIES","	LEAVING CARE CITY 1",OTHER TRANSPORT ARRANGEMENTS,22/02/2023,10705283451,1.1,CHERWELL
OXFORDSHIRE CC,"CHILDRENS, YOUNG PEOPLE AND FAMILIES",CHILDREN IN CARE NON-STAFFING - SOUTH,MATERIALS,22/02/2023,10705283267,85.92,BRITISH GAS ONLINE
OXFORDSHIRE CC,"CHILDRENS, YOUNG PEOPLE AND FAMILIES",CHILDREN IN CARE NON-STAFFING - SOUTH,MATERIALS,22/02/2023,10705283263,819.28,BRITISH GAS ONLINE
OXFORDSHIRE CC,"CHILDRENS, YOUNG PEOPLE AND FAMILIES",CHILDREN IN CARE NON-STAFFING - SOUTH,PAYMENT TO GOVERNMENT DEPARTMENTS,22/02/2023,10705283269,14,GEN REGISTER OFFICE
OXFORDSHIRE CC,"CHILDRENS, YOUNG PEOPLE AND FAMILIES",ATV ADOPTION WOODLEY,HIRE OF ACCOMMODATION AND FACILITIES,22/02/2023,10705283273,"1,000.00",SELECTSA
OXFORDSHIRE CC,"CHILDRENS, YOUNG PEOPLE AND FAMILIES",ATV ADOPTION WOODLEY,HIRE OF ACCOMMODATION AND FACILITIES,22/02/2023,10705283277,800.4,SELECTSA
OXFORDSHIRE CC,"CHILDRENS, YOUNG PEOPLE AND FAMILIES",WITNEY,CATERING PROVISIONS,22/02/2023,10705283281,11.9,SAINSBURYS S/MKTS
OXFORDSHIRE CC,"CHILDRENS, YOUNG PEOPLE AND FAMILIES",KINGFISHER,MATERIALS,22/02/2023,10705283293,257.95,WWW.ARGOS.CO.UK
OXFORDSHIRE CC,"CHILDRENS, YOUNG PEOPLE AND FAMILIES","	LOOKED AFTER CITY 1",MATERIALS,22/02/2023,10705283295,18,SPORTSDIRECT 218
OXFORDSHIRE CC,"CHILDRENS, YOUNG PEOPLE AND FAMILIES","	LOOKED AFTER CITY 1",MATERIALS,22/02/2023,10705283299,31.99,SPORTSDIRECT 218
OXFORDSHIRE CC,"CHILDRENS, YOUNG PEOPLE AND FAMILIES","	LOOKED AFTER CITY 1",MATERIALS,22/02/2023,10705283303,63.49,SPORTSDIRECT 218
OXFORDSHIRE CC,ENVIRONMENT AND ECONOMY,HARD FM,PREMISES REPAIRS,22/02/2023,10705283309,19.98,HALFORDS E.COMM
OXFORDSHIRE CC,ENVIRONMENT AND ECONOMY,HARD FM,PREMISES REPAIRS,22/02/2023,10705283313,13.97,TOOLSTATION LTD
OXFORDSHIRE CC,ENVIRONMENT AND ECONOMY,HARD FM,PREMISES REPAIRS,22/02/2023,10705283319,25.46,TOOLSTATION LTD
OXFORDSHIRE CC,SOCIAL AND COMMUNITY SERVICES,CSS - OXFORD,CATERING PROVISIONS,22/02/2023,10705283339,37.02,ALDI STORES 775-142
OXFORDSHIRE CC,ENVIRONMENT AND ECONOMY,HARD FM,PREMISES REPAIRS,22/02/2023,10705283323,11.09,SYDENHAMS LTD
OXFORDSHIRE CC,ENVIRONMENT AND ECONOMY,HARD FM,PREMISES REPAIRS,22/02/2023,10705283327,7.62,TRAVIS PERKINS
OXFORDSHIRE CC,SOCIAL AND COMMUNITY SERVICES,CSS - OXFORD,CATERING PROVISIONS,22/02/2023,10705283335,7.8,TESCO STORES 2994
OXFORDSHIRE CC,"CHILDRENS, YOUNG PEOPLE AND FAMILIES",LEADERSHIP TEAM,OTHER TRANSPORT ARRANGEMENTS,22/02/2023,10705283345,27.63,ZETTLE_ ART CAFE
OXFORDSHIRE CC,SOCIAL AND COMMUNITY SERVICES,SCHOOLS FM CATERING AREA 4,CATERING PROVISIONS,22/02/2023,10705283379,35.04,ALDI 126 775
OXFORDSHIRE CC,CORPORATE CORE,LIBRARY COLLECTIONS,"SUPPLIES, STATIONERY AND MATERIALS",22/02/2023,10705283385,120,EB  UNIVERSAL LIBRARY
OXFORDSHIRE CC,"CHILDRENS, YOUNG PEOPLE AND FAMILIES","	LEAVING CARE CITY 1",IT SOFTWARE,22/02/2023,10705283627,100,MYTRIPBUS  REDLINE BUS
OXFORDSHIRE CC,"CHILDRENS, YOUNG PEOPLE AND FAMILIES","	LEAVING CARE CITY 1",MATERIALS,22/02/2023,10705283629,106.5,ONE4ALL
OXFORDSHIRE CC,"CHILDRENS, YOUNG PEOPLE AND FAMILIES","	RIVERSIDE CENTRE",CATERING PROVISIONS,22/02/2023,10705283633,92.45,KELLY KETTLE COMPANY
OXFORDSHIRE CC,"CHILDRENS, YOUNG PEOPLE AND FAMILIES",CHILDREN IN CARE NON-STAFFING - NORTH,OTHER TRANSPORT ARRANGEMENTS,22/02/2023,10705283805,8.2,M6 TOLL
OXFORDSHIRE CC,ENVIRONMENT AND ECONOMY,"	ROW MAINT",EQUIPMENT,22/02/2023,10705283793,742.81,FAROL
OXFORDSHIRE CC,"CHILDRENS, YOUNG PEOPLE AND FAMILIES","	LEAVING CARE CITY 2",CATERING,22/02/2023,10705283797,11.08,MCDONALDS
OXFORDSHIRE CC,"CHILDRENS, YOUNG PEOPLE AND FAMILIES","	LEAVING CARE CITY 2",CATERING,22/02/2023,10705283799,11.3,MCDONALDS
OXFORDSHIRE CC,"CHILDRENS, YOUNG PEOPLE AND FAMILIES",CHILDREN IN CARE NON-STAFFING - NORTH,OTHER TRANSPORT ARRANGEMENTS,22/02/2023,10705283809,8.2,M6 TOLL
OXFORDSHIRE CC,SOCIAL AND COMMUNITY SERVICES,SCHOOLS FM CATERING AREA 2,CATERING PROVISIONS,22/02/2023,10705283811,27.28,BOOKER LTD - 38584104
OXFORDSHIRE CC,"CHILDRENS, YOUNG PEOPLE AND FAMILIES",UASC 16&17,PAYMENTS TO HEALTH AUTHORITIES,21/02/2023,10701206183,25,RESULTS HEALTH CLUBS (
OXFORDSHIRE CC,SOCIAL AND COMMUNITY SERVICES,CSS - ABINGDON,MATERIALS,21/02/2023,10701206789,31.46,AMZNMKTPLACE AMAZON.CO
OXFORDSHIRE CC,"CHILDRENS, YOUNG PEOPLE AND FAMILIES","	LEAVING CARE NORTH",CATERING PROVISIONS,21/02/2023,10701206807,20,TESCO GIFT CARD
OXFORDSHIRE CC,CORPORATE CORE,"	CHAIRMANS ALLOWANCE",ENTERTAINMENT EXPENSES,21/02/2023,10701206813,7.21,EB  LORD MAYOR OF OXFO
OXFORDSHIRE CC,CORPORATE CORE,"	CHAIRMANS ALLOWANCE",ENTERTAINMENT EXPENSES,21/02/2023,10701206817,40,EB  SUSTAINABALL-THE M
OXFORDSHIRE CC,"CHILDRENS, YOUNG PEOPLE AND FAMILIES",40 THE MOORS,CLOTHING AND UNIFORMS,21/02/2023,10701206075,-25.78,BOOHOO.COM UK LIMITED
OXFORDSHIRE CC,SOCIAL AND COMMUNITY SERVICES,"	KINGFISHER",CATERING PROVISIONS,21/02/2023,10701206685,20,SPAR EYNSHAM
OXFORDSHIRE CC,SOCIAL AND COMMUNITY SERVICES,"	MTFC",CATERING,21/02/2023,10701206695,71.67,PIZZA CALZONE RISTORAN
OXFORDSHIRE CC,SOCIAL AND COMMUNITY SERVICES,"	MTFC",ENTERTAINMENT EXPENSES,21/02/2023,10701206697,25.9,WWW.REDKANGAROO.CO.UK
OXFORDSHIRE CC,SOCIAL AND COMMUNITY SERVICES,"	MTFC",CATERING,21/02/2023,10701206699,8.05,COSTA COFFEE 43011153
OXFORDSHIRE CC,SOCIAL AND COMMUNITY SERVICES,"	MTFC",OTHER TRANSPORT ARRANGEMENTS,21/02/2023,10701206703,1.8,CAR PARK CHARGES
OXFORDSHIRE CC,CORPORATE CORE,SCHOOLS FM CATERING AREA 1,CATERING PROVISIONS,21/02/2023,10701206707,11.55,TESCO STORES
OXFORDSHIRE CC,"CHILDRENS, YOUNG PEOPLE AND FAMILIES","	LEAVING CARE NORTH",STATIONERY,21/02/2023,10701206089,37.94,WHSMITH.CO.UK
OXFORDSHIRE CC,"CHILDRENS, YOUNG PEOPLE AND FAMILIES",HOUSE PROJECT,CATERING,21/02/2023,10701206107,24.07,MCDONALDS
OXFORDSHIRE CC,CORPORATE CORE,REGISTRAR,DOMESTIC AND CLEANING EQUIPMENT,21/02/2023,10701206121,5.19,AMZNMKTPLACE AMAZON.CO
OXFORDSHIRE CC,"CHILDRENS, YOUNG PEOPLE AND FAMILIES",DIDCOT MOVE-ON HOME,CATERING PROVISIONS,21/02/2023,10701206723,-10,TESCO STORES 2413
OXFORDSHIRE CC,"CHILDRENS, YOUNG PEOPLE AND FAMILIES",DIDCOT MOVE-ON HOME,CLEANING MATERIALS,21/02/2023,10701206713,10,TESCO STORES 2413
OXFORDSHIRE CC,"CHILDRENS, YOUNG PEOPLE AND FAMILIES",DIDCOT MOVE-ON HOME,CATERING PROVISIONS,21/02/2023,10701206717,24.67,TESCO STORES 2413
OXFORDSHIRE CC,"CHILDRENS, YOUNG PEOPLE AND FAMILIES","	BUSINESS DEVELOPMENT",MATERIALS,21/02/2023,10701206737,16.81,AMAZON.CO.UK 130W28K24
OXFORDSHIRE CC,"CHILDRENS, YOUNG PEOPLE AND FAMILIES",40 THE MOORS,CATERING PROVISIONS,21/02/2023,10701206749,18.45,SAINSBURY'S S/MKT
OXFORDSHIRE CC,"CHILDRENS, YOUNG PEOPLE AND FAMILIES",FIELDWORK UASC,OTHER TRANSPORT ARRANGEMENTS,21/02/2023,10701206145,12.75,OXFORDBUS.CO.UK
OXFORDSHIRE CC,"CHILDRENS, YOUNG PEOPLE AND FAMILIES",UASC 16&17,OTHER TRANSPORT ARRANGEMENTS,21/02/2023,10701206149,12.75,OXFORDBUS.CO.UK
OXFORDSHIRE CC,"CHILDRENS, YOUNG PEOPLE AND FAMILIES",UASC 16&17,DRUGS AND MEDICAL SUPPLIES,21/02/2023,10701206151,2.93,ROWLANDS PHARMACY
OXFORDSHIRE CC,"CHILDRENS, YOUNG PEOPLE AND FAMILIES",UASC UNDER 16,CATERING,21/02/2023,10701206155,7.08,RIO'S PIRI PIRI
OXFORDSHIRE CC,"CHILDRENS, YOUNG PEOPLE AND FAMILIES",40 THE MOORS,CATERING PROVISIONS,21/02/2023,10701206753,222.54,SAINSBURY'S S/MKT
OXFORDSHIRE CC,"CHILDRENS, YOUNG PEOPLE AND FAMILIES",40 THE MOORS,CATERING,21/02/2023,10701206755,34.18,DOMINO S PIZZA
OXFORDSHIRE CC,CORPORATE CORE,ICT OPERATIONS & MAI,IT SOFTWARE,21/02/2023,10701206767,342,GMO GLOBALSIGN LIM
OXFORDSHIRE CC,"CHILDRENS, YOUNG PEOPLE AND FAMILIES","	LEAVING CARE CITY 1",PAYMENT TO GOVERNMENT DEPARTMENTS,21/02/2023,10701206775,45.25,GEN REGISTER OFFICE
OXFORDSHIRE CC,SOCIAL AND COMMUNITY SERVICES,CSS - BANBURY,CATERING PROVISIONS,21/02/2023,10701206779,70.26,SAINSBURYS.CO.UK
OXFORDSHIRE CC,SOCIAL AND COMMUNITY SERVICES,CSS - ABINGDON,MATERIALS,21/02/2023,10701206783,8.69,AMZNMKTPLACE AMAZON.CO
OXFORDSHIRE CC,"CHILDRENS, YOUNG PEOPLE AND FAMILIES","	RESIDENTIAL STRATEGY",MATERIALS,21/02/2023,10701206177,160,WWW.ARGOS.CO.UK
OXFORDSHIRE CC,SOCIAL AND COMMUNITY SERVICES,SCHOOLS FM CATERING AREA 4,CATERING PROVISIONS,21/02/2023,10701205961,10.2,WAITROSE 871
OXFORDSHIRE CC,SOCIAL AND COMMUNITY SERVICES,SCHOOLS FM CATERING AREA 4,CATERING PROVISIONS,21/02/2023,10701205957,9.2,CO OP GROUP FOOD
OXFORDSHIRE CC,SOCIAL AND COMMUNITY SERVICES,SCHOOLS FM CATERING AREA 4,CATERING PROVISIONS,21/02/2023,10701205963,9.92,ALDI STORES 775-141
OXFORDSHIRE CC,"CHILDRENS, YOUNG PEOPLE AND FAMILIES","	DISABILITIES TEAM-C",PAYMENTS TO TRANSPORT OPERATORS,21/02/2023,10701205967,89.36,AGODA.COM OYO FLAGSH
OXFORDSHIRE CC,"CHILDRENS, YOUNG PEOPLE AND FAMILIES",CHILDREN IN CARE NON-STAFFING - CENTRL 1,PAYMENT TO GOVERNMENT DEPARTMENTS,21/02/2023,10701205969,11,OXFORDSHIRE CC WEB1
OXFORDSHIRE CC,"CHILDRENS, YOUNG PEOPLE AND FAMILIES","	LEAVING CARE CITY 1",PAYMENT TO GOVERNMENT DEPARTMENTS,21/02/2023,10701205971,14,GEN REGISTER OFFICE
OXFORDSHIRE CC,"CHILDRENS, YOUNG PEOPLE AND FAMILIES","	LOOKED AFTER CITY 2",CATERING,21/02/2023,10701206559,9.37,MCDONALDS
OXFORDSHIRE CC,"CHILDRENS, YOUNG PEOPLE AND FAMILIES","	LOOKED AFTER CITY 2",CATERING,21/02/2023,10701206555,35,THE HEYFORD OXFORDSHIR
OXFORDSHIRE CC,CORPORATE CORE,MOTOR FLEET,MOTOR IF OWN DAMAGE,21/02/2023,10701206565,"1,170.90",WHOLESALE AUTOPARTS
OXFORDSHIRE CC,CORPORATE CORE,MOTOR FLEET,MOTOR IF OWN DAMAGE,21/02/2023,10701206569,460.8,WHOLESALE AUTOPARTS
OXFORDSHIRE CC,SOCIAL AND COMMUNITY SERVICES,HOLTON SITE,GENERAL MAINTENANCE,21/02/2023,10701205993,4.49,AMZNMKTPLACE AMAZON.CO
OXFORDSHIRE CC,SOCIAL AND COMMUNITY SERVICES,CSS BICESTER,MATERIALS,21/02/2023,10701205985,15.9,POUNDLAND LTD 1505
OXFORDSHIRE CC,SOCIAL AND COMMUNITY SERVICES,CSS BICESTER,CATERING PROVISIONS,21/02/2023,10701205987,11.7,WILKO RETAIL LIMITED
OXFORDSHIRE CC,SOCIAL AND COMMUNITY SERVICES,HOLTON SITE,CATERING EQUIPMENT,21/02/2023,10701205991,53.48,AMZNMKTPLACE
OXFORDSHIRE CC,"CHILDRENS, YOUNG PEOPLE AND FAMILIES",EYNSHAM,RESIDENTIAL ACTIVITIES,21/02/2023,10701206609,22.99,AMZNMKTPLACE
OXFORDSHIRE CC,"CHILDRENS, YOUNG PEOPLE AND FAMILIES",EYNSHAM,RESIDENTIAL ACTIVITIES,21/02/2023,10701206611,6.59,AMZNMKTPLACE
OXFORDSHIRE CC,CORPORATE CORE,,STATIONERY,21/02/2023,10701206617,41.08,LYRECO UK LTD
OXFORDSHIRE CC,CORPORATE CORE,,STATIONERY,21/02/2023,10701206619,116.88,LYRECO UK LTD
OXFORDSHIRE CC,CORPORATE CORE,,STATIONERY,21/02/2023,10701206623,67.09,LYRECO UK LTD
OXFORDSHIRE CC,"CHILDRENS, YOUNG PEOPLE AND FAMILIES",THAME E&A HOME,MATERIALS,21/02/2023,10701206041,4.5,HOBBYCRAFT
OXFORDSHIRE CC,"CHILDRENS, YOUNG PEOPLE AND FAMILIES",THAME E&A HOME,CATERING PROVISIONS,21/02/2023,10701206043,139.36,TESCO STORES 2038
OXFORDSHIRE CC,"CHILDRENS, YOUNG PEOPLE AND FAMILIES",KINGFISHER,OTHER TRANSPORT ARRANGEMENTS,21/02/2023,10701206639,77,STAGECOACH SERVICE
OXFORDSHIRE CC,"CHILDRENS, YOUNG PEOPLE AND FAMILIES",KINGFISHER,OTHER TRANSPORT ARRANGEMENTS,21/02/2023,10701206631,5.6,DIDCOT PARKWAY RAILWAY
OXFORDSHIRE CC,"CHILDRENS, YOUNG PEOPLE AND FAMILIES",KINGFISHER,PAYMENTS TO TRANSPORT OPERATORS,21/02/2023,10701206635,73,GWR DIDCOT PKWY TO
OXFORDSHIRE CC,"CHILDRENS, YOUNG PEOPLE AND FAMILIES",KINGFISHER,OTHER TRANSPORT ARRANGEMENTS,21/02/2023,10701206643,6.65,TFL TRAVEL CH
OXFORDSHIRE CC,ENVIRONMENT AND ECONOMY,"	OXFORDSHIRE MUSEUM",EQUIPMENT,21/02/2023,10701206385,664.8,BLACKBOX AV
OXFORDSHIRE CC,ENVIRONMENT AND ECONOMY,"	OXFORDSHIRE MUSEUM",EQUIPMENT,21/02/2023,10701206387,664.8,BLACKBOX AV
OXFORDSHIRE CC,"CHILDRENS, YOUNG PEOPLE AND FAMILIES","	LEAVING CARE NORTH",CATERING,21/02/2023,10701206401,3.85,COSTA TEMPLARS
OXFORDSHIRE CC,SOCIAL AND COMMUNITY SERVICES,CSS WANTAGE,CATERING PROVISIONS,21/02/2023,10701206427,14.05,SAINSBURYS S/MKTS
OXFORDSHIRE CC,ENVIRONMENT AND ECONOMY,"	FLEET OPERATIONS",ROAD FUND LICENCES AND MOTS,21/02/2023,10701206437,292.5,DVLA VEHICLE TAX
OXFORDSHIRE CC,"CHILDRENS, YOUNG PEOPLE AND FAMILIES",FSP NON-STAFFING - CENTRAL,VEHICLE - HIRE CHARGES,21/02/2023,10701206441,-384,HUGHES AND SALVIDGE HO
OXFORDSHIRE CC,"CHILDRENS, YOUNG PEOPLE AND FAMILIES",40 THE MOORS,HARDWARE AND CROCKERY,21/02/2023,10701206451,125.15,B & Q 1176
OXFORDSHIRE CC,"CHILDRENS, YOUNG PEOPLE AND FAMILIES",40 THE MOORS,HARDWARE AND CROCKERY,21/02/2023,10701206453,195,HOMEBASE.CO.UK
OXFORDSHIRE CC,"CHILDRENS, YOUNG PEOPLE AND FAMILIES",40 THE MOORS,MATERIALS,21/02/2023,10701206457,107.16,HOME BARGAINS
OXFORDSHIRE CC,ENVIRONMENT AND ECONOMY,ELEC NPR ST LTG,MATERIALS,21/02/2023,10701205859,33.52,AMZNMKTPLACE AMAZON.CO
OXFORDSHIRE CC,"CHILDRENS, YOUNG PEOPLE AND FAMILIES",EYNSHAM,CATERING PROVISIONS,21/02/2023,10701205865,7.2,WAITROSE 142
OXFORDSHIRE CC,SOCIAL AND COMMUNITY SERVICES,CSS - ABINGDON,CATERING PROVISIONS,21/02/2023,10701205869,9.75,ALDI STORES
OXFORDSHIRE CC,"CHILDRENS, YOUNG PEOPLE AND FAMILIES",CSS WANTAGE,HARDWARE AND CROCKERY,21/02/2023,10701205889,2.25,MILLETS FARM SHOP
OXFORDSHIRE CC,"CHILDRENS, YOUNG PEOPLE AND FAMILIES",CSS WANTAGE,CATERING,21/02/2023,10701205893,2.5,MILLETS FARM RESTAURAN
OXFORDSHIRE CC,"CHILDRENS, YOUNG PEOPLE AND FAMILIES",CSS WANTAGE,CATERING,21/02/2023,10701205897,2.5,MILLETS FARM RESTAURAN
OXFORDSHIRE CC,"CHILDRENS, YOUNG PEOPLE AND FAMILIES",KINGFISHER,EDUCATIONAL AND VOCATIONAL TRAINING ,21/02/2023,10701205901,-51,SJA SUPPLIES TRAINING
OXFORDSHIRE CC,"CHILDRENS, YOUNG PEOPLE AND FAMILIES",40 THE MOORS,CATERING PROVISIONS,21/02/2023,10701206461,115,TESCO STORES 4480
OXFORDSHIRE CC,"CHILDRENS, YOUNG PEOPLE AND FAMILIES",40 THE MOORS,FURNITURE,21/02/2023,10701206463,115,DUNELM LTD
OXFORDSHIRE CC,"CHILDRENS, YOUNG PEOPLE AND FAMILIES",40 THE MOORS,CATERING PROVISIONS,21/02/2023,10701206497,39.49,TESCO STORES 2788
OXFORDSHIRE CC,CORPORATE CORE,"MARKETING, COMMUNICATIONS & ENGAGEMENT","PUBLICITY, PROMOTIONS AND ADVERTISEMENT",21/02/2023,10701206505,154.33,LINKEDIN-876 5450054
OXFORDSHIRE CC,CORPORATE CORE,"MARKETING, COMMUNICATIONS & ENGAGEMENT","PUBLICITY, PROMOTIONS AND ADVERTISEMENT",21/02/2023,10701206511,500,GOOGLE ADS4896546035
OXFORDSHIRE CC,ENVIRONMENT AND ECONOMY,HARD FM,GENERAL MAINTENANCE,21/02/2023,10701205917,"1,274.40",LOCHINVAR LTD
OXFORDSHIRE CC,ENVIRONMENT AND ECONOMY,HARD FM,PREMISES REPAIRS,21/02/2023,10701205905,79.99,SCREWFIX DIR LTD
OXFORDSHIRE CC,ENVIRONMENT AND ECONOMY,HARD FM,PREMISES REPAIRS,21/02/2023,10701205909,72,SNOB & LOCK
OXFORDSHIRE CC,ENVIRONMENT AND ECONOMY,HARD FM,PREMISES REPAIRS,21/02/2023,10701205915,39.41,CJ CLARKE TIMBER MERCH
OXFORDSHIRE CC,SOCIAL AND COMMUNITY SERVICES,CSS - OXFORD,DAY ACTIVITIES,21/02/2023,10701205929,24.26,ALDI STORES 775-142
OXFORDSHIRE CC,SOCIAL AND COMMUNITY SERVICES,CSS BICESTER,CATERING PROVISIONS,21/02/2023,10701205933,110.88,TESCO STORES 2162
OXFORDSHIRE CC,"CHILDRENS, YOUNG PEOPLE AND FAMILIES","	LEAVING CARE CITY 1",OTHER COMMUNICATIONS,21/02/2023,10701205941,21,NOW TV
OXFORDSHIRE CC,"CHILDRENS, YOUNG PEOPLE AND FAMILIES","	LEAVING CARE SOUTH",CATERING,21/02/2023,10701206215,7.45,COSTA TEMPLARS
OXFORDSHIRE CC,"CHILDRENS, YOUNG PEOPLE AND FAMILIES","	LEAVING CARE SOUTH",CATERING,21/02/2023,10701206219,7.59,MCDONALDS
OXFORDSHIRE CC,"CHILDRENS, YOUNG PEOPLE AND FAMILIES",WITNEY,CATERING PROVISIONS,21/02/2023,10701206223,4.1,SAINSBURYS S/MKTS
OXFORDSHIRE CC,"CHILDRENS, YOUNG PEOPLE AND FAMILIES","	LAC PUPIL PREMIUM","BOOKS, DVDS AND CDS",21/02/2023,10701206237,61.29,AMZNMKTPLACE
OXFORDSHIRE CC,CORPORATE CORE,INCOME TEAM,PAYMENT TO GOVERNMENT DEPARTMENTS,21/02/2023,10701206241,11,OXFORDSHIRE CC WEB1
OXFORDSHIRE CC,CORPORATE CORE,ICT OPERATIONS & MAI,IT SOFTWARE,21/02/2023,10701206853,"3,940.46",BITWARDEN
OXFORDSHIRE CC,SOCIAL AND COMMUNITY SERVICES,CSS - BANBURY,MATERIALS,21/02/2023,10701206857,19.98,HALFORDS 0853
OXFORDSHIRE CC,"CHILDRENS, YOUNG PEOPLE AND FAMILIES",FSP NON-STAFFING - CENTRAL,CATERING,21/02/2023,10701206869,2.9,FERNANDO?S CAFE
OXFORDSHIRE CC,"CHILDRENS, YOUNG PEOPLE AND FAMILIES",THAME E&A HOME,MATERIALS,21/02/2023,10701206259,5.5,CLINTONS-155
OXFORDSHIRE CC,"CHILDRENS, YOUNG PEOPLE AND FAMILIES",PAUSE PROGRAMME,CATERING,21/02/2023,10701206255,6.25,ZETTLE_ THE INDEPENDEN
OXFORDSHIRE CC,"CHILDRENS, YOUNG PEOPLE AND FAMILIES","	OCCG GRANT",OTHER TRANSPORT ARRANGEMENTS,21/02/2023,10701206275,9.5,WESTGATE OXFORD CAR PA
OXFORDSHIRE CC,ENVIRONMENT AND ECONOMY,"	COUNTY PRINT FINSHRS",PURCHASE OF IT EQUIPMENT,21/02/2023,10701206277,169.98,SP TONERONE LTD
OXFORDSHIRE CC,SOCIAL AND COMMUNITY SERVICES,SCHOOLS FM CATERING AREA 2,CATERING PROVISIONS,21/02/2023,10701206281,43.53,TESCO STORES 2994
OXFORDSHIRE CC,"CHILDRENS, YOUNG PEOPLE AND FAMILIES",SEND TRANSFORMATION,"SUPPLIES, STATIONERY AND MATERIALS",21/02/2023,10701206883,14.4,AMZNMKTPLACE
OXFORDSHIRE CC,"CHILDRENS, YOUNG PEOPLE AND FAMILIES",FSP NON-STAFFING - CENTRAL,CATERING,21/02/2023,10701206873,10.46,WENDY'S # 13253 OXFORD
OXFORDSHIRE CC,ENVIRONMENT AND ECONOMY,HARD FM,HARDWARE AND CROCKERY,21/02/2023,10701206887,47.98,CITY PLUMBING
OXFORDSHIRE CC,CORPORATE CORE,INCOME TEAM,PAYMENT TO GOVERNMENT DEPARTMENTS,21/02/2023,10701206283,115,WWW.MONEYCLAIM.GOV
OXFORDSHIRE CC,CORPORATE CORE,INCOME TEAM,PAYMENT TO GOVERNMENT DEPARTMENTS,21/02/2023,10701206285,70,WWW.MONEYCLAIM.GOV
OXFORDSHIRE CC,CORPORATE CORE,"	CORPORATE FINANCE",OTHER TRAINING COURSES AND QUALIFICATION,21/02/2023,10701206339,918,WWW.ACCOUNTS@IIA.ORG.U
OXFORDSHIRE CC,CORPORATE CORE,"	CORPORATE FINANCE",OTHER TRAINING COURSES AND QUALIFICATION,21/02/2023,10701206341,217,WWW.ACCOUNTS@IIA.ORG.U
OXFORDSHIRE CC,CORPORATE CORE,"	CORPORATE FINANCE",OTHER TRAINING COURSES AND QUALIFICATION,21/02/2023,10701206345,380.23,THE INST OF INT AUDITO
OXFORDSHIRE CC,CORPORATE CORE,SKILLS & LEARNING,"BOOKS, DVDS AND CDS",21/02/2023,10701206363,15.99,AMAZON.CO.UK 134NP1QU4
OXFORDSHIRE CC,"CHILDRENS, YOUNG PEOPLE AND FAMILIES",DIDCOT MOVE-ON HOME,CATERING PROVISIONS,20/02/2023,10694378891,10.97,SAINSBURYS S/MKTS
OXFORDSHIRE CC,"CHILDRENS, YOUNG PEOPLE AND FAMILIES",DIDCOT MOVE-ON HOME,MATERIALS,20/02/2023,10694378889,14,THE WORKS
OXFORDSHIRE CC,SOCIAL AND COMMUNITY SERVICES,CSS - BANBURY,MATERIALS,20/02/2023,10694378893,29.9,AMZNMKTPLACE
OXFORDSHIRE CC,"CHILDRENS, YOUNG PEOPLE AND FAMILIES",FSP STAFFING � CENTRAL,CATERING PROVISIONS,20/02/2023,10694378911,9,WAITROSE
OXFORDSHIRE CC,"CHILDRENS, YOUNG PEOPLE AND FAMILIES",FSP STAFFING � CENTRAL,CATERING,20/02/2023,10694378909,10.85,KASPAS DESSERTS
OXFORDSHIRE CC,"CHILDRENS, YOUNG PEOPLE AND FAMILIES",FAMILY SOLUTIONS PLUS NON-STAFF � SOUTH,PAYMENTS TO TRANSPORT OPERATORS,20/02/2023,10694378899,15.55,TRAINLINE
OXFORDSHIRE CC,"CHILDRENS, YOUNG PEOPLE AND FAMILIES",FSP STAFFING � CENTRAL,PAYMENTS TO TRANSPORT OPERATORS,20/02/2023,10694378913,7.1,GWR OXFORD SST
OXFORDSHIRE CC,"CHILDRENS, YOUNG PEOPLE AND FAMILIES",40 THE MOORS,CATERING,20/02/2023,10694378901,22.27,PEPES BANBURY
OXFORDSHIRE CC,SOCIAL AND COMMUNITY SERVICES,COWLEY LIBRARY,OTHER PREMISES RELATED COSTS,20/02/2023,10694378903,75.6,BMA VARSITY LTD
OXFORDSHIRE CC,CORPORATE CORE,"	PERSONNEL",PAYMENT TO GOVERNMENT DEPARTMENTS,20/02/2023,10694378905,"2,699.00",C2E844900151H UKVI
OXFORDSHIRE CC,"CHILDRENS, YOUNG PEOPLE AND FAMILIES",FSP STAFFING � CENTRAL,OTHER TRANSPORT ARRANGEMENTS,20/02/2023,10694378907,2,READING TRANSPORT LIMI
OXFORDSHIRE CC,"CHILDRENS, YOUNG PEOPLE AND FAMILIES",FSP STAFFING � CENTRAL,CATERING,20/02/2023,10694378915,62.45,PREZZO
OXFORDSHIRE CC,"CHILDRENS, YOUNG PEOPLE AND FAMILIES",FSP NON-STAFFING - CENTRAL,CLOTHING AND UNIFORMS,20/02/2023,10694378917,70,BELLA BEST FASHION
OXFORDSHIRE CC,SOCIAL AND COMMUNITY SERVICES,CSS WANTAGE,CATERING PROVISIONS,20/02/2023,10694378757,2.99,ROOT ONE LIMITED
OXFORDSHIRE CC,SOCIAL AND COMMUNITY SERVICES,CSS WANTAGE,CATERING PROVISIONS,20/02/2023,10694378761,6.94,ROOT ONE LIMITED
OXFORDSHIRE CC,"CHILDRENS, YOUNG PEOPLE AND FAMILIES","	AAC EQUIPMENT",PURCHASE OF IT EQUIPMENT,20/02/2023,10694378763,295.53,AMZNMKTPLACE
OXFORDSHIRE CC,"CHILDRENS, YOUNG PEOPLE AND FAMILIES",SEND TRANSFORMATION,"SUPPLIES, STATIONERY AND MATERIALS",20/02/2023,10694378765,63.86,AMZNMKTPLACE AMAZON.CO
OXFORDSHIRE CC,"CHILDRENS, YOUNG PEOPLE AND FAMILIES",SEND TRANSFORMATION,"SUPPLIES, STATIONERY AND MATERIALS",20/02/2023,10694378767,6.99,AMZNMKTPLACE AMAZON.CO
OXFORDSHIRE CC,"CHILDRENS, YOUNG PEOPLE AND FAMILIES","	RESIDENTIAL STRATEGY",FURNITURE,20/02/2023,10694378789,590,DFS
OXFORDSHIRE CC,"CHILDRENS, YOUNG PEOPLE AND FAMILIES",40 THE MOORS,FURNITURE,20/02/2023,10694378791,77,DUNELM LTD
OXFORDSHIRE CC,CORPORATE CORE,"MARKETING, COMMUNICATIONS & ENGAGEMENT","PUBLICITY, PROMOTIONS AND ADVERTISEMENT",20/02/2023,10694378793,500,GOOGLE ADS4896546035
OXFORDSHIRE CC,"CHILDRENS, YOUNG PEOPLE AND FAMILIES",40 THE MOORS,HARDWARE AND CROCKERY,20/02/2023,10694378783,166.94,DULUX DECORATOR CENTRE
OXFORDSHIRE CC,"CHILDRENS, YOUNG PEOPLE AND FAMILIES",40 THE MOORS,HIRED AND CONTRACTED SERVICES,20/02/2023,10694378785,32,SUMUP   BARNETS BARBER
OXFORDSHIRE CC,"CHILDRENS, YOUNG PEOPLE AND FAMILIES",40 THE MOORS,HARDWARE AND CROCKERY,20/02/2023,10694378787,148.71,B AND Q
OXFORDSHIRE CC,CORPORATE CORE,"MARKETING, COMMUNICATIONS & ENGAGEMENT","BOOKS, DVDS AND CDS",20/02/2023,10694378799,264.38,SPOTIFY
OXFORDSHIRE CC,CORPORATE CORE,"MARKETING, COMMUNICATIONS & ENGAGEMENT","PUBLICITY, PROMOTIONS AND ADVERTISEMENT",20/02/2023,10694378795,500,FACEBK NKB9YM39Z2
OXFORDSHIRE CC,CORPORATE CORE,"MARKETING, COMMUNICATIONS & ENGAGEMENT","PUBLICITY, PROMOTIONS AND ADVERTISEMENT",20/02/2023,10694378797,14.4,SNAP INC SNAP SNAP ADS
OXFORDSHIRE CC,CORPORATE CORE,"MARKETING, COMMUNICATIONS & ENGAGEMENT","PUBLICITY, PROMOTIONS AND ADVERTISEMENT",20/02/2023,10694378809,14.4,SNAP INC SNAP SNAP ADS
OXFORDSHIRE CC,CORPORATE CORE,"MARKETING, COMMUNICATIONS & ENGAGEMENT","PUBLICITY, PROMOTIONS AND ADVERTISEMENT",20/02/2023,10694378801,14.4,SNAP INC SNAP SNAP ADS
OXFORDSHIRE CC,CORPORATE CORE,"MARKETING, COMMUNICATIONS & ENGAGEMENT","PUBLICITY, PROMOTIONS AND ADVERTISEMENT",20/02/2023,10694378803,500,GOOGLE ADS4896546035
OXFORDSHIRE CC,CORPORATE CORE,"MARKETING, COMMUNICATIONS & ENGAGEMENT","PUBLICITY, PROMOTIONS AND ADVERTISEMENT",20/02/2023,10694378805,500,FACEBK 7VKCFMX9Z2
OXFORDSHIRE CC,CORPORATE CORE,"MARKETING, COMMUNICATIONS & ENGAGEMENT",MATERIALS,20/02/2023,10694378807,24.98,LINKEDIN-876 2973344
OXFORDSHIRE CC,"CHILDRENS, YOUNG PEOPLE AND FAMILIES","	LEAVING CARE SOUTH",OTHER TRANSPORT ARRANGEMENTS,20/02/2023,10694378825,6.1,APCOA PARKING UK
OXFORDSHIRE CC,"CHILDRENS, YOUNG PEOPLE AND FAMILIES","	LEAVING CARE SOUTH",PAYMENTS TO TRANSPORT OPERATORS,20/02/2023,10694378827,5.5,GWR OXFORD SST
OXFORDSHIRE CC,SOCIAL AND COMMUNITY SERVICES,"	CENTRAL LIBRARY",MATERIALS,20/02/2023,10694378817,46,AMZNMKTPLACE
OXFORDSHIRE CC,SOCIAL AND COMMUNITY SERVICES,"	CENTRAL LIBRARY",MATERIALS,20/02/2023,10694378819,35.87,AMZNMKTPLACE
OXFORDSHIRE CC,SOCIAL AND COMMUNITY SERVICES,HEADINGTON LIBRARY,HEALTH AND SAFETY EQUIPMENT,20/02/2023,10694378821,12.99,AMZNMKTPLACE
OXFORDSHIRE CC,"CHILDRENS, YOUNG PEOPLE AND FAMILIES",EYNSHAM,CATERING PROVISIONS,20/02/2023,10694378829,201.61,TESCO STORES 2008
OXFORDSHIRE CC,"CHILDRENS, YOUNG PEOPLE AND FAMILIES","	LEAVING CARE SOUTH",PAYMENTS TO TRANSPORT OPERATORS,20/02/2023,10694378823,3.7,BICESTER VIL SSTP
OXFORDSHIRE CC,"CHILDRENS, YOUNG PEOPLE AND FAMILIES",CNTL EARLY HELP-BRTN,"BOOKS, DVDS AND CDS",20/02/2023,10694378837,37,AMAZON.CO.UK 132VJ5HS4
OXFORDSHIRE CC,"CHILDRENS, YOUNG PEOPLE AND FAMILIES",FPT SOUTH/VALE,OTHER TRANSPORT ARRANGEMENTS,20/02/2023,10694378831,4,REDBRIDGE PARK AND RID
OXFORDSHIRE CC,"CHILDRENS, YOUNG PEOPLE AND FAMILIES",THAME E&A HOME,CATERING,20/02/2023,10694378833,53.2,STAR AND GARTER (THAME
OXFORDSHIRE CC,"CHILDRENS, YOUNG PEOPLE AND FAMILIES",EDT,HIRE OF ACCOMMODATION AND FACILITIES,20/02/2023,10694378835,149.6,PREMIER INN
OXFORDSHIRE CC,"CHILDRENS, YOUNG PEOPLE AND FAMILIES",EYNSHAM,MATERIALS,20/02/2023,10694378845,6.45,AMZNMKTPLACE AMAZON.CO
OXFORDSHIRE CC,"CHILDRENS, YOUNG PEOPLE AND FAMILIES",EYNSHAM,MATERIALS,20/02/2023,10694378843,35.48,AMZNMKTPLACE
OXFORDSHIRE CC,"CHILDRENS, YOUNG PEOPLE AND FAMILIES",EYNSHAM,CATERING EQUIPMENT,20/02/2023,10694378847,39.98,AMZNMKTPLACE AMAZON.CO
OXFORDSHIRE CC,CORPORATE CORE,,STATIONERY,20/02/2023,10694378855,44.5,LYRECO UK LTD
OXFORDSHIRE CC,"CHILDRENS, YOUNG PEOPLE AND FAMILIES",EYNSHAM,CATERING EQUIPMENT,20/02/2023,10694378849,21.98,AMZNMKTPLACE AMAZON.CO
OXFORDSHIRE CC,"CHILDRENS, YOUNG PEOPLE AND FAMILIES",EYNSHAM,CATERING EQUIPMENT,20/02/2023,10694378851,14.99,AMZNMKTPLACE AMAZON.CO
OXFORDSHIRE CC,"CHILDRENS, YOUNG PEOPLE AND FAMILIES",EYNSHAM,CATERING EQUIPMENT,20/02/2023,10694378853,23.5,AMZNMKTPLACE AMAZON.CO
OXFORDSHIRE CC,CORPORATE CORE,,STATIONERY,20/02/2023,10694378857,8.28,LYRECO UK LTD
OXFORDSHIRE CC,CORPORATE CORE,,STATIONERY,20/02/2023,10694378859,47.66,LYRECO UK LTD
OXFORDSHIRE CC,CORPORATE CORE,,STATIONERY,20/02/2023,10694378861,141.35,LYRECO UK LTD
OXFORDSHIRE CC,"CHILDRENS, YOUNG PEOPLE AND FAMILIES","	LEAVING CARE NORTH",MATERIALS,20/02/2023,10694378865,23.5,ARGOS HEYFORD HILL
OXFORDSHIRE CC,"CHILDRENS, YOUNG PEOPLE AND FAMILIES",FSP NON-STAFFING - CENTRAL,OTHER TRANSPORT ARRANGEMENTS,20/02/2023,10694378871,18.6,ROYAL CARS
OXFORDSHIRE CC,"CHILDRENS, YOUNG PEOPLE AND FAMILIES",FSP NON-STAFFING - CENTRAL,HIRE OF ACCOMMODATION AND FACILITIES,20/02/2023,10694378873,979.91,PREMIER INN
OXFORDSHIRE CC,CORPORATE CORE,,STATIONERY,20/02/2023,10694378863,131.09,LYRECO UK LTD
OXFORDSHIRE CC,"CHILDRENS, YOUNG PEOPLE AND FAMILIES",40 THE MOORS,VEHICLE FUEL,20/02/2023,10694378881,6.69,BLENHEIM SERVICE STATI
OXFORDSHIRE CC,"CHILDRENS, YOUNG PEOPLE AND FAMILIES",FAMILY SOLUTIONS PLUS NON-STAFF � SOUTH,OTHER TRANSPORT ARRANGEMENTS,20/02/2023,10694378875,193.12,AER LINGUS
OXFORDSHIRE CC,"CHILDRENS, YOUNG PEOPLE AND FAMILIES",FAMILY SOLUTIONS PLUS NON-STAFF � SOUTH,PAYMENTS TO TRANSPORT OPERATORS,20/02/2023,10694378877,90.3,TRAINLINE
OXFORDSHIRE CC,"CHILDRENS, YOUNG PEOPLE AND FAMILIES",NTS UASC AGENCY,CATERING PROVISIONS,20/02/2023,10694378879,4.43,LIDL GB
OXFORDSHIRE CC,"CHILDRENS, YOUNG PEOPLE AND FAMILIES",40 THE MOORS,MATERIALS,20/02/2023,10694378883,15.96,OXFORD BUILDING SUPPLI
OXFORDSHIRE CC,"CHILDRENS, YOUNG PEOPLE AND FAMILIES",40 THE MOORS,CATERING,20/02/2023,10694378885,9.3,COSTA COFFEE
OXFORDSHIRE CC,"CHILDRENS, YOUNG PEOPLE AND FAMILIES",40 THE MOORS,CATERING PROVISIONS,20/02/2023,10694378887,11,SAINSBURYS S/MKTS
OXFORDSHIRE CC,"CHILDRENS, YOUNG PEOPLE AND FAMILIES",THAME E&A HOME,ENTERTAINMENT EXPENSES,20/02/2023,10694378633,37.47,VUE ENTERTAINMENT LTD
OXFORDSHIRE CC,"CHILDRENS, YOUNG PEOPLE AND FAMILIES",THAME E&A HOME,CATERING PROVISIONS,20/02/2023,10694378635,11.75,ASDA SUPERSTORE
OXFORDSHIRE CC,"CHILDRENS, YOUNG PEOPLE AND FAMILIES",THAME E&A HOME,CATERING PROVISIONS,20/02/2023,10694378637,11.34,KHAIR DIN GROCERIES AN
OXFORDSHIRE CC,"CHILDRENS, YOUNG PEOPLE AND FAMILIES",THAME E&A HOME,CATERING,20/02/2023,10694378639,21.1,SMARTS FISH & CHIP SHO
OXFORDSHIRE CC,"CHILDRENS, YOUNG PEOPLE AND FAMILIES",THAME E&A HOME,CATERING,20/02/2023,10694378641,2.4,SMARTS FISH & CHIP SHO
OXFORDSHIRE CC,"CHILDRENS, YOUNG PEOPLE AND FAMILIES",THAME E&A HOME,CATERING PROVISIONS,20/02/2023,10694378643,22.05,ASDA SUPERSTORE
OXFORDSHIRE CC,ENVIRONMENT AND ECONOMY,HARD FM,HARDWARE AND CROCKERY,20/02/2023,10694378657,48.05,OXFORD FENCING SUPPLIE
OXFORDSHIRE CC,"CHILDRENS, YOUNG PEOPLE AND FAMILIES","	LEAVING CARE CITY 2",MATERIALS,20/02/2023,10694378647,-8.95,ARGOS LTD
OXFORDSHIRE CC,"CHILDRENS, YOUNG PEOPLE AND FAMILIES",THAME E&A HOME,CATERING,20/02/2023,10694378645,11,MCDONALDS
OXFORDSHIRE CC,"CHILDRENS, YOUNG PEOPLE AND FAMILIES",WITNEY,CATERING PROVISIONS,20/02/2023,10694378651,55.99,SAINSBURY'S S/MKT
OXFORDSHIRE CC,"CHILDRENS, YOUNG PEOPLE AND FAMILIES",WITNEY,MATERIALS,20/02/2023,10694378653,1,POUNDLAND LTD
OXFORDSHIRE CC,"CHILDRENS, YOUNG PEOPLE AND FAMILIES",WITNEY,MATERIALS,20/02/2023,10694378655,10,POUNDLAND LTD
OXFORDSHIRE CC,ENVIRONMENT AND ECONOMY,HARD FM,HARDWARE AND CROCKERY,20/02/2023,10694378659,93.61,DULUX DECORATOR CENTRE
OXFORDSHIRE CC,ENVIRONMENT AND ECONOMY,HARD FM,HARDWARE AND CROCKERY,20/02/2023,10694378661,10.6,WICKES OXFORD
OXFORDSHIRE CC,SOCIAL AND COMMUNITY SERVICES,CSS WITNEY,MATERIALS,20/02/2023,10694378663,23,THEWORKS
OXFORDSHIRE CC,"CHILDRENS, YOUNG PEOPLE AND FAMILIES",THAME E&A HOME,MATERIALS,20/02/2023,10694378665,30.86,AMAZON.CO.UK 132KA21W4
OXFORDSHIRE CC,"CHILDRENS, YOUNG PEOPLE AND FAMILIES",THAME E&A HOME,MATERIALS,20/02/2023,10694378667,8.99,AMZNMKTPLACE
OXFORDSHIRE CC,"CHILDRENS, YOUNG PEOPLE AND FAMILIES","	LEAVING CARE CITY 2",MATERIALS,20/02/2023,10694378649,-250,ARGOS LTD
OXFORDSHIRE CC,"CHILDRENS, YOUNG PEOPLE AND FAMILIES",CHILDREN IN CARE NON-STAFFING - CENTRL 1,OTHER TRANSPORT ARRANGEMENTS,20/02/2023,10694378675,47.25,OXFORD BUS TICKETS
OXFORDSHIRE CC,"CHILDRENS, YOUNG PEOPLE AND FAMILIES",THAME E&A HOME,MATERIALS,20/02/2023,10694378669,21,AMZNMKTPLACE
OXFORDSHIRE CC,"CHILDRENS, YOUNG PEOPLE AND FAMILIES","	LEAVING CARE CITY 2",CLOTHING AND UNIFORMS,20/02/2023,10694378671,12,PRIMARK 693
OXFORDSHIRE CC,"CHILDRENS, YOUNG PEOPLE AND FAMILIES","	LEAVING CARE CITY 2",OTHER TRANSPORT ARRANGEMENTS,20/02/2023,10694378673,18,STGCOACH/CTYLINK
OXFORDSHIRE CC,"CHILDRENS, YOUNG PEOPLE AND FAMILIES",CHILDREN IN CARE NON-STAFFING - CENTRL 1,ENTERTAINMENT EXPENSES,20/02/2023,10694378677,35.54,HOLLYWOOD BOWL
OXFORDSHIRE CC,"CHILDRENS, YOUNG PEOPLE AND FAMILIES",40 THE MOORS,RESIDENTIAL ACTIVITIES,20/02/2023,10694378679,32.45,VUE ENTERTAINMENT LTD
OXFORDSHIRE CC,"CHILDRENS, YOUNG PEOPLE AND FAMILIES",40 THE MOORS,CATERING PROVISIONS,20/02/2023,10694378681,8.34,TESCO STORES 2788
OXFORDSHIRE CC,"CHILDRENS, YOUNG PEOPLE AND FAMILIES","	LOOKED AFTER SOUTH",PAYMENTS TO TRANSPORT OPERATORS,20/02/2023,10694378683,148.64,GAR HOTEL RES
OXFORDSHIRE CC,"CHILDRENS, YOUNG PEOPLE AND FAMILIES","	LOOKED AFTER SOUTH",HIRE OF ACCOMMODATION AND FACILITIES,20/02/2023,10694378685,387,THE CHURCHILL COURT
OXFORDSHIRE CC,CORPORATE CORE,OPERATIONS,MATERIALS,20/02/2023,10694378697,6.29,AMZNMKTPLACE
OXFORDSHIRE CC,CORPORATE CORE,OPERATIONS,MATERIALS,20/02/2023,10694378695,14.95,AMZNMKTPLACE
OXFORDSHIRE CC,"CHILDRENS, YOUNG PEOPLE AND FAMILIES",CHILDREN IN CARE NON-STAFFING - CENTRL 2,PAYMENT TO GOVERNMENT DEPARTMENTS,20/02/2023,10694378709,34,DRIVING LICENCE WEB
OXFORDSHIRE CC,ENVIRONMENT AND ECONOMY,"	COUNTY HALL",OTHER PREMISES RELATED COSTS,20/02/2023,10694378703,144,NEWTON NEWTON FLAG & B
OXFORDSHIRE CC,"CHILDRENS, YOUNG PEOPLE AND FAMILIES",NTH EARLY HELP-BCSTR,MATERIALS,20/02/2023,10694378705,32.95,AMZNMKTPLACE AMAZON.CO
OXFORDSHIRE CC,"CHILDRENS, YOUNG PEOPLE AND FAMILIES","	LOOKED AFTER CITY 2",OTHER TRANSPORT ARRANGEMENTS,20/02/2023,10694378711,2,OXFORD BUS COMPANY
OXFORDSHIRE CC,"CHILDRENS, YOUNG PEOPLE AND FAMILIES","	LOOKED AFTER CITY 2",OTHER TRANSPORT ARRANGEMENTS,20/02/2023,10694378713,2,OXFORD BUS COMPANY
OXFORDSHIRE CC,CORPORATE CORE,HISTORY SERVICE,FURNITURE,20/02/2023,10694378725,6.13,AMZNMKTPLACE AMAZON.CO
OXFORDSHIRE CC,ENVIRONMENT AND ECONOMY,MUSEUM CAFE,MATERIALS,20/02/2023,10694378727,577.97,ROBERT DYAS ECOM
OXFORDSHIRE CC,ENVIRONMENT AND ECONOMY,MUSEUM CAFE,FURNITURE,20/02/2023,10694378729,912.83,WWW.BEACHHOUSEAGENCY.C
OXFORDSHIRE CC,"CHILDRENS, YOUNG PEOPLE AND FAMILIES","	LOOKED AFTER CITY 2",OTHER TRANSPORT ARRANGEMENTS,20/02/2023,10694378715,2,OXFORD BUS COMPANY
OXFORDSHIRE CC,SOCIAL AND COMMUNITY SERVICES,CSS WANTAGE,CATERING PROVISIONS,20/02/2023,10694378759,5.7,ROOT ONE LIMITED
OXFORDSHIRE CC,SOCIAL AND COMMUNITY SERVICES,CSS WANTAGE,CATERING PROVISIONS,20/02/2023,10694378753,6.74,ROOT ONE LIMITED
OXFORDSHIRE CC,SOCIAL AND COMMUNITY SERVICES,CSS WANTAGE,CATERING PROVISIONS,20/02/2023,10694378755,1.99,ROOT ONE LIMITED
OXFORDSHIRE CC,"CHILDRENS, YOUNG PEOPLE AND FAMILIES",THAME E&A HOME,OTHER EXPENSES,20/02/2023,10694378539,84.95,J PARKER DUTCH BULBS L
OXFORDSHIRE CC,"CHILDRENS, YOUNG PEOPLE AND FAMILIES",WITNEY,CATERING PROVISIONS,20/02/2023,10694378543,0.99,SAINSBURYS S/MKTS
OXFORDSHIRE CC,SOCIAL AND COMMUNITY SERVICES,CSS - ABINGDON,MATERIALS,20/02/2023,10694378545,9.05,REPLACEMENT KEYS LTD
OXFORDSHIRE CC,ENVIRONMENT AND ECONOMY,HARD FM,PREMISES REPAIRS,20/02/2023,10694378553,75.06,WICKES OXFORD
OXFORDSHIRE CC,ENVIRONMENT AND ECONOMY,HARD FM,HARDWARE AND CROCKERY,20/02/2023,10694378555,116.77,WWW.SCREWFIX.COM
OXFORDSHIRE CC,"CHILDRENS, YOUNG PEOPLE AND FAMILIES",CHILDREN IN CARE NON-STAFFING - CENTRL 1,PAYMENTS TO TRANSPORT OPERATORS,20/02/2023,10694378559,114.63,TRAINLINE
OXFORDSHIRE CC,"CHILDRENS, YOUNG PEOPLE AND FAMILIES",WITNEY,TELEPHONE - EQUIPMENT,20/02/2023,10694378541,10,VESTA   VODAFONE TOPUP
OXFORDSHIRE CC,"CHILDRENS, YOUNG PEOPLE AND FAMILIES","	LEAVING CARE CITY 1",PAYMENT TO GOVERNMENT DEPARTMENTS,20/02/2023,10694378563,35,OXFORDSHIRE CC WEB1
OXFORDSHIRE CC,"CHILDRENS, YOUNG PEOPLE AND FAMILIES",THAME E&A HOME,CATERING PROVISIONS,20/02/2023,10694378573,130.26,TESCO STORES 2038
OXFORDSHIRE CC,"CHILDRENS, YOUNG PEOPLE AND FAMILIES",THAME E&A HOME,CATERING PROVISIONS,20/02/2023,10694378575,-2.75,TESCO STORES 2038
OXFORDSHIRE CC,ENVIRONMENT AND ECONOMY,WASTE REDUCTION GEN,"PUBLICITY, PROMOTIONS AND ADVERTISEMENT",20/02/2023,10694378577,15.39,FACEBK M5Z73NX7M2
OXFORDSHIRE CC,"CHILDRENS, YOUNG PEOPLE AND FAMILIES",CHILDREN IN CARE NON-STAFFING - CENTRL 1,PAYMENTS TO TRANSPORT OPERATORS,20/02/2023,10694378561,22.92,TRAINLINE.COM
OXFORDSHIRE CC,CORPORATE CORE,INCOME TEAM,PAYMENT TO GOVERNMENT DEPARTMENTS,20/02/2023,10694378583,1.5,FIND A WILL
OXFORDSHIRE CC,CORPORATE CORE,INCOME TEAM,PAYMENT TO GOVERNMENT DEPARTMENTS,20/02/2023,10694378585,1.5,FIND A WILL
OXFORDSHIRE CC,"CHILDRENS, YOUNG PEOPLE AND FAMILIES","	RESIDENTIAL STRATEGY",MATERIALS,20/02/2023,10694378591,8.49,AMZNMKTPLACE
OXFORDSHIRE CC,"CHILDRENS, YOUNG PEOPLE AND FAMILIES",40 THE MOORS,CATERING PROVISIONS,20/02/2023,10694378593,242.65,TESCO STORES 4480
OXFORDSHIRE CC,SOCIAL AND COMMUNITY SERVICES,CSS - OXFORD,CATERING PROVISIONS,20/02/2023,10694378581,56.04,ALDI STORES 775-142
OXFORDSHIRE CC,"CHILDRENS, YOUNG PEOPLE AND FAMILIES","	RESIDENTIAL STRATEGY",MATERIALS,20/02/2023,10694378595,18.24,AMZNMKTPLACE
OXFORDSHIRE CC,"CHILDRENS, YOUNG PEOPLE AND FAMILIES",40 THE MOORS,MATERIALS,20/02/2023,10694378597,75.29,AMZNMKTPLACE
OXFORDSHIRE CC,"CHILDRENS, YOUNG PEOPLE AND FAMILIES","	LOOKED AFTER NORTH",CATERING,20/02/2023,10694378613,12.65,COSTA COFFEE 43011616
OXFORDSHIRE CC,CORPORATE CORE,REGISTRAR,"SUPPLIES, STATIONERY AND MATERIALS",20/02/2023,10694378609,18.99,AMAZON.CO.UK 136A055K4
OXFORDSHIRE CC,CORPORATE CORE,REGISTRAR,PURCHASE OF IT EQUIPMENT,20/02/2023,10694378611,9.98,AMZNMKTPLACE
OXFORDSHIRE CC,"CHILDRENS, YOUNG PEOPLE AND FAMILIES","	LOOKED AFTER NORTH",CATERING,20/02/2023,10694378615,5.59,MCDONALDS 574
OXFORDSHIRE CC,"CHILDRENS, YOUNG PEOPLE AND FAMILIES",0-5 STDS & PROGRESS,PAYMENTS TO VOLUNTARY BODIES,20/02/2023,10694378617,99,PACEY COMMERCIAL SERVI
OXFORDSHIRE CC,ENVIRONMENT AND ECONOMY,"	SAMUELSON HOUSE",OTHER PREMISES RELATED COSTS,20/02/2023,10694378619,159,TVLICENSING.CO.UK
OXFORDSHIRE CC,"CHILDRENS, YOUNG PEOPLE AND FAMILIES",FSP NON-STAFFING - CENTRAL,DRUGS AND MEDICAL SUPPLIES,20/02/2023,10694378923,13.48,"BOOTS,COWLEY"
OXFORDSHIRE CC,"CHILDRENS, YOUNG PEOPLE AND FAMILIES",SEND TRANSFORMATION,"SUPPLIES, STATIONERY AND MATERIALS",20/02/2023,10694378931,6.99,AMZNMKTPLACE
OXFORDSHIRE CC,"CHILDRENS, YOUNG PEOPLE AND FAMILIES",FSP NON-STAFFING - CENTRAL,CATERING,20/02/2023,10694378919,20.5,BOSWELLS CAF? COWLEY
OXFORDSHIRE CC,"CHILDRENS, YOUNG PEOPLE AND FAMILIES",FSP NON-STAFFING - CENTRAL,MATERIALS,20/02/2023,10694378921,70.2,J D SPORTS
OXFORDSHIRE CC,"CHILDRENS, YOUNG PEOPLE AND FAMILIES",FSP NON-STAFFING - CENTRAL,CLOTHING AND UNIFORMS,20/02/2023,10694378925,32.98,SELECT
OXFORDSHIRE CC,"CHILDRENS, YOUNG PEOPLE AND FAMILIES",SEND TRANSFORMATION,"SUPPLIES, STATIONERY AND MATERIALS",20/02/2023,10694378927,7.79,AMZNMKTPLACE
OXFORDSHIRE CC,"CHILDRENS, YOUNG PEOPLE AND FAMILIES",SEND TRANSFORMATION,"SUPPLIES, STATIONERY AND MATERIALS",20/02/2023,10694378929,26.85,AMZNMKTPLACE
OXFORDSHIRE CC,ENVIRONMENT AND ECONOMY,HARD FM,HARDWARE AND CROCKERY,20/02/2023,10694378939,96.97,SCREWFIX OXFORD COWLEY
OXFORDSHIRE CC,"CHILDRENS, YOUNG PEOPLE AND FAMILIES",SEND TRANSFORMATION,"SUPPLIES, STATIONERY AND MATERIALS",20/02/2023,10694378933,59.94,AMZNMKTPLACE
OXFORDSHIRE CC,"CHILDRENS, YOUNG PEOPLE AND FAMILIES",CHILDREN IN CARE NON-STAFFING - SOUTH,OTHER TRANSPORT ARRANGEMENTS,20/02/2023,10694378935,5.5,WESTGATE OXFORD CAR PA
OXFORDSHIRE CC,"CHILDRENS, YOUNG PEOPLE AND FAMILIES",CHILDREN IN CARE NON-STAFFING - SOUTH,CATERING,20/02/2023,10694378937,10,ZETTLE_ JUNKYARD GOLF
OXFORDSHIRE CC,"CHILDRENS, YOUNG PEOPLE AND FAMILIES","	OCCG GRANT",CATERING PROVISIONS,20/02/2023,10694378941,15.8,SPAR
OXFORDSHIRE CC,"CHILDRENS, YOUNG PEOPLE AND FAMILIES",EYNSHAM,CLOTHING AND UNIFORMS,20/02/2023,10694378943,101.13,SPORTSDIRECT.COM
OXFORDSHIRE CC,"CHILDRENS, YOUNG PEOPLE AND FAMILIES",EYNSHAM,CATERING,20/02/2023,10694378945,6.79,BLENHEIM SERVICE STATI
OXFORDSHIRE CC,SOCIAL AND COMMUNITY SERVICES,FINANCIAL ASSESSMENT,POSTAGE AND DELIVERY,20/02/2023,10694378947,-20.85,ROYAL MAIL GROUP LTD
OXFORDSHIRE CC,"CHILDRENS, YOUNG PEOPLE AND FAMILIES",DIDCOT MOVE-ON HOME,CATERING PROVISIONS,20/02/2023,10694378631,61.89,TESCO STORES 2413
OXFORDSHIRE CC,"CHILDRENS, YOUNG PEOPLE AND FAMILIES","	LEAVING CARE CITY 1",ENTERTAINMENT EXPENSES,20/02/2023,10694378625,199.65,TM  TICKETMASTERUK
OXFORDSHIRE CC,"CHILDRENS, YOUNG PEOPLE AND FAMILIES",KINGFISHER,PAYMENTS TO TRANSPORT OPERATORS,20/02/2023,10694378627,36,BICESTER VIL SSTP
OXFORDSHIRE CC,"CHILDRENS, YOUNG PEOPLE AND FAMILIES",DIDCOT MOVE-ON HOME,CATERING,20/02/2023,10694378629,22.36,MCDONALDS
OXFORDSHIRE CC,"CHILDRENS, YOUNG PEOPLE AND FAMILIES",PARTNERSHIP YOUTH OFFER,OTHER TRAINING COURSES AND QUALIFICATION,17/02/2023,10687130567,86.83,EB  MUSIC JUSTICE AMP
OXFORDSHIRE CC,"CHILDRENS, YOUNG PEOPLE AND FAMILIES",NTH EARLY HELP-BNRBY,CATERING PROVISIONS,17/02/2023,10687130585,21.76,TESCO STORES 2064
OXFORDSHIRE CC,SOCIAL AND COMMUNITY SERVICES,"	PUBLIC HEALTH GENERA",EQUIPMENT,17/02/2023,10687130589,59.98,AMZNMKTPLACE
OXFORDSHIRE CC,"CHILDRENS, YOUNG PEOPLE AND FAMILIES",KINGFISHER,PREMISES REPAIRS,17/02/2023,10687129435,62.75,PAYPAL  WICKESBUILD
OXFORDSHIRE CC,CORPORATE CORE,CATERING MANAGEMENT SOFT FM,CATERING PROVISIONS,17/02/2023,10687129413,149.11,W M MORRISON STORE
OXFORDSHIRE CC,"CHILDRENS, YOUNG PEOPLE AND FAMILIES",CSS WANTAGE,MATERIALS,17/02/2023,10687129425,5.23,BARNARDS WAY POST OFFI
OXFORDSHIRE CC,"CHILDRENS, YOUNG PEOPLE AND FAMILIES",KINGFISHER,FURNITURE,17/02/2023,10687129441,530,CARPET CENTRE YORKSHIR
OXFORDSHIRE CC,SOCIAL AND COMMUNITY SERVICES,CSS BICESTER,MATERIALS,17/02/2023,10687129447,51.25,AMZNMKTPLACE
OXFORDSHIRE CC,SOCIAL AND COMMUNITY SERVICES,CSS BICESTER,MATERIALS,17/02/2023,10687129455,9.57,AMZNMKTPLACE
OXFORDSHIRE CC,"CHILDRENS, YOUNG PEOPLE AND FAMILIES",FIELDWORK UASC,OTHER TRANSPORT ARRANGEMENTS,17/02/2023,10687129461,54.81,TRAINLINE
OXFORDSHIRE CC,ENVIRONMENT AND ECONOMY,HARD FM,PREMISES REPAIRS,17/02/2023,10687129469,5.84,B AND Q
OXFORDSHIRE CC,ENVIRONMENT AND ECONOMY,HARD FM,PREMISES REPAIRS,17/02/2023,10687129475,349.99,WWW.SCREWFIX.COM
OXFORDSHIRE CC,"CHILDRENS, YOUNG PEOPLE AND FAMILIES",THAME E&A HOME,MATERIALS,17/02/2023,10687130615,5.09,AMZNMKTPLACE
OXFORDSHIRE CC,SOCIAL AND COMMUNITY SERVICES,"	PUBLIC HEALTH GENERA",EQUIPMENT,17/02/2023,10687130595,75.15,AMZNMKTPLACE
OXFORDSHIRE CC,"CHILDRENS, YOUNG PEOPLE AND FAMILIES",QUALITY ASSURANCE SOUTH TEAM,HIRE OF ACCOMMODATION AND FACILITIES,17/02/2023,10687130603,64.6,PREMIER INN
OXFORDSHIRE CC,"CHILDRENS, YOUNG PEOPLE AND FAMILIES",QUALITY ASSURANCE SOUTH TEAM,HIRE OF ACCOMMODATION AND FACILITIES,17/02/2023,10687130609,65.26,TRAVELODGE
OXFORDSHIRE CC,"CHILDRENS, YOUNG PEOPLE AND FAMILIES",EYNSHAM,CATERING PROVISIONS,17/02/2023,10687130627,8.7,CO-OPERATIVE FOOD
OXFORDSHIRE CC,"CHILDRENS, YOUNG PEOPLE AND FAMILIES",EYNSHAM,CATERING PROVISIONS,17/02/2023,10687130633,5,SPAR EYNSHAM
OXFORDSHIRE CC,"CHILDRENS, YOUNG PEOPLE AND FAMILIES",FSP NON-STAFFING - CENTRAL,CATERING,17/02/2023,10687130639,58.1,FRANKIE & BENNYS 5389
OXFORDSHIRE CC,ENVIRONMENT AND ECONOMY,HARD FM,GAS,17/02/2023,10687129497,"1,008.41",ALLSTAR COLLECTIONS
OXFORDSHIRE CC,ENVIRONMENT AND ECONOMY,HARD FM,PREMISES REPAIRS,17/02/2023,10687129477,64.52,HG BUILDBASE OXFORD
OXFORDSHIRE CC,ENVIRONMENT AND ECONOMY,HARD FM,PREMISES REPAIRS,17/02/2023,10687129483,64.52,HG BUILDBASE OXFORD
OXFORDSHIRE CC,ENVIRONMENT AND ECONOMY,HARD FM,PREMISES REPAIRS,17/02/2023,10687129489,8.48,TOOLSTATION LTD
OXFORDSHIRE CC,"CHILDRENS, YOUNG PEOPLE AND FAMILIES","	LEAVING CARE CITY 1",OTHER EXPENSES,17/02/2023,10687129507,39.99,ARGOS LTD
OXFORDSHIRE CC,"CHILDRENS, YOUNG PEOPLE AND FAMILIES",FAMILY SOLUTIONS PLUS NON-STAFF - NORTH,MATERIALS,17/02/2023,10687129513,12,WWW.ARGOS.CO.UK
OXFORDSHIRE CC,SOCIAL AND COMMUNITY SERVICES,SCHOOLS FM CATERING AREA 4,MATERIALS,17/02/2023,10687129521,183.54,WWW.NISBETS.COM
OXFORDSHIRE CC,"CHILDRENS, YOUNG PEOPLE AND FAMILIES",FAMILY SOLUTIONS PLUS NON-STAFF � SOUTH,PAYMENT TO GOVERNMENT DEPARTMENTS,17/02/2023,10687129533,-35,OXFORDSHIRE CC MOTO1
OXFORDSHIRE CC,SOCIAL AND COMMUNITY SERVICES,"	TRANSPORT GENERAL",CATERING PROVISIONS,17/02/2023,10687129541,16.66,MILK AND MORE (RECUR
OXFORDSHIRE CC,"CHILDRENS, YOUNG PEOPLE AND FAMILIES","	DISABILITIES TEAM-C",HIRE OF ACCOMMODATION AND FACILITIES,17/02/2023,10687129545,87.55,PREMIER INN
OXFORDSHIRE CC,CORPORATE CORE,INCOME TEAM,PAYMENT TO GOVERNMENT DEPARTMENTS,17/02/2023,10687129573,1.5,FIND A WILL
OXFORDSHIRE CC,"CHILDRENS, YOUNG PEOPLE AND FAMILIES","	HOME SUPPORT",MATERIALS,17/02/2023,10687129563,38.98,AMZNMKTPLACE
OXFORDSHIRE CC,"CHILDRENS, YOUNG PEOPLE AND FAMILIES","	HOME SUPPORT",CATERING PROVISIONS,17/02/2023,10687129567,1.99,BODI COTE STORE
OXFORDSHIRE CC,CORPORATE CORE,INCOME TEAM,PAYMENT TO GOVERNMENT DEPARTMENTS,17/02/2023,10687129577,1.5,FIND A WILL
OXFORDSHIRE CC,"CHILDRENS, YOUNG PEOPLE AND FAMILIES",40 THE MOORS,ENTERTAINMENT EXPENSES,17/02/2023,10687129599,10.8,HOLLYWOOD BOWL
OXFORDSHIRE CC,SOCIAL AND COMMUNITY SERVICES,CSS WANTAGE,CATERING PROVISIONS,17/02/2023,10687130147,128.8,ASDA GROCERIES ONLINE
OXFORDSHIRE CC,SOCIAL AND COMMUNITY SERVICES,CSS WANTAGE,CATERING PROVISIONS,17/02/2023,10687130153,-20.4,ASDA GROCERIES ONLINE
OXFORDSHIRE CC,"CHILDRENS, YOUNG PEOPLE AND FAMILIES",PSYCHOLOGY SERVICE,"SUPPLIES, STATIONERY AND MATERIALS",17/02/2023,10687130163,61.71,AMAZON.CO.UK 131435TA4
OXFORDSHIRE CC,"CHILDRENS, YOUNG PEOPLE AND FAMILIES",PSYCHOLOGY SERVICE,"SUPPLIES, STATIONERY AND MATERIALS",17/02/2023,10687130167,68.97,AMAZON.CO.UK 134IM7EK4
OXFORDSHIRE CC,"CHILDRENS, YOUNG PEOPLE AND FAMILIES",PSYCHOLOGY SERVICE,"SUPPLIES, STATIONERY AND MATERIALS",17/02/2023,10687130171,128.94,AMAZON.CO.UK 1382I9N34
OXFORDSHIRE CC,"CHILDRENS, YOUNG PEOPLE AND FAMILIES",PSYCHOLOGY SERVICE,"SUPPLIES, STATIONERY AND MATERIALS",17/02/2023,10687130171,109.26,AMAZON.CO.UK 1382I9N34
OXFORDSHIRE CC,"CHILDRENS, YOUNG PEOPLE AND FAMILIES",SEND TRANSFORMATION,"SUPPLIES, STATIONERY AND MATERIALS",17/02/2023,10687130177,26,AMZNMKTPLACE
OXFORDSHIRE CC,"CHILDRENS, YOUNG PEOPLE AND FAMILIES",SEND TRANSFORMATION,"SUPPLIES, STATIONERY AND MATERIALS",17/02/2023,10687130201,50.94,AMZNMKTPLACE
OXFORDSHIRE CC,"CHILDRENS, YOUNG PEOPLE AND FAMILIES",SEND TRANSFORMATION,"SUPPLIES, STATIONERY AND MATERIALS",17/02/2023,10687130201,23.99,AMZNMKTPLACE
OXFORDSHIRE CC,"CHILDRENS, YOUNG PEOPLE AND FAMILIES",SEND TRANSFORMATION,"SUPPLIES, STATIONERY AND MATERIALS",17/02/2023,10687130183,7.99,AMZNMKTPLACE
OXFORDSHIRE CC,"CHILDRENS, YOUNG PEOPLE AND FAMILIES",SEND TRANSFORMATION,"SUPPLIES, STATIONERY AND MATERIALS",17/02/2023,10687130187,19.16,AMZNMKTPLACE
OXFORDSHIRE CC,"CHILDRENS, YOUNG PEOPLE AND FAMILIES",SEND TRANSFORMATION,"SUPPLIES, STATIONERY AND MATERIALS",17/02/2023,10687130193,8.54,AMZNMKTPLACE
OXFORDSHIRE CC,"CHILDRENS, YOUNG PEOPLE AND FAMILIES",SEND TRANSFORMATION,"SUPPLIES, STATIONERY AND MATERIALS",17/02/2023,10687130203,36.84,AMZNMKTPLACE
OXFORDSHIRE CC,"CHILDRENS, YOUNG PEOPLE AND FAMILIES","	EDM",PURCHASE OF IT EQUIPMENT,17/02/2023,10687130209,834.4,KINGFISHERDIRECT
OXFORDSHIRE CC,"CHILDRENS, YOUNG PEOPLE AND FAMILIES",SEND TRANSFORMATION,"SUPPLIES, STATIONERY AND MATERIALS",17/02/2023,10687130215,5.61,AMZNMKTPLACE AMAZON.CO
OXFORDSHIRE CC,"CHILDRENS, YOUNG PEOPLE AND FAMILIES",SEND TRANSFORMATION,"SUPPLIES, STATIONERY AND MATERIALS",17/02/2023,10687130221,9.99,AMZNMKTPLACE AMAZON.CO
OXFORDSHIRE CC,"CHILDRENS, YOUNG PEOPLE AND FAMILIES",SEND TRANSFORMATION,"SUPPLIES, STATIONERY AND MATERIALS",17/02/2023,10687130223,7,AMZNMKTPLACE AMAZON.CO
OXFORDSHIRE CC,"CHILDRENS, YOUNG PEOPLE AND FAMILIES",SEND TRANSFORMATION,"SUPPLIES, STATIONERY AND MATERIALS",17/02/2023,10687130229,33.94,AMZNMKTPLACE
OXFORDSHIRE CC,"CHILDRENS, YOUNG PEOPLE AND FAMILIES","	SEN/ICT EQUIPMENT",IT SOFTWARE,17/02/2023,10687130235,-180,TEXTHELP
OXFORDSHIRE CC,ENVIRONMENT AND ECONOMY,"	FLEET OPERATIONS",CATERING PROVISIONS,17/02/2023,10687130251,19.04,MILK AND MORE (RECUR
OXFORDSHIRE CC,"CHILDRENS, YOUNG PEOPLE AND FAMILIES",FSP NON-STAFFING - CENTRAL,HIRE OF ACCOMMODATION AND FACILITIES,17/02/2023,10687130279,763.96,PREMIER INN
OXFORDSHIRE CC,"CHILDRENS, YOUNG PEOPLE AND FAMILIES",FSP NON-STAFFING - CENTRAL,HIRE OF ACCOMMODATION AND FACILITIES,17/02/2023,10687130287,-131,PREMIER INN
OXFORDSHIRE CC,"CHILDRENS, YOUNG PEOPLE AND FAMILIES",40 THE MOORS,FURNITURE,17/02/2023,10687130291,394,IKEA LTD 185 MILTON KE
OXFORDSHIRE CC,"CHILDRENS, YOUNG PEOPLE AND FAMILIES",40 THE MOORS,FURNITURE,17/02/2023,10687130297,106,IKEA LTD 185 MILTON KE
OXFORDSHIRE CC,CORPORATE CORE,"MARKETING, COMMUNICATIONS & ENGAGEMENT","PUBLICITY, PROMOTIONS AND ADVERTISEMENT",17/02/2023,10687130303,14.4,SNAP INC SNAP SNAP ADS
OXFORDSHIRE CC,"CHILDRENS, YOUNG PEOPLE AND FAMILIES",UASC 16&17,RESIDENTIAL ACTIVITIES,17/02/2023,10687130337,34.99,PUREGYM LIMITED
OXFORDSHIRE CC,SOCIAL AND COMMUNITY SERVICES,REVIEWING TEAM,HIRE OF ACCOMMODATION AND FACILITIES,17/02/2023,10687130327,73.99,PREMIER INN
OXFORDSHIRE CC,"CHILDRENS, YOUNG PEOPLE AND FAMILIES","	CW ADOPT & FOST TEAM","BOOKS, DVDS AND CDS",17/02/2023,10687130345,67.6,CORAMBAAF
OXFORDSHIRE CC,SOCIAL AND COMMUNITY SERVICES,BICESTER LIBRARY,HEALTH AND SAFETY EQUIPMENT,17/02/2023,10687130359,5.83,AMZNMKTPLACE
OXFORDSHIRE CC,SOCIAL AND COMMUNITY SERVICES,BICESTER LIBRARY,HEALTH AND SAFETY EQUIPMENT,17/02/2023,10687130367,9.99,AMZNMKTPLACE
OXFORDSHIRE CC,"CHILDRENS, YOUNG PEOPLE AND FAMILIES","	RIVERSIDE CENTRE",PAYMENTS TO TRANSPORT OPERATORS,17/02/2023,10687130387,270,EP X WOODLAND WAYS
OXFORDSHIRE CC,"CHILDRENS, YOUNG PEOPLE AND FAMILIES",HOUSE PROJECT,OTHER TRANSPORT ARRANGEMENTS,17/02/2023,10687130417,7.5,WESTGATE OXFORD CAR PA
OXFORDSHIRE CC,"CHILDRENS, YOUNG PEOPLE AND FAMILIES",EYNSHAM,OTHER COMMUNICATIONS,17/02/2023,10687130403,10.99,NETFLIX.COM
OXFORDSHIRE CC,CORPORATE CORE,,STATIONERY,17/02/2023,10687130409,115.75,LYRECO UK LTD
OXFORDSHIRE CC,"CHILDRENS, YOUNG PEOPLE AND FAMILIES",KINGFISHER,MATERIALS,17/02/2023,10687130427,27.98,AMZNMKTPLACE AMAZON.CO
OXFORDSHIRE CC,SOCIAL AND COMMUNITY SERVICES,WALLINGFORD LIBRARY,MATERIALS,17/02/2023,10687130433,4.58,AMZNMKTPLACE
OXFORDSHIRE CC,SOCIAL AND COMMUNITY SERVICES,WALLINGFORD LIBRARY,MATERIALS,17/02/2023,10687130437,3.45,AMZNMKTPLACE
OXFORDSHIRE CC,SOCIAL AND COMMUNITY SERVICES,WALLINGFORD LIBRARY,CATERING PROVISIONS,17/02/2023,10687130443,6.85,WAITROSE 675
OXFORDSHIRE CC,"CHILDRENS, YOUNG PEOPLE AND FAMILIES","	LEAVING CARE NORTH",PAYMENTS TO TRANSPORT OPERATORS,17/02/2023,10687130451,9.67,TRAINLINE.COM
OXFORDSHIRE CC,"CHILDRENS, YOUNG PEOPLE AND FAMILIES","	LEAVING CARE NORTH",PAYMENTS TO TRANSPORT OPERATORS,17/02/2023,10687130459,54.91,TRAINLINE.COM
OXFORDSHIRE CC,"CHILDRENS, YOUNG PEOPLE AND FAMILIES",NTS UASC AGENCY,TELEPHONE - EQUIPMENT,17/02/2023,10687130481,55.99,VODAFONE
OXFORDSHIRE CC,"CHILDRENS, YOUNG PEOPLE AND FAMILIES","	LEAVING CARE NORTH",OTHER TRANSPORT ARRANGEMENTS,17/02/2023,10687130461,86,STAGECOACH SERVICE
OXFORDSHIRE CC,"CHILDRENS, YOUNG PEOPLE AND FAMILIES",CHILDREN IN CARE NON-STAFFING - SOUTH,POSTAGE AND DELIVERY,17/02/2023,10687130467,4.45,POST OFFICE COUNTER
OXFORDSHIRE CC,"CHILDRENS, YOUNG PEOPLE AND FAMILIES",CHILDREN IN CARE NON-STAFFING - SOUTH,CATERING PROVISIONS,17/02/2023,10687130475,2.75,MARTIN MCCOLL
OXFORDSHIRE CC,"CHILDRENS, YOUNG PEOPLE AND FAMILIES",FSP NON-STAFFING - CENTRAL,HIRE OF ACCOMMODATION AND FACILITIES,17/02/2023,10687130489,669.94,PREMIER INN
OXFORDSHIRE CC,SOCIAL AND COMMUNITY SERVICES,LIBRARY PROJECTS,MATERIALS,17/02/2023,10687130493,342,A & P CHAMBERS LTD
OXFORDSHIRE CC,"CHILDRENS, YOUNG PEOPLE AND FAMILIES",FAMILY SOLUTIONS PLUS NON-STAFF � SOUTH,OTHER TRANSPORT ARRANGEMENTS,17/02/2023,10687130497,24,OXFORDBUS.CO.UK
OXFORDSHIRE CC,"CHILDRENS, YOUNG PEOPLE AND FAMILIES",DIDCOT MOVE-ON HOME,GENERAL MAINTENANCE,17/02/2023,10687130511,8.8,B&M 514 - DICOT
OXFORDSHIRE CC,"CHILDRENS, YOUNG PEOPLE AND FAMILIES",DIDCOT MOVE-ON HOME,CATERING PROVISIONS,17/02/2023,10687130517,10.2,TESCO STORES 2413
OXFORDSHIRE CC,"CHILDRENS, YOUNG PEOPLE AND FAMILIES",FAMILY SOLUTIONS PLUS NON-STAFF � SOUTH,PAYMENTS TO TRANSPORT OPERATORS,17/02/2023,10687130537,37,STAGECOACH SERVICE
OXFORDSHIRE CC,"CHILDRENS, YOUNG PEOPLE AND FAMILIES",ATV ADOPTION WOODLEY,STATIONERY,17/02/2023,10687129399,8,AMZNMKTPLACE
OXFORDSHIRE CC,CORPORATE CORE,CATERING MANAGEMENT SOFT FM,CATERING PROVISIONS,17/02/2023,10687129407,18.01,ALDI STORES
OXFORDSHIRE CC,"CHILDRENS, YOUNG PEOPLE AND FAMILIES",DIDCOT MOVE-ON HOME,CLEANING MATERIALS,17/02/2023,10687130523,4.7,TESCO STORES 2413
OXFORDSHIRE CC,"CHILDRENS, YOUNG PEOPLE AND FAMILIES",DIDCOT MOVE-ON HOME,MATERIALS,17/02/2023,10687130545,13,THE WORKS
OXFORDSHIRE CC,"CHILDRENS, YOUNG PEOPLE AND FAMILIES",FSP STAFFING � NORTH,NON-STAFF SUBSISTENCE AND EXPENSES,17/02/2023,10687130553,40,TESCO GIFT CARD
OXFORDSHIRE CC,SOCIAL AND COMMUNITY SERVICES,CSS - BANBURY,CATERING PROVISIONS,17/02/2023,10687130561,3.3,CO-OPERATIVE FOOD
OXFORDSHIRE CC,"CHILDRENS, YOUNG PEOPLE AND FAMILIES",CHILDREN IN CARE NON-STAFFING - NORTH,PAYMENT TO GOVERNMENT DEPARTMENTS,17/02/2023,10687129655,58.5,HM PASSPORT OFFICE
OXFORDSHIRE CC,"CHILDRENS, YOUNG PEOPLE AND FAMILIES","	LOOKED AFTER NORTH",PAYMENTS TO TRANSPORT OPERATORS,17/02/2023,10687129623,30.56,TRAINLINE
OXFORDSHIRE CC,"CHILDRENS, YOUNG PEOPLE AND FAMILIES","	LOOKED AFTER NORTH",CATERING PROVISIONS,17/02/2023,10687129637,126.32,ASDA SUPERSTORE
OXFORDSHIRE CC,"CHILDRENS, YOUNG PEOPLE AND FAMILIES","	LOOKED AFTER NORTH",CATERING,17/02/2023,10687129647,5.56,MCDONALDS 1339
OXFORDSHIRE CC,ENVIRONMENT AND ECONOMY,"	SAMUELSON HOUSE",CATERING PROVISIONS,17/02/2023,10687129661,41.4,MILK AND MORE (RECUR
OXFORDSHIRE CC,"CHILDRENS, YOUNG PEOPLE AND FAMILIES",THAME E&A HOME,CATERING PROVISIONS,17/02/2023,10687129667,12.73,SAINSBURYS SUPERMA
OXFORDSHIRE CC,"CHILDRENS, YOUNG PEOPLE AND FAMILIES",UASC 16&17,DRUGS AND MEDICAL SUPPLIES,17/02/2023,10687129675,9.5,TESCO STORES 2994
OXFORDSHIRE CC,"CHILDRENS, YOUNG PEOPLE AND FAMILIES","	LEAVING CARE CITY 1",MATERIALS,17/02/2023,10687129681,114.13,AMZNMKTPLACE
OXFORDSHIRE CC,"CHILDRENS, YOUNG PEOPLE AND FAMILIES","	LEAVING CARE CITY 1",VEHICLES AND PLANT - REPAIRS AND MAIN,17/02/2023,10687129685,57.99,EURO CAR PARTS
OXFORDSHIRE CC,"CHILDRENS, YOUNG PEOPLE AND FAMILIES",UASC 16&17,MATERIALS,17/02/2023,10687129705,12.09,AMZNMKTPLACE
OXFORDSHIRE CC,ENVIRONMENT AND ECONOMY,WITNEY LIBRARY,"NEWSPAPERS, PERIODICALS AND PUBLICATIONS",17/02/2023,10687129697,19.48,PPOINT_ NEWSLINK WITNE
OXFORDSHIRE CC,"CHILDRENS, YOUNG PEOPLE AND FAMILIES",UASC 16&17,RESIDENTIAL ACTIVITIES,17/02/2023,10687129701,24.2,AMZNMKTPLACE
OXFORDSHIRE CC,"CHILDRENS, YOUNG PEOPLE AND FAMILIES",STH EARLY HELP-DDCOT,MATERIALS,17/02/2023,10687129723,63.82,AMZNMKTPLACE
OXFORDSHIRE CC,"CHILDRENS, YOUNG PEOPLE AND FAMILIES",PAUSE PROGRAMME,CATERING,17/02/2023,10687129733,6.3,GREGGS PLC
OXFORDSHIRE CC,"CHILDRENS, YOUNG PEOPLE AND FAMILIES",PAUSE PROGRAMME,MATERIALS,17/02/2023,10687129737,10.62,JOHNSON CLEANERS UK LT
OXFORDSHIRE CC,"CHILDRENS, YOUNG PEOPLE AND FAMILIES",PAUSE PROGRAMME,MATERIALS,17/02/2023,10687129743,-10.62,JOHNSON CLEANERS UK LT
OXFORDSHIRE CC,"CHILDRENS, YOUNG PEOPLE AND FAMILIES","	LEAVING CARE CITY 2",CLOTHING AND UNIFORMS,17/02/2023,10687129773,79.98,SPORTSDIRECT.COM
OXFORDSHIRE CC,SOCIAL AND COMMUNITY SERVICES,CSS WITNEY,CATERING PROVISIONS,17/02/2023,10687129747,7,TESCO-STORES 2499
OXFORDSHIRE CC,"CHILDRENS, YOUNG PEOPLE AND FAMILIES","	LEAVING CARE CITY 2",CATERING PROVISIONS,17/02/2023,10687129765,23.25,ASDA STORE 4442
OXFORDSHIRE CC,"CHILDRENS, YOUNG PEOPLE AND FAMILIES","	LEAVING CARE CITY 2",CATERING,17/02/2023,10687129769,10.78,MCDONALDS
OXFORDSHIRE CC,"CHILDRENS, YOUNG PEOPLE AND FAMILIES","	LOOKED AFTER SOUTH",MATERIALS,17/02/2023,10687129783,30,BUYATAB - ALDI
OXFORDSHIRE CC,"CHILDRENS, YOUNG PEOPLE AND FAMILIES","	LOOKED AFTER CITY 1",VEHICLE FUEL,17/02/2023,10687129791,82,BP W/BREAK WARWICK SOU
OXFORDSHIRE CC,"CHILDRENS, YOUNG PEOPLE AND FAMILIES","	LEAVING CARE NORTH",PAYMENT TO GOVERNMENT DEPARTMENTS,17/02/2023,10687129799,82.5,HM PASSPORT OFFICE
OXFORDSHIRE CC,ENVIRONMENT AND ECONOMY,"	NAT TRAILS GENERAL",CATERING PROVISIONS,17/02/2023,10687129809,5.63,CO OPERATIVE FOOD
OXFORDSHIRE CC,"CHILDRENS, YOUNG PEOPLE AND FAMILIES",SI EQUIPMENT,POSTAGE AND DELIVERY,17/02/2023,10687129867,7.65,POST OFFICE COUNTER
OXFORDSHIRE CC,CORPORATE CORE,BUSINESS INTELLECTUAL PROPERTY CENTRE,CATERING PROVISIONS,17/02/2023,10687129835,20.5,SAINSBURYS S/MKTS
OXFORDSHIRE CC,CORPORATE CORE,OPERATIONS,EQUIPMENT,17/02/2023,10687129873,7.5,AMAZON.CO.UK 135G27JB4
OXFORDSHIRE CC,SOCIAL AND COMMUNITY SERVICES,CSS - OXFORD,CATERING PROVISIONS,17/02/2023,10687129877,309.23,TESCO STORES 2994
OXFORDSHIRE CC,ENVIRONMENT AND ECONOMY,COUNTY LIBRARY,CATERING PROVISIONS,17/02/2023,10687129885,84.22,BOOKER LTD - 38584104
OXFORDSHIRE CC,"CHILDRENS, YOUNG PEOPLE AND FAMILIES","	RESIDENTIAL STRATEGY",PAYMENT TO GOVERNMENT DEPARTMENTS,17/02/2023,10687129893,"3,685.00",OFSTED INTERNET
OXFORDSHIRE CC,SOCIAL AND COMMUNITY SERVICES,CORP PROC SERVICE,PROFESSIONAL SUBSCRIPTIONS,17/02/2023,10687129897,223,WWW.CIPS.ORG
OXFORDSHIRE CC,"CHILDRENS, YOUNG PEOPLE AND FAMILIES","	LOOKED AFTER CITY 2",PAYMENTS TO TRANSPORT OPERATORS,17/02/2023,10687129955,55.02,TRAINLINE
OXFORDSHIRE CC,SOCIAL AND COMMUNITY SERVICES,"	MUSEUMS COLLECTIONS",CATERING PROVISIONS,17/02/2023,10687129941,4.5,MILK AND MORE (RECUR
OXFORDSHIRE CC,"CHILDRENS, YOUNG PEOPLE AND FAMILIES","	LOOKED AFTER CITY 2",OTHER TRANSPORT ARRANGEMENTS,17/02/2023,10687129951,2,OXFORD BUS COMPANY
OXFORDSHIRE CC,"CHILDRENS, YOUNG PEOPLE AND FAMILIES","	LOOKED AFTER CITY 2",OTHER TRANSPORT ARRANGEMENTS,17/02/2023,10687129959,2,OXFORD BUS COMPANY
OXFORDSHIRE CC,"CHILDRENS, YOUNG PEOPLE AND FAMILIES","	LOOKED AFTER CITY 2",CATERING,17/02/2023,10687129965,12.07,MCDONALDS
OXFORDSHIRE CC,"CHILDRENS, YOUNG PEOPLE AND FAMILIES","	FOSTER CARE RECRUIT","SUPPLIES, STATIONERY AND MATERIALS",17/02/2023,10687130003,480,FYNE ASSOCIATED
OXFORDSHIRE CC,CORPORATE CORE,SKILLS & LEARNING,OTHER TRAINING COURSES AND QUALIFICATION,17/02/2023,10687130013,"3,840.00",PPMA PAYMENT
OXFORDSHIRE CC,"CHILDRENS, YOUNG PEOPLE AND FAMILIES",FSP STAFFING � NORTH,CATERING PROVISIONS,17/02/2023,10687130019,8.65,TESCO STORES 4377
OXFORDSHIRE CC,"CHILDRENS, YOUNG PEOPLE AND FAMILIES","	RIVERSIDE CENTRE",VEHICLE FUEL,17/02/2023,10687130031,111.14,SAINSBURYS PETROL
OXFORDSHIRE CC,SOCIAL AND COMMUNITY SERVICES,"	MUSEUMS COLLECTIONS",OTHER SERVICES,17/02/2023,10687130055,104.34,WWW.PRESERVATIONEQUIPM
OXFORDSHIRE CC,ENVIRONMENT AND ECONOMY,"	MOUNT HOUSE",MATERIALS,17/02/2023,10687130091,15.8,AMZNMKTPLACE
OXFORDSHIRE CC,ENVIRONMENT AND ECONOMY,"	MOUNT HOUSE",MATERIALS,17/02/2023,10687130097,13.08,AMZNMKTPLACE
OXFORDSHIRE CC,"CHILDRENS, YOUNG PEOPLE AND FAMILIES","	LEAVING CARE NORTH",OTHER TRANSPORT ARRANGEMENTS,17/02/2023,10687130105,2.7,HEADINGTON CAR PARK
OXFORDSHIRE CC,"CHILDRENS, YOUNG PEOPLE AND FAMILIES","	LEAVING CARE NORTH",CATERING,17/02/2023,10687130111,2.15,COSTA COFFEE 43011919
OXFORDSHIRE CC,SOCIAL AND COMMUNITY SERVICES,CSS WANTAGE,CATERING PROVISIONS,17/02/2023,10687130141,7.75,NOTCUTTS GARDEN CE
OXFORDSHIRE CC,SOCIAL AND COMMUNITY SERVICES,CSS WITNEY,CATERING PROVISIONS,17/02/2023,10687130119,27.6,MILK AND MORE (RECUR
OXFORDSHIRE CC,SOCIAL AND COMMUNITY SERVICES,CSS WANTAGE,ENTERTAINMENT EXPENSES,17/02/2023,10687130131,16.05,WWW.BETTER.ORG.UK
OXFORDSHIRE CC,SOCIAL AND COMMUNITY SERVICES,CSS WANTAGE,ENTERTAINMENT EXPENSES,17/02/2023,10687130137,9,WWW.BETTER.ORG.UK
OXFORDSHIRE CC,"CHILDRENS, YOUNG PEOPLE AND FAMILIES","	LEAVING CARE NORTH",PAYMENT TO GOVERNMENT DEPARTMENTS,16/02/2023,10681615659,14,GEN REGISTER OFFICE
OXFORDSHIRE CC,"CHILDRENS, YOUNG PEOPLE AND FAMILIES",CHILDREN IN CARE NON-STAFFING - SOUTH,CATERING,16/02/2023,10681615663,10,NYX HOLLYWOODBOWLGROUP
OXFORDSHIRE CC,"CHILDRENS, YOUNG PEOPLE AND FAMILIES",CHILDREN IN CARE NON-STAFFING - SOUTH,CATERING,16/02/2023,10681615667,4.79,MCDONALDS
OXFORDSHIRE CC,"CHILDRENS, YOUNG PEOPLE AND FAMILIES",CHILDREN IN CARE NON-STAFFING - SOUTH,SUBSCRIPTIONS,16/02/2023,10681615669,4.69,HOLLYWOOD BOWL
OXFORDSHIRE CC,"CHILDRENS, YOUNG PEOPLE AND FAMILIES",FAMILY SOLUTIONS PLUS NON-STAFF � SOUTH,CATERING PROVISIONS,16/02/2023,10681615671,1.85,CO-OPERATIVE FOOD
OXFORDSHIRE CC,SOCIAL AND COMMUNITY SERVICES,"	MTFC",EDUCATIONAL AND VOCATIONAL TRAINING ,16/02/2023,10681615673,20,THOMLEY
OXFORDSHIRE CC,"CHILDRENS, YOUNG PEOPLE AND FAMILIES",CSS - ABINGDON,CATERING PROVISIONS,16/02/2023,10681615687,41.29,TESCO STORES 2008
OXFORDSHIRE CC,"CHILDRENS, YOUNG PEOPLE AND FAMILIES",CSS WALLINGFORD,CATERING PROVISIONS,16/02/2023,10681615267,35.75,WAITROSE 675
OXFORDSHIRE CC,"CHILDRENS, YOUNG PEOPLE AND FAMILIES",CHILDREN IN CARE NON-STAFFING - SOUTH,HIRE OF ACCOMMODATION AND FACILITIES,16/02/2023,10681615269,258,THE CHURCHILL COURT
OXFORDSHIRE CC,"CHILDRENS, YOUNG PEOPLE AND FAMILIES",CHILDREN IN CARE NON-STAFFING - SOUTH,PAYMENT TO GOVERNMENT DEPARTMENTS,16/02/2023,10681615273,14,GEN REGISTER OFFICE
OXFORDSHIRE CC,SOCIAL AND COMMUNITY SERVICES,"	MTFC",EDUCATIONAL AND VOCATIONAL TRAINING ,16/02/2023,10681615677,12.2,THOMLEY
OXFORDSHIRE CC,"CHILDRENS, YOUNG PEOPLE AND FAMILIES",FAMILY SOLUTIONS PLUS NON-STAFF � SOUTH,PAYMENT TO GOVERNMENT DEPARTMENTS,16/02/2023,10681615689,35,OXFORDSHIRE CC WEB1
OXFORDSHIRE CC,"CHILDRENS, YOUNG PEOPLE AND FAMILIES",40 THE MOORS,CATERING PROVISIONS,16/02/2023,10681615693,6.84,TESCO STORES 2788
OXFORDSHIRE CC,"CHILDRENS, YOUNG PEOPLE AND FAMILIES","	LOOKED AFTER SOUTH",VEHICLE FUEL,16/02/2023,10681615695,43.55,ESSO BANBURY SSTN
OXFORDSHIRE CC,"CHILDRENS, YOUNG PEOPLE AND FAMILIES",DIDCOT MOVE-ON HOME,CATERING PROVISIONS,16/02/2023,10681615701,23.14,SAINSBURYS S/MKTS
OXFORDSHIRE CC,SOCIAL AND COMMUNITY SERVICES,"	HISTORY SERVICE",FURNITURE,16/02/2023,10681615705,7.9,AMZNMKTPLACE
OXFORDSHIRE CC,SOCIAL AND COMMUNITY SERVICES,"	HISTORY SERVICE",FURNITURE,16/02/2023,10681615707,24.3,AMZNMKTPLACE
OXFORDSHIRE CC,"CHILDRENS, YOUNG PEOPLE AND FAMILIES",EYNSHAM,VEHICLE FUEL,16/02/2023,10681615711,9.9,BP BOREHAM CONNECT
OXFORDSHIRE CC,SOCIAL AND COMMUNITY SERVICES,CSS - OXFORD,CATERING PROVISIONS,16/02/2023,10681615287,2.18,ALDI STORES 775-142
OXFORDSHIRE CC,"CHILDRENS, YOUNG PEOPLE AND FAMILIES",ATV ADOPTION WOODLEY,OTHER SERVICES,16/02/2023,10681615279,18.99,AMZNMKTPLACE AMAZON.CO
OXFORDSHIRE CC,"CHILDRENS, YOUNG PEOPLE AND FAMILIES","	LOOKED AFTER CITY 1",STATIONERY,16/02/2023,10681615281,9,ME GROUP INTERNATIONAL
OXFORDSHIRE CC,SOCIAL AND COMMUNITY SERVICES,CSS - OXFORD,CATERING PROVISIONS,16/02/2023,10681615285,5.94,ALDI STORES 775-142
OXFORDSHIRE CC,SOCIAL AND COMMUNITY SERVICES,CSS - OXFORD,CATERING PROVISIONS,16/02/2023,10681615291,0.6,ALDI STORES 775-142
OXFORDSHIRE CC,ENVIRONMENT AND ECONOMY,HARD FM,PREMISES REPAIRS,16/02/2023,10681615293,11.75,WICKES BANBURY
OXFORDSHIRE CC,ENVIRONMENT AND ECONOMY,HARD FM,PREMISES REPAIRS,16/02/2023,10681615297,32.33,B & Q 1062
OXFORDSHIRE CC,ENVIRONMENT AND ECONOMY,HARD FM,PREMISES REPAIRS,16/02/2023,10681615301,17.97,WWW.SCREWFIX.COM
OXFORDSHIRE CC,"CHILDRENS, YOUNG PEOPLE AND FAMILIES",FSP NON-STAFFING - CENTRAL,ENTERTAINMENT EXPENSES,16/02/2023,10681615311,30.65,WWW.ODDSFARM.CO.UK
OXFORDSHIRE CC,"CHILDRENS, YOUNG PEOPLE AND FAMILIES",FSP NON-STAFFING - CENTRAL,MATERIALS,16/02/2023,10681615315,260,WWW.ARGOS.CO.UK
OXFORDSHIRE CC,"CHILDRENS, YOUNG PEOPLE AND FAMILIES",FAMILY SOLUTIONS PLUS NON-STAFF - NORTH,PAYMENT TO GOVERNMENT DEPARTMENTS,16/02/2023,10681615743,-7.5,GEN REGISTER OFFICE
OXFORDSHIRE CC,"CHILDRENS, YOUNG PEOPLE AND FAMILIES",40 THE MOORS,VEHICLE FUEL,16/02/2023,10681615729,11.65,TESCO PFS 2488
OXFORDSHIRE CC,"CHILDRENS, YOUNG PEOPLE AND FAMILIES",40 THE MOORS,CLEANING MATERIALS,16/02/2023,10681615735,8.05,TESCO PFS 2488
OXFORDSHIRE CC,"CHILDRENS, YOUNG PEOPLE AND FAMILIES",40 THE MOORS,CATERING PROVISIONS,16/02/2023,10681615739,10.85,SAINSBURYS S/MKTS
OXFORDSHIRE CC,"CHILDRENS, YOUNG PEOPLE AND FAMILIES",THAME E&A HOME,MATERIALS,16/02/2023,10681615751,8.98,AMZNMKTPLACE
OXFORDSHIRE CC,"CHILDRENS, YOUNG PEOPLE AND FAMILIES",THAME E&A HOME,CATERING PROVISIONS,16/02/2023,10681615753,3.4,TESCO STORES 2994
OXFORDSHIRE CC,"CHILDRENS, YOUNG PEOPLE AND FAMILIES",FAMILY SOLUTIONS PLUS NON-STAFF � SOUTH,OTHER TRANSPORT ARRANGEMENTS,16/02/2023,10681615757,5,REDROSE TRAVEL LTD
OXFORDSHIRE CC,"CHILDRENS, YOUNG PEOPLE AND FAMILIES",FAMILY SOLUTIONS PLUS NON-STAFF � SOUTH,PAYMENTS TO VOLUNTARY BODIES,16/02/2023,10681615761,2.49,OXFAM F3828
OXFORDSHIRE CC,"CHILDRENS, YOUNG PEOPLE AND FAMILIES","BICESTER CC, LAUNTON RD",CATERING PROVISIONS,16/02/2023,10681615763,1.65,SAINSBURYS S/MKTS
OXFORDSHIRE CC,"CHILDRENS, YOUNG PEOPLE AND FAMILIES",FAMILY SOLUTIONS PLUS NON-STAFF � SOUTH,PAYMENT TO GOVERNMENT DEPARTMENTS,16/02/2023,10681615335,35,OXFORDSHIRE CC WEB1
OXFORDSHIRE CC,"CHILDRENS, YOUNG PEOPLE AND FAMILIES",FSP NON-STAFFING - CENTRAL,PAYMENTS TO TRANSPORT OPERATORS,16/02/2023,10681615319,33.2,WWW.GWR.COM
OXFORDSHIRE CC,"CHILDRENS, YOUNG PEOPLE AND FAMILIES",CHILDREN IN CARE NON-STAFFING - CENTRL 1,ENTERTAINMENT EXPENSES,16/02/2023,10681615329,26.97,FAIRYTALE FARM
OXFORDSHIRE CC,"CHILDRENS, YOUNG PEOPLE AND FAMILIES",FAMILY SOLUTIONS PLUS NON-STAFF � SOUTH,PAYMENT TO GOVERNMENT DEPARTMENTS,16/02/2023,10681615337,38,GEN REGISTER OFFICE
OXFORDSHIRE CC,"CHILDRENS, YOUNG PEOPLE AND FAMILIES",MANAGEMENT RECHARGES,HIRED AND CONTRACTED SERVICES,16/02/2023,10681615345,42.8,ASDA STORES
OXFORDSHIRE CC,SOCIAL AND COMMUNITY SERVICES,CSS - OXFORD,CATERING PROVISIONS,16/02/2023,10681615355,78.7,ALDI STORES 775-142
OXFORDSHIRE CC,"CHILDRENS, YOUNG PEOPLE AND FAMILIES",UASC 16&17,RESIDENTIAL ACTIVITIES,16/02/2023,10681615775,20,MIP WHITE CALLING CARD
OXFORDSHIRE CC,"CHILDRENS, YOUNG PEOPLE AND FAMILIES",SEND TRANSFORMATION,STATIONERY,16/02/2023,10681615767,13.49,AMZNMKTPLACE
OXFORDSHIRE CC,"CHILDRENS, YOUNG PEOPLE AND FAMILIES",SEND TRANSFORMATION,STATIONERY,16/02/2023,10681615769,112.4,AMZNMKTPLACE
OXFORDSHIRE CC,"CHILDRENS, YOUNG PEOPLE AND FAMILIES",SEND TRANSFORMATION,STATIONERY,16/02/2023,10681615773,5.89,AMZNMKTPLACE
OXFORDSHIRE CC,"CHILDRENS, YOUNG PEOPLE AND FAMILIES",CHILDREN IN CARE NON-STAFFING - SOUTH,CATERING PROVISIONS,16/02/2023,10681615781,62.5,SP FUNKYTEAPOT
OXFORDSHIRE CC,"CHILDRENS, YOUNG PEOPLE AND FAMILIES",CHILDREN IN CARE NON-STAFFING - SOUTH,OTHER TRANSPORT ARRANGEMENTS,16/02/2023,10681615783,2.1,VALE OF WH PARKING FEE
OXFORDSHIRE CC,"CHILDRENS, YOUNG PEOPLE AND FAMILIES",EYNSHAM,CLOTHING AND UNIFORMS,16/02/2023,10681615785,108.2,J D SPORTS  173
OXFORDSHIRE CC,"CHILDRENS, YOUNG PEOPLE AND FAMILIES",CHILDREN IN CARE NON-STAFFING - NORTH,OTHER TRANSPORT ARRANGEMENTS,16/02/2023,10681615787,4,"THE ORACLE CAR PARK, R"
OXFORDSHIRE CC,"CHILDRENS, YOUNG PEOPLE AND FAMILIES",FPT SOUTH/VALE,PAYMENTS TO TRANSPORT OPERATORS,16/02/2023,10681615789,72.48,WWW.HXPAYMENTS.COM
OXFORDSHIRE CC,"CHILDRENS, YOUNG PEOPLE AND FAMILIES","	LEAVING CARE NORTH",MATERIALS,16/02/2023,10681615381,209.99,CASH GENERATOR SHIRLEY
OXFORDSHIRE CC,"CHILDRENS, YOUNG PEOPLE AND FAMILIES",40 THE MOORS,SUBSCRIPTIONS,16/02/2023,10681615371,23.67,HOLLYWOOD BOWL
OXFORDSHIRE CC,"CHILDRENS, YOUNG PEOPLE AND FAMILIES",40 THE MOORS,ENTERTAINMENT EXPENSES,16/02/2023,10681615375,23.67,HOLLYWOOD BOWL
OXFORDSHIRE CC,SOCIAL AND COMMUNITY SERVICES,CHILDREN IN CARE NON-STAFFING - NORTH,CATERING,16/02/2023,10681615377,7.28,MCDONALDS
OXFORDSHIRE CC,CORPORATE CORE,WANTAGE LIBRARY,CATERING PROVISIONS,16/02/2023,10681615385,1.35,WAITROSE 153
OXFORDSHIRE CC,"CHILDRENS, YOUNG PEOPLE AND FAMILIES",PAUSE PROGRAMME,MATERIALS,16/02/2023,10681615389,14.99,AMZNMKTPLACE AMAZON.CO
OXFORDSHIRE CC,CORPORATE CORE,REGISTRAR,DOMESTIC AND CLEANING EQUIPMENT,16/02/2023,10681615391,19.98,AMZNMKTPLACE
OXFORDSHIRE CC,"CHILDRENS, YOUNG PEOPLE AND FAMILIES",CHILDREN IN CARE NON-STAFFING - NORTH,PAYMENTS TO HEALTH AUTHORITIES,16/02/2023,10681615395,212,HCA HEALTHCARE UK
OXFORDSHIRE CC,CORPORATE CORE,LIBRARY COLLECTIONS,"BOOKS, DVDS AND CDS",16/02/2023,10681615403,"1,274.32",OVERDRIVE DIST
OXFORDSHIRE CC,"CHILDRENS, YOUNG PEOPLE AND FAMILIES",UASC 16&17,MATERIALS,16/02/2023,10681615409,8,CURRYS CARE SERVICE
OXFORDSHIRE CC,"CHILDRENS, YOUNG PEOPLE AND FAMILIES","	LEAVING CARE CITY 1","SUPPLIES, STATIONERY AND MATERIALS",16/02/2023,10681615413,25,CS MORRISONS GIFT CARD
OXFORDSHIRE CC,"CHILDRENS, YOUNG PEOPLE AND FAMILIES",KINGFISHER,CATERING,16/02/2023,10681615429,7.5,MCDONALDS
OXFORDSHIRE CC,"CHILDRENS, YOUNG PEOPLE AND FAMILIES",UASC UNDER 16,CLOTHING AND UNIFORMS,16/02/2023,10681615433,117.25,THE STEVENSON GROUP LT
OXFORDSHIRE CC,"CHILDRENS, YOUNG PEOPLE AND FAMILIES","	MUSIC UNALLOCABLE",PROFESSIONAL SUBSCRIPTIONS,16/02/2023,10681615439,58.26,PPL PRS LTD
OXFORDSHIRE CC,"CHILDRENS, YOUNG PEOPLE AND FAMILIES",THAME E&A HOME,CLOTHING AND UNIFORMS,16/02/2023,10681615445,101.8,NIKE BICESTER 2051
OXFORDSHIRE CC,"CHILDRENS, YOUNG PEOPLE AND FAMILIES","DIDCOT CC, PARK ROAD",OTHER PREMISES RELATED COSTS,16/02/2023,10681615463,7.99,AMAZON.CO.UK 131RU83L4
OXFORDSHIRE CC,"CHILDRENS, YOUNG PEOPLE AND FAMILIES",THAME E&A HOME,CATERING,16/02/2023,10681615449,20.57,SUBWAY 22157  FROGMOOR
OXFORDSHIRE CC,"CHILDRENS, YOUNG PEOPLE AND FAMILIES","	LEAVING CARE SOUTH",PAYMENTS TO TRANSPORT OPERATORS,16/02/2023,10681615457,30,RAILCARD.CO.UK
OXFORDSHIRE CC,"CHILDRENS, YOUNG PEOPLE AND FAMILIES",PAUSE PROGRAMME,CATERING,16/02/2023,10681615467,15.5,TUDOR ROSE COFFEE HOU
OXFORDSHIRE CC,SOCIAL AND COMMUNITY SERVICES,CSS WITNEY,CATERING PROVISIONS,16/02/2023,10681615473,6,POUNDLAND LTD
OXFORDSHIRE CC,"CHILDRENS, YOUNG PEOPLE AND FAMILIES",PAUSE PROGRAMME,PAYMENTS TO TRANSPORT OPERATORS,16/02/2023,10681615477,8.45,TRAINLINE
OXFORDSHIRE CC,"CHILDRENS, YOUNG PEOPLE AND FAMILIES",PAUSE PROGRAMME,CATERING,16/02/2023,10681615479,26.4,OXY
OXFORDSHIRE CC,"CHILDRENS, YOUNG PEOPLE AND FAMILIES",DIDCOT MOVE-ON HOME,CATERING PROVISIONS,16/02/2023,10681615483,4,SAINSBURYS SMKT
OXFORDSHIRE CC,"CHILDRENS, YOUNG PEOPLE AND FAMILIES",DIDCOT MOVE-ON HOME,CATERING PROVISIONS,16/02/2023,10681615487,1.25,SAINSBURYS SMKT
OXFORDSHIRE CC,"CHILDRENS, YOUNG PEOPLE AND FAMILIES",FAMILY SOLUTIONS PLUS NON-STAFF - NORTH,OTHER SERVICES,16/02/2023,10681615503,41.95,WILKO.COM
OXFORDSHIRE CC,"CHILDRENS, YOUNG PEOPLE AND FAMILIES","	LOOKED AFTER CITY 1",OTHER TRANSPORT ARRANGEMENTS,16/02/2023,10681615491,8.2,M6 TOLL
OXFORDSHIRE CC,"CHILDRENS, YOUNG PEOPLE AND FAMILIES","	LOOKED AFTER CITY 1",OTHER TRANSPORT ARRANGEMENTS,16/02/2023,10681615495,8.2,M6 TOLL
OXFORDSHIRE CC,"CHILDRENS, YOUNG PEOPLE AND FAMILIES","	LEAVING CARE NORTH",CATERING PROVISIONS,16/02/2023,10681615497,3.18,WM MORRISONS STORE
OXFORDSHIRE CC,CORPORATE CORE,OPERATIONS,MATERIALS,16/02/2023,10681615519,8.58,AMZNMKTPLACE
OXFORDSHIRE CC,CORPORATE CORE,OPERATIONS,MATERIALS,16/02/2023,10681615521,9.58,AMZNMKTPLACE
OXFORDSHIRE CC,"CHILDRENS, YOUNG PEOPLE AND FAMILIES","	LOOKED AFTER CITY 2",OTHER TRANSPORT ARRANGEMENTS,16/02/2023,10681615527,2,OXFORD BUS COMPANY
OXFORDSHIRE CC,"CHILDRENS, YOUNG PEOPLE AND FAMILIES",SEN EARLY INTERVENTION TEAM,"BOOKS, DVDS AND CDS",16/02/2023,10681615549,-20.37,AMZNMKTPLACE AMAZON.CO
OXFORDSHIRE CC,"CHILDRENS, YOUNG PEOPLE AND FAMILIES",EET SERVICE,EDUCATIONAL AND VOCATIONAL TRAINING ,16/02/2023,10681615535,185.83,SAFETY SERVICES U.
OXFORDSHIRE CC,ENVIRONMENT AND ECONOMY,"	MOUNT HOUSE",MATERIALS,16/02/2023,10681615543,20.23,AMZNMKTPLACE
OXFORDSHIRE CC,"CHILDRENS, YOUNG PEOPLE AND FAMILIES",WITNEY,CATERING PROVISIONS,16/02/2023,10681615567,11.8,SAINSBURYS S/MKTS
OXFORDSHIRE CC,"CHILDRENS, YOUNG PEOPLE AND FAMILIES",40 THE MOORS,CLOTHING AND UNIFORMS,16/02/2023,10681615589,120,SIZE?
OXFORDSHIRE CC,"CHILDRENS, YOUNG PEOPLE AND FAMILIES",40 THE MOORS,CATERING PROVISIONS,16/02/2023,10681615591,4.65,TESCO STORES 2788
OXFORDSHIRE CC,"CHILDRENS, YOUNG PEOPLE AND FAMILIES",40 THE MOORS,CATERING PROVISIONS,16/02/2023,10681615595,9,TESCO STORES 2788
OXFORDSHIRE CC,"CHILDRENS, YOUNG PEOPLE AND FAMILIES",CNTL EARLY HELP-BRTN,CATERING PROVISIONS,16/02/2023,10681615613,4.45,CO-OPERATIVE FOOD
OXFORDSHIRE CC,CORPORATE CORE,"MARKETING, COMMUNICATIONS & ENGAGEMENT","PUBLICITY, PROMOTIONS AND ADVERTISEMENT",16/02/2023,10681615599,500,FACEBK VU5E3NF9Z2
OXFORDSHIRE CC,CORPORATE CORE,"MARKETING, COMMUNICATIONS & ENGAGEMENT","PUBLICITY, PROMOTIONS AND ADVERTISEMENT",16/02/2023,10681615603,500,GOOGLE ADS4896546035
OXFORDSHIRE CC,CORPORATE CORE,"MARKETING, COMMUNICATIONS & ENGAGEMENT","PUBLICITY, PROMOTIONS AND ADVERTISEMENT",16/02/2023,10681615607,14.4,SNAP INC SNAP SNAP ADS
OXFORDSHIRE CC,"CHILDRENS, YOUNG PEOPLE AND FAMILIES","	LEAVING CARE SOUTH",CLOTHING AND UNIFORMS,16/02/2023,10681615621,67.5,PRIMARK 693
OXFORDSHIRE CC,CORPORATE CORE,,STATIONERY,16/02/2023,10681615629,4.28,LYRECO UK LTD
OXFORDSHIRE CC,CORPORATE CORE,,STATIONERY,16/02/2023,10681615633,36.77,LYRECO UK LTD
OXFORDSHIRE CC,CORPORATE CORE,,STATIONERY,16/02/2023,10681615637,12.46,LYRECO UK LTD
OXFORDSHIRE CC,"CHILDRENS, YOUNG PEOPLE AND FAMILIES",KINGFISHER,OTHER TRANSPORT ARRANGEMENTS,16/02/2023,10681615655,5.5,WESTGATE OXFORD CAR PA
OXFORDSHIRE CC,CORPORATE CORE,,STATIONERY,16/02/2023,10681615641,8.3,LYRECO UK LTD
OXFORDSHIRE CC,CORPORATE CORE,,STATIONERY,16/02/2023,10681615645,105.76,LYRECO UK LTD
OXFORDSHIRE CC,ENTERPRISEVC,,CAR LEASING - PRIVATE RENTALS,16/02/2023,10681615649,"1,749.50",ENTERPRISE RENT-A-CAR
OXFORDSHIRE CC,"CHILDRENS, YOUNG PEOPLE AND FAMILIES",FSP STAFFING � CENTRAL,PAYMENTS TO TRANSPORT OPERATORS,15/02/2023,10676162873,10.8,GWR OXFORD SST
OXFORDSHIRE CC,"CHILDRENS, YOUNG PEOPLE AND FAMILIES",FSP STAFFING � CENTRAL,CATERING,15/02/2023,10676162875,19.35,KASPAS DESSERTS
OXFORDSHIRE CC,"CHILDRENS, YOUNG PEOPLE AND FAMILIES",FSP STAFFING � CENTRAL,CATERING,15/02/2023,10676162877,24.24,MCDONALDS 1546
OXFORDSHIRE CC,"CHILDRENS, YOUNG PEOPLE AND FAMILIES","	OCCG GRANT",MATERIALS,15/02/2023,10676162879,3.4,WH SMITH BANBURY
OXFORDSHIRE CC,"CHILDRENS, YOUNG PEOPLE AND FAMILIES","	OCCG GRANT",MATERIALS,15/02/2023,10676162881,5.5,SPORTSDIRECT 436
OXFORDSHIRE CC,"CHILDRENS, YOUNG PEOPLE AND FAMILIES",CHILDREN IN CARE NON-STAFFING - NORTH,CATERING PROVISIONS,15/02/2023,10676162889,86.09,TESCO STORES 4480
OXFORDSHIRE CC,"CHILDRENS, YOUNG PEOPLE AND FAMILIES",CHILDREN IN CARE NON-STAFFING - NORTH,CATERING,15/02/2023,10676162891,5.56,MCDONALDS 1639
OXFORDSHIRE CC,ENTERPRISEVC,,CAR LEASING - PRIVATE RENTALS,15/02/2023,10676162815,136.78,ENTERPRISE RENT-A-CAR
OXFORDSHIRE CC,"CHILDRENS, YOUNG PEOPLE AND FAMILIES",FAMILY SOLUTIONS PLUS NON-STAFF � SOUTH,PAYMENTS TO TRANSPORT OPERATORS,15/02/2023,10676162643,62.56,TRAINLINE
OXFORDSHIRE CC,"CHILDRENS, YOUNG PEOPLE AND FAMILIES",FAMILY SOLUTIONS PLUS NON-STAFF � SOUTH,PAYMENTS TO TRANSPORT OPERATORS,15/02/2023,10676162645,142.14,TRAINLINE
OXFORDSHIRE CC,"CHILDRENS, YOUNG PEOPLE AND FAMILIES",FAMILY SOLUTIONS PLUS NON-STAFF � SOUTH,PAYMENTS TO TRANSPORT OPERATORS,15/02/2023,10676162647,8.24,TRAINLINE
OXFORDSHIRE CC,CORPORATE CORE,TRANSITION TEAM,PAYMENT TO GOVERNMENT DEPARTMENTS,15/02/2023,10676162661,"2,199.00",C2E844601885I UKVI
OXFORDSHIRE CC,SOCIAL AND COMMUNITY SERVICES,COMMUNITY PARTNERSHIP TEAM,CATERING PROVISIONS,15/02/2023,10676162655,150.04,TESCO STORES 2008
OXFORDSHIRE CC,SOCIAL AND COMMUNITY SERVICES,CSS - OXFORD,CATERING PROVISIONS,15/02/2023,10676162657,8.44,ALDI STORES 775-142
OXFORDSHIRE CC,"CHILDRENS, YOUNG PEOPLE AND FAMILIES",FAMILY SOLUTIONS PLUS NON-STAFF - NORTH,CATERING PROVISIONS,15/02/2023,10676162659,4.15,TESCO STORES 4377
OXFORDSHIRE CC,CORPORATE CORE,INCOME TEAM,PAYMENT TO GOVERNMENT DEPARTMENTS,15/02/2023,10676162665,11,OXFORDSHIRE CC WEB1
OXFORDSHIRE CC,CORPORATE CORE,INCOME TEAM,PAYMENT TO GOVERNMENT DEPARTMENTS,15/02/2023,10676162667,11,OXFORDSHIRE CC WEB1
OXFORDSHIRE CC,"CHILDRENS, YOUNG PEOPLE AND FAMILIES",EYNSHAM,CATERING PROVISIONS,15/02/2023,10676162671,2,CO-OPERATIVE FOOD
OXFORDSHIRE CC,"CHILDRENS, YOUNG PEOPLE AND FAMILIES",EYNSHAM,DRUGS AND MEDICAL SUPPLIES,15/02/2023,10676162673,4.99,LLOYDS PHARMACY
OXFORDSHIRE CC,"CHILDRENS, YOUNG PEOPLE AND FAMILIES","	LEAVING CARE CITY 1",CATERING PROVISIONS,15/02/2023,10676162681,20,TESCO GIFT CARD
OXFORDSHIRE CC,"CHILDRENS, YOUNG PEOPLE AND FAMILIES",FSP NON-STAFFING - CENTRAL,DRUGS AND MEDICAL SUPPLIES,15/02/2023,10676162677,23.06,AMZNMKTPLACE AMAZON.CO
OXFORDSHIRE CC,"CHILDRENS, YOUNG PEOPLE AND FAMILIES","	LEAVING CARE CITY 1",CLOTHING AND UNIFORMS,15/02/2023,10676162679,150,JD SPORTS FASHION PLC
OXFORDSHIRE CC,"CHILDRENS, YOUNG PEOPLE AND FAMILIES","	LOOKED AFTER SOUTH",ENTERTAINMENT EXPENSES,15/02/2023,10676162683,25.5,MILLETS FARMYARD GOLF
OXFORDSHIRE CC,"CHILDRENS, YOUNG PEOPLE AND FAMILIES","	LOOKED AFTER SOUTH",ENTERTAINMENT EXPENSES,15/02/2023,10676162685,31.08,TENPIN.CO.UK
OXFORDSHIRE CC,"CHILDRENS, YOUNG PEOPLE AND FAMILIES",THAME E&A HOME,CATERING,15/02/2023,10676162687,22.7,ZETTLE_ HUFFKINS
OXFORDSHIRE CC,"CHILDRENS, YOUNG PEOPLE AND FAMILIES",DIDCOT MOVE-ON HOME,FURNITURE,15/02/2023,10676162689,240,WF  UK3873168474
OXFORDSHIRE CC,"CHILDRENS, YOUNG PEOPLE AND FAMILIES",THAME E&A HOME,VEHICLE FUEL,15/02/2023,10676162691,18.65,BP BRACKLEY CONNECT
OXFORDSHIRE CC,SOCIAL AND COMMUNITY SERVICES,CSS - OXFORD,CATERING PROVISIONS,15/02/2023,10676162693,28.22,ALDI STORES 775-142
OXFORDSHIRE CC,"CHILDRENS, YOUNG PEOPLE AND FAMILIES",PAUSE PROGRAMME,CATERING PROVISIONS,15/02/2023,10676162701,31.91,ICELAND
OXFORDSHIRE CC,"CHILDRENS, YOUNG PEOPLE AND FAMILIES",UASC 16&17,TRANSPORT TO SCHOOL,15/02/2023,10676162695,12,WWW.THEKEY.CO.UK
OXFORDSHIRE CC,"CHILDRENS, YOUNG PEOPLE AND FAMILIES",WITNEY,HIRE OF ACCOMMODATION AND FACILITIES,15/02/2023,10676162697,258,THE CHURCHILL COURT
OXFORDSHIRE CC,"CHILDRENS, YOUNG PEOPLE AND FAMILIES","DIDCOT CC, PARK ROAD",CATERING PROVISIONS,15/02/2023,10676162699,3.5,SAINSBURYS S/MKTS
OXFORDSHIRE CC,"CHILDRENS, YOUNG PEOPLE AND FAMILIES",PAUSE PROGRAMME,MATERIALS,15/02/2023,10676162703,28.5,THE WORKS
OXFORDSHIRE CC,"CHILDRENS, YOUNG PEOPLE AND FAMILIES",PAUSE PROGRAMME,CATERING,15/02/2023,10676162705,7.45,COSTA TEMPLARS
OXFORDSHIRE CC,"CHILDRENS, YOUNG PEOPLE AND FAMILIES",DIDCOT MOVE-ON HOME,VEHICLE FUEL,15/02/2023,10676162707,4.35,CO-OPERATIVE FUEL
OXFORDSHIRE CC,"CHILDRENS, YOUNG PEOPLE AND FAMILIES","	LEAVING CARE CITY 2",CATERING,15/02/2023,10676162709,13.46,MCDONALDS
OXFORDSHIRE CC,ENVIRONMENT AND ECONOMY,"	NAT TRAILS GENERAL",CATERING PROVISIONS,15/02/2023,10676162711,2.95,CO OPERATIVE FOOD
OXFORDSHIRE CC,ENTERPRISEVC,,CAR LEASING - PRIVATE RENTALS,15/02/2023,10676162823,123.55,ENTERPRISE RENT-A-CAR
OXFORDSHIRE CC,ENTERPRISEVC,,CAR LEASING - PRIVATE RENTALS,15/02/2023,10676162817,141.55,ENTERPRISE RENT-A-CAR
OXFORDSHIRE CC,ENTERPRISEVC,,CAR LEASING - PRIVATE RENTALS,15/02/2023,10676162819,136.78,ENTERPRISE RENT-A-CAR
OXFORDSHIRE CC,ENTERPRISEVC,,CAR LEASING - PRIVATE RENTALS,15/02/2023,10676162821,52.78,ENTERPRISE RENT-A-CAR
OXFORDSHIRE CC,ENTERPRISEVC,,CAR LEASING - PRIVATE RENTALS,15/02/2023,10676162825,75.67,ENTERPRISE RENT-A-CAR
OXFORDSHIRE CC,ENTERPRISEVC,,CAR LEASING - PRIVATE RENTALS,15/02/2023,10676162827,38.52,ENTERPRISE RENT-A-CAR
OXFORDSHIRE CC,ENTERPRISEVC,,CAR LEASING - PRIVATE RENTALS,15/02/2023,10676162829,297.79,ENTERPRISE RENT-A-CAR
OXFORDSHIRE CC,ENTERPRISEVC,,CAR LEASING - PRIVATE RENTALS,15/02/2023,10676162831,68.52,ENTERPRISE RENT-A-CAR
OXFORDSHIRE CC,ENTERPRISEVC,,CAR LEASING - PRIVATE RENTALS,15/02/2023,10676162833,129.17,ENTERPRISE RENT-A-CAR
OXFORDSHIRE CC,ENTERPRISEVC,,CAR LEASING - PRIVATE RENTALS,15/02/2023,10676162835,62.52,ENTERPRISE RENT-A-CAR
OXFORDSHIRE CC,"CHILDRENS, YOUNG PEOPLE AND FAMILIES",FAMILY SOLUTIONS PLUS NON-STAFF - NORTH,CHILDCARE MANAGEMENT FEES,15/02/2023,10676162843,11,WWW.PARENTSPARADISE.EU
OXFORDSHIRE CC,ENTERPRISEVC,,CAR LEASING - PRIVATE RENTALS,15/02/2023,10676162837,141.55,ENTERPRISE RENT-A-CAR
OXFORDSHIRE CC,ENTERPRISEVC,,CAR LEASING - PRIVATE RENTALS,15/02/2023,10676162839,38.52,ENTERPRISE RENT-A-CAR
OXFORDSHIRE CC,"CHILDRENS, YOUNG PEOPLE AND FAMILIES",CHILDREN IN CARE NON-STAFFING - SOUTH,SUBSCRIPTIONS,15/02/2023,10676162841,26.66,HOLLYWOOD BOWL
OXFORDSHIRE CC,"CHILDRENS, YOUNG PEOPLE AND FAMILIES",40 THE MOORS,CATERING,15/02/2023,10676162845,14.98,PEPES
OXFORDSHIRE CC,"CHILDRENS, YOUNG PEOPLE AND FAMILIES",40 THE MOORS,CATERING,15/02/2023,10676162847,8.09,PEPES
OXFORDSHIRE CC,"CHILDRENS, YOUNG PEOPLE AND FAMILIES",40 THE MOORS,VEHICLE FUEL,15/02/2023,10676162849,1.79,SHELL COWLEY
OXFORDSHIRE CC,"CHILDRENS, YOUNG PEOPLE AND FAMILIES","	LOOKED AFTER SOUTH",CATERING,15/02/2023,10676162851,14.85,43022210 COSTA COFFEE
OXFORDSHIRE CC,"CHILDRENS, YOUNG PEOPLE AND FAMILIES","	LOOKED AFTER SOUTH",CATERING,15/02/2023,10676162853,2.79,MCDONALDS 126
OXFORDSHIRE CC,"CHILDRENS, YOUNG PEOPLE AND FAMILIES",DIDCOT MOVE-ON HOME,CATERING PROVISIONS,15/02/2023,10676162855,100,B&M 514 - DICOT
OXFORDSHIRE CC,SOCIAL AND COMMUNITY SERVICES,CSS - BANBURY,CATERING EQUIPMENT,15/02/2023,10676162863,39.96,AMZNMKTPLACE AMAZON.CO
OXFORDSHIRE CC,"CHILDRENS, YOUNG PEOPLE AND FAMILIES",DIDCOT MOVE-ON HOME,CATERING PROVISIONS,15/02/2023,10676162857,12.95,SAINSBURYS S/MKTS
OXFORDSHIRE CC,SOCIAL AND COMMUNITY SERVICES,"	HISTORY SERVICE","BOOKS, DVDS AND CDS",15/02/2023,10676162859,15,PAYPAL  RIVERTHAMES RI
OXFORDSHIRE CC,"CHILDRENS, YOUNG PEOPLE AND FAMILIES",KINGFISHER,CATERING PROVISIONS,15/02/2023,10676162865,100,TESCO GIFT CARD
OXFORDSHIRE CC,"CHILDRENS, YOUNG PEOPLE AND FAMILIES",NTH EARLY HELP-BNRBY,CATERING PROVISIONS,15/02/2023,10676162867,6.9,TESCO STORES 2064
OXFORDSHIRE CC,"CHILDRENS, YOUNG PEOPLE AND FAMILIES",QUALITY ASSURANCE SOUTH TEAM,PAYMENTS TO TRANSPORT OPERATORS,15/02/2023,10676162869,282.7,LOGANAIR
OXFORDSHIRE CC,"CHILDRENS, YOUNG PEOPLE AND FAMILIES",FSP STAFFING � CENTRAL,OTHER TRANSPORT ARRANGEMENTS,15/02/2023,10676162871,2,READING TRANSPORT LIMI
OXFORDSHIRE CC,CORPORATE CORE,HOLTON SITE,FURNITURE,15/02/2023,10676162721,684,WWW.OFFICEFURNITUREONL
OXFORDSHIRE CC,"CHILDRENS, YOUNG PEOPLE AND FAMILIES",WITNEY,HOSPITALITY EXPENSES,15/02/2023,10676162715,29.2,LOUNGERS
OXFORDSHIRE CC,"CHILDRENS, YOUNG PEOPLE AND FAMILIES",WITNEY,HOSPITALITY EXPENSES,15/02/2023,10676162717,82.75,LOUNGERS
OXFORDSHIRE CC,SOCIAL AND COMMUNITY SERVICES,CSS - OXFORD,MATERIALS,15/02/2023,10676162723,19.98,AMZNMKTPLACE
OXFORDSHIRE CC,SOCIAL AND COMMUNITY SERVICES,CSS - OXFORD,MATERIALS,15/02/2023,10676162725,36.92,AMZNMKTPLACE
OXFORDSHIRE CC,SOCIAL AND COMMUNITY SERVICES,CSS - OXFORD,STATIONERY,15/02/2023,10676162727,14.46,THE WAREHOUSE GROUP
OXFORDSHIRE CC,"CHILDRENS, YOUNG PEOPLE AND FAMILIES","	LOOKED AFTER CITY 2",VEHICLE FUEL,15/02/2023,10676162729,52.48,SHELL COWLEY
OXFORDSHIRE CC,"CHILDRENS, YOUNG PEOPLE AND FAMILIES","	LOOKED AFTER CITY 2",OTHER TRANSPORT ARRANGEMENTS,15/02/2023,10676162731,9,OXFORDBUS.CO.UK
OXFORDSHIRE CC,"CHILDRENS, YOUNG PEOPLE AND FAMILIES","	LOOKED AFTER CITY 2",OTHER TRANSPORT ARRANGEMENTS,15/02/2023,10676162733,2,STGCOACH/CTYLINK
OXFORDSHIRE CC,ENVIRONMENT AND ECONOMY,THE OXFORDSHIRE MUSEUM - SITE,MATERIALS,15/02/2023,10676162741,178.99,AMZNMKTPLACE
OXFORDSHIRE CC,ENVIRONMENT AND ECONOMY,MUSEUM CAFE,MATERIALS,15/02/2023,10676162735,724.65,GETPOTTED.COM
OXFORDSHIRE CC,ENVIRONMENT AND ECONOMY,LEARNING & ACCESS,MATERIALS,15/02/2023,10676162737,5.03,AMAZON.CO.UK 135PU0OR4
OXFORDSHIRE CC,ENVIRONMENT AND ECONOMY,THE OXFORDSHIRE MUSEUM - SITE,MATERIALS,15/02/2023,10676162739,169.95,AMZNMKTPLACE
OXFORDSHIRE CC,"CHILDRENS, YOUNG PEOPLE AND FAMILIES","	LEAVING CARE NORTH",MATERIALS,15/02/2023,10676162747,199,SP YES BEBE LTD
OXFORDSHIRE CC,"CHILDRENS, YOUNG PEOPLE AND FAMILIES","	LEAVING CARE NORTH",CATERING,15/02/2023,10676162749,3.75,COSTA TEMPLARS
OXFORDSHIRE CC,"CHILDRENS, YOUNG PEOPLE AND FAMILIES","	LEAVING CARE NORTH",CATERING PROVISIONS,15/02/2023,10676162751,15,CO-OPERATIVE FOOD
OXFORDSHIRE CC,"CHILDRENS, YOUNG PEOPLE AND FAMILIES","	LEAVING CARE NORTH",PAYMENT TO GOVERNMENT DEPARTMENTS,15/02/2023,10676162753,82.5,HM PASSPORT OFFICE
OXFORDSHIRE CC,ENVIRONMENT AND ECONOMY,"	FLEET OPERATIONS",MATERIALS,15/02/2023,10676162761,21.79,AMZNMKTPLACE
OXFORDSHIRE CC,"CHILDRENS, YOUNG PEOPLE AND FAMILIES","	LEAVING CARE NORTH",CATERING,15/02/2023,10676162755,6.99,CHICKEN HUT
OXFORDSHIRE CC,"CHILDRENS, YOUNG PEOPLE AND FAMILIES","	LEAVING CARE NORTH",STATIONERY,15/02/2023,10676162757,9,ME GROUP INTERNATIONAL
OXFORDSHIRE CC,"CHILDRENS, YOUNG PEOPLE AND FAMILIES","	SEN/ICT EQUIPMENT",IT SOFTWARE,15/02/2023,10676162759,180,TEXTHELP
OXFORDSHIRE CC,"CHILDRENS, YOUNG PEOPLE AND FAMILIES",FSP NON-STAFFING - CENTRAL,VEHICLE - HIRE CHARGES,15/02/2023,10676162763,384,HUGHES AND SALVIDGE HO
OXFORDSHIRE CC,"CHILDRENS, YOUNG PEOPLE AND FAMILIES",40 THE MOORS,CATERING,15/02/2023,10676162769,63.58,DOMINO S PIZZA
OXFORDSHIRE CC,CORPORATE CORE,"MARKETING, COMMUNICATIONS & ENGAGEMENT","PUBLICITY, PROMOTIONS AND ADVERTISEMENT",15/02/2023,10676162771,91.45,LINKEDIN-874 5464544
OXFORDSHIRE CC,CORPORATE CORE,"MARKETING, COMMUNICATIONS & ENGAGEMENT","PUBLICITY, PROMOTIONS AND ADVERTISEMENT",15/02/2023,10676162773,14.4,SNAP INC SNAP SNAP ADS
OXFORDSHIRE CC,"CHILDRENS, YOUNG PEOPLE AND FAMILIES","	LEAVING CARE SOUTH",CATERING,15/02/2023,10676162781,3.79,MCDONALDS
OXFORDSHIRE CC,"CHILDRENS, YOUNG PEOPLE AND FAMILIES",EYNSHAM,CATERING PROVISIONS,15/02/2023,10676162783,130.02,TESCO STORES 2008
OXFORDSHIRE CC,SOCIAL AND COMMUNITY SERVICES,BICESTER LIBRARY,MATERIALS,15/02/2023,10676162785,8.37,AMZNMKTPLACE
OXFORDSHIRE CC,CORPORATE CORE,,STATIONERY,15/02/2023,10676162787,52.16,LYRECO UK LTD
OXFORDSHIRE CC,CORPORATE CORE,,STATIONERY,15/02/2023,10676162789,21.6,LYRECO UK LTD
OXFORDSHIRE CC,CORPORATE CORE,,STATIONERY,15/02/2023,10676162791,97.67,LYRECO UK LTD
OXFORDSHIRE CC,CORPORATE CORE,,STATIONERY,15/02/2023,10676162793,45.6,LYRECO UK LTD
OXFORDSHIRE CC,CORPORATE CORE,,STATIONERY,15/02/2023,10676162801,0.79,LYRECO UK LTD
OXFORDSHIRE CC,CORPORATE CORE,,STATIONERY,15/02/2023,10676162795,4.88,LYRECO UK LTD
OXFORDSHIRE CC,CORPORATE CORE,,STATIONERY,15/02/2023,10676162797,6.55,LYRECO UK LTD
OXFORDSHIRE CC,CORPORATE CORE,,STATIONERY,15/02/2023,10676162799,47.47,LYRECO UK LTD
OXFORDSHIRE CC,ENTERPRISEVC,,CAR LEASING - PRIVATE RENTALS,15/02/2023,10676162803,112.78,ENTERPRISE RENT-A-CAR
OXFORDSHIRE CC,ENTERPRISEVC,,CAR LEASING - PRIVATE RENTALS,15/02/2023,10676162805,119.5,ENTERPRISE RENT-A-CAR
OXFORDSHIRE CC,ENTERPRISEVC,,CAR LEASING - PRIVATE RENTALS,15/02/2023,10676162807,141.55,ENTERPRISE RENT-A-CAR
OXFORDSHIRE CC,ENTERPRISEVC,,CAR LEASING - PRIVATE RENTALS,15/02/2023,10676162809,75.67,ENTERPRISE RENT-A-CAR
OXFORDSHIRE CC,ENTERPRISEVC,,CAR LEASING - PRIVATE RENTALS,15/02/2023,10676162811,48.66,ENTERPRISE RENT-A-CAR
OXFORDSHIRE CC,ENTERPRISEVC,,CAR LEASING - PRIVATE RENTALS,15/02/2023,10676162813,88.78,ENTERPRISE RENT-A-CAR
OXFORDSHIRE CC,"CHILDRENS, YOUNG PEOPLE AND FAMILIES",CHILDREN IN CARE NON-STAFFING - SOUTH,CATERING PROVISIONS,15/02/2023,10676162621,65,TESCO GIFT CARD
OXFORDSHIRE CC,SOCIAL AND COMMUNITY SERVICES,CSS - BANBURY,CATERING PROVISIONS,15/02/2023,10676162617,31.25,TESCO STORES 2064
OXFORDSHIRE CC,"CHILDRENS, YOUNG PEOPLE AND FAMILIES",CSS WALLINGFORD,CATERING PROVISIONS,15/02/2023,10676162619,11.6,WAITROSE 675
OXFORDSHIRE CC,"CHILDRENS, YOUNG PEOPLE AND FAMILIES",EYNSHAM,RESIDENTIAL ACTIVITIES,15/02/2023,10676162623,61.34,VUE CINEMAS
OXFORDSHIRE CC,SOCIAL AND COMMUNITY SERVICES,CSS - ABINGDON,CATERING PROVISIONS,15/02/2023,10676162625,44.7,TESCO STORES 2008
OXFORDSHIRE CC,SOCIAL AND COMMUNITY SERVICES,CSS WANTAGE,HOSPITALITY EXPENSES,15/02/2023,10676162627,3.8,OAK
OXFORDSHIRE CC,ENVIRONMENT AND ECONOMY,HARD FM,PREMISES REPAIRS,15/02/2023,10676162629,11.99,HOMEBASE LTD 091
OXFORDSHIRE CC,"CHILDRENS, YOUNG PEOPLE AND FAMILIES","	FAMILY & PLACEMENT",MATERIALS,15/02/2023,10676162631,40,WWW.ACAMH.ORG
OXFORDSHIRE CC,"CHILDRENS, YOUNG PEOPLE AND FAMILIES","	FAMILY & PLACEMENT",MATERIALS,15/02/2023,10676162633,-40,WWW.ACAMH.ORG
OXFORDSHIRE CC,"CHILDRENS, YOUNG PEOPLE AND FAMILIES",THAME E&A HOME,CATERING,15/02/2023,10676162641,6.18,KFC - AYLESBURY RST
OXFORDSHIRE CC,SOCIAL AND COMMUNITY SERVICES,CSS BICESTER,MATERIALS,15/02/2023,10676162635,2,POUNDLAND LTD 1505
OXFORDSHIRE CC,"CHILDRENS, YOUNG PEOPLE AND FAMILIES",FSP NON-STAFFING - CENTRAL,PAYMENTS TO TRANSPORT OPERATORS,15/02/2023,10676162639,43.5,WWW.GWR.COM
OXFORDSHIRE CC,"CHILDRENS, YOUNG PEOPLE AND FAMILIES",DIDCOT MOVE-ON HOME,MATERIALS,14/02/2023,10671951535,134.58,AMAZON.CO.UK 1Q1WN0WW4
OXFORDSHIRE CC,"CHILDRENS, YOUNG PEOPLE AND FAMILIES",FPT SOUTH/VALE,CATERING,14/02/2023,10671951539,6.5,MILLETS FARM RESTAURAN
OXFORDSHIRE CC,SOCIAL AND COMMUNITY SERVICES,BICESTER LIBRARY,CATERING,14/02/2023,10671951549,19.95,AMZNMKTPLACE
OXFORDSHIRE CC,SOCIAL AND COMMUNITY SERVICES,BICESTER LIBRARY,CATERING,14/02/2023,10671951553,17.99,AMZNMKTPLACE
OXFORDSHIRE CC,SOCIAL AND COMMUNITY SERVICES,BICESTER LIBRARY,MATERIALS,14/02/2023,10671951557,11.99,AMZNMKTPLACE
OXFORDSHIRE CC,SOCIAL AND COMMUNITY SERVICES,BICESTER LIBRARY,CATERING EQUIPMENT,14/02/2023,10671951561,8.4,B&M 025 - BICESTER
OXFORDSHIRE CC,SOCIAL AND COMMUNITY SERVICES,BICESTER LIBRARY,CATERING,14/02/2023,10671951565,27.2,AMZNMKTPLACE
OXFORDSHIRE CC,SOCIAL AND COMMUNITY SERVICES,BICESTER LIBRARY,MATERIALS,14/02/2023,10671951567,6,THEWORKS.CO.UK
OXFORDSHIRE CC,CORPORATE CORE,,STATIONERY,14/02/2023,10671951593,29.14,LYRECO UK LTD
OXFORDSHIRE CC,"CHILDRENS, YOUNG PEOPLE AND FAMILIES",EYNSHAM,TELEPHONE - EQUIPMENT,14/02/2023,10671951579,250.24,AMZNMKTPLACE
OXFORDSHIRE CC,CORPORATE CORE,,STATIONERY,14/02/2023,10671951585,123.13,LYRECO UK LTD
OXFORDSHIRE CC,CORPORATE CORE,,STATIONERY,14/02/2023,10671951595,9.02,LYRECO UK LTD
OXFORDSHIRE CC,"CHILDRENS, YOUNG PEOPLE AND FAMILIES",FAMILY SOLUTIONS PLUS NON-STAFF - NORTH,PAYMENTS TO TRANSPORT OPERATORS,14/02/2023,10671951601,12,WWW.GWR.COM
OXFORDSHIRE CC,"CHILDRENS, YOUNG PEOPLE AND FAMILIES",FIELDWORK UASC,OTHER TRANSPORT ARRANGEMENTS,14/02/2023,10671951613,12.75,OXFORD BUS TICKETS
OXFORDSHIRE CC,"CHILDRENS, YOUNG PEOPLE AND FAMILIES",FIELDWORK UASC,CATERING PROVISIONS,14/02/2023,10671951615,19,ASDA STORE 4442
OXFORDSHIRE CC,"CHILDRENS, YOUNG PEOPLE AND FAMILIES",CHILDREN IN CARE NON-STAFFING - SOUTH,CATERING,14/02/2023,10671951619,10.46,MCDONALDS
OXFORDSHIRE CC,"CHILDRENS, YOUNG PEOPLE AND FAMILIES",FAMILY SOLUTIONS PLUS NON-STAFF - NORTH,MATERIALS,14/02/2023,10671951627,39.99,ARGOS LTD
OXFORDSHIRE CC,ENVIRONMENT AND ECONOMY,HENLEY LIBRARY,"NEWSPAPERS, PERIODICALS AND PUBLICATIONS",14/02/2023,10671951635,114.5,BRIGHTONS NEWSAGEN
OXFORDSHIRE CC,"CHILDRENS, YOUNG PEOPLE AND FAMILIES","	LOOKED AFTER SOUTH",VEHICLE FUEL,14/02/2023,10671951643,44.14,SHELL CULLOMPTON
OXFORDSHIRE CC,SOCIAL AND COMMUNITY SERVICES,ADMINISTRATION,PURCHASE OF ADMIN IT EQUIPMENT,14/02/2023,10671951649,29.74,AMZNMKTPLACE
OXFORDSHIRE CC,"CHILDRENS, YOUNG PEOPLE AND FAMILIES","	LOOKED AFTER SOUTH",OTHER EXPENSES,14/02/2023,10671951659,8.2,WILKO RETAIL LIMITED
OXFORDSHIRE CC,"CHILDRENS, YOUNG PEOPLE AND FAMILIES","	LOOKED AFTER SOUTH",OTHER TRANSPORT ARRANGEMENTS,14/02/2023,10671951665,1,THE HARVEY CENTRE
OXFORDSHIRE CC,"CHILDRENS, YOUNG PEOPLE AND FAMILIES",40 THE MOORS,CATERING PROVISIONS,14/02/2023,10671951673,169.71,SAINSBURYS.CO.UK
OXFORDSHIRE CC,SOCIAL AND COMMUNITY SERVICES,CSS - ABINGDON,CATERING PROVISIONS,14/02/2023,10671951693,6.6,SAINSBURYS S/MKTS
OXFORDSHIRE CC,SOCIAL AND COMMUNITY SERVICES,CSS - BANBURY,CATERING PROVISIONS,14/02/2023,10671951677,56.99,SAINSBURYS.CO.UK
OXFORDSHIRE CC,SOCIAL AND COMMUNITY SERVICES,CSS - ABINGDON,MATERIALS,14/02/2023,10671951685,24.72,AMAZON.CO.UK 1Q64K7WL4
OXFORDSHIRE CC,SOCIAL AND COMMUNITY SERVICES,CSS - ABINGDON,MATERIALS,14/02/2023,10671951689,3.25,TESCO STORES 2008
OXFORDSHIRE CC,ENVIRONMENT AND ECONOMY,HOLDING CODE FOR REA,MATERIALS,14/02/2023,10671951697,19.98,HALFORDS 0988
OXFORDSHIRE CC,"CHILDRENS, YOUNG PEOPLE AND FAMILIES","	LEAVING CARE CITY 2",CATERING,14/02/2023,10671951707,11.45,43039930 COSTA COFFEE
OXFORDSHIRE CC,"CHILDRENS, YOUNG PEOPLE AND FAMILIES",THAME E&A HOME,CATERING,14/02/2023,10671951711,41.05,NANDOS.CO.UK
OXFORDSHIRE CC,"CHILDRENS, YOUNG PEOPLE AND FAMILIES",THAME E&A HOME,OTHER TRANSPORT ARRANGEMENTS,14/02/2023,10671951713,2,CAR PARK CHARGES
OXFORDSHIRE CC,"CHILDRENS, YOUNG PEOPLE AND FAMILIES",SEND CASEWORK TEAM,POSTAGE AND DELIVERY,14/02/2023,10671951737,14.45,ROYAL MAIL GROUP LTD
OXFORDSHIRE CC,CORPORATE CORE,ICT OPERATIONS & MAI,IT SERVICES,14/02/2023,10671951725,21.34,GITHUB
OXFORDSHIRE CC,ENVIRONMENT AND ECONOMY,MUSEUMS COLLECTIONS,HARDWARE AND CROCKERY,14/02/2023,10671951729,32.06,TOOLSTATION LTD
OXFORDSHIRE CC,"CHILDRENS, YOUNG PEOPLE AND FAMILIES",SEND CASEWORK TEAM,POSTAGE AND DELIVERY,14/02/2023,10671951733,14.45,ROYAL MAIL GROUP LTD
OXFORDSHIRE CC,"CHILDRENS, YOUNG PEOPLE AND FAMILIES",CHILDREN IN CARE NON-STAFFING - SOUTH,ENTERTAINMENT EXPENSES,14/02/2023,10671951745,50,TICKETCO
OXFORDSHIRE CC,"CHILDRENS, YOUNG PEOPLE AND FAMILIES",CHILDREN IN CARE NON-STAFFING - NORTH,PAYMENT TO GOVERNMENT DEPARTMENTS,14/02/2023,10671951763,58.5,HM PASSPORT OFFICE
OXFORDSHIRE CC,"CHILDRENS, YOUNG PEOPLE AND FAMILIES",FPT SOUTH/VALE,MATERIALS,14/02/2023,10671951781,178.95,ARGOS LTD
OXFORDSHIRE CC,"CHILDRENS, YOUNG PEOPLE AND FAMILIES",CHILDREN IN CARE NON-STAFFING - NORTH,CATERING PROVISIONS,14/02/2023,10671951767,4,CO-OPERATIVE FOOD
OXFORDSHIRE CC,"CHILDRENS, YOUNG PEOPLE AND FAMILIES",FPT SOUTH/VALE,HIRE OF ACCOMMODATION AND FACILITIES,14/02/2023,10671951773,162.48,HOTEL AT BOOKING.COM
OXFORDSHIRE CC,"CHILDRENS, YOUNG PEOPLE AND FAMILIES",FPT SOUTH/VALE,MATERIALS,14/02/2023,10671951779,59.9,AMZNMKTPLACE
OXFORDSHIRE CC,SOCIAL AND COMMUNITY SERVICES,FINANCIAL ASSESSMENT,POSTAGE AND DELIVERY,14/02/2023,10671951785,6.95,ROYAL MAIL GROUP LTD
OXFORDSHIRE CC,SOCIAL AND COMMUNITY SERVICES,FINANCIAL ASSESSMENT,POSTAGE AND DELIVERY,14/02/2023,10671951789,6.95,ROYAL MAIL GROUP LTD
OXFORDSHIRE CC,SOCIAL AND COMMUNITY SERVICES,FINANCIAL ASSESSMENT,POSTAGE AND DELIVERY,14/02/2023,10671951791,6.95,ROYAL MAIL GROUP LTD
OXFORDSHIRE CC,"CHILDRENS, YOUNG PEOPLE AND FAMILIES","	LAC PUPIL PREMIUM",PURCHASE OF IT EQUIPMENT,14/02/2023,10671951437,320,VOUCHER EXPRESS
OXFORDSHIRE CC,"CHILDRENS, YOUNG PEOPLE AND FAMILIES",THAME E&A HOME,CLOTHING AND UNIFORMS,14/02/2023,10671951421,16,PRIMARK 693
OXFORDSHIRE CC,"CHILDRENS, YOUNG PEOPLE AND FAMILIES","	LEAVING CARE CITY 2",CATERING PROVISIONS,14/02/2023,10671951425,150,AP  YIYI TECH PTE LTD
OXFORDSHIRE CC,"CHILDRENS, YOUNG PEOPLE AND FAMILIES","	LAC PUPIL PREMIUM",PURCHASE OF IT EQUIPMENT,14/02/2023,10671951435,320,VOUCHER EXPRESS
OXFORDSHIRE CC,"CHILDRENS, YOUNG PEOPLE AND FAMILIES","	RESIDENTIAL STRATEGY",SUBSCRIPTIONS,14/02/2023,10671951443,24.21,WITNEY LAKES RESORT
OXFORDSHIRE CC,ENVIRONMENT AND ECONOMY,HARD FM,HARDWARE AND CROCKERY,14/02/2023,10671951447,12.68,B AND Q
OXFORDSHIRE CC,"CHILDRENS, YOUNG PEOPLE AND FAMILIES","	OCCG GRANT",MATERIALS,14/02/2023,10671951461,12,TIMPSON LTD
OXFORDSHIRE CC,"CHILDRENS, YOUNG PEOPLE AND FAMILIES",PAUSE PROGRAMME,MATERIALS,14/02/2023,10671951451,54.4,HOBBYCRAFT
OXFORDSHIRE CC,"CHILDRENS, YOUNG PEOPLE AND FAMILIES",40 THE MOORS,CATERING PROVISIONS,14/02/2023,10671951455,6.85,TESCO STORES 2788
OXFORDSHIRE CC,CORPORATE CORE,TRANSPORT GENERAL,VEHICLES AND PLANT - REPAIRS AND MAIN,14/02/2023,10671951475,441.6,EXPRESS WINDSCREENS (W
OXFORDSHIRE CC,"CHILDRENS, YOUNG PEOPLE AND FAMILIES","	LOOKED AFTER CITY 2",OTHER TRANSPORT ARRANGEMENTS,14/02/2023,10671951477,2,OXFORD BUS COMPANY
OXFORDSHIRE CC,"CHILDRENS, YOUNG PEOPLE AND FAMILIES","	LOOKED AFTER CITY 2",OTHER TRANSPORT ARRANGEMENTS,14/02/2023,10671951483,2,OXFORD BUS COMPANY
OXFORDSHIRE CC,"CHILDRENS, YOUNG PEOPLE AND FAMILIES","	LOOKED AFTER CITY 2",OTHER TRANSPORT ARRANGEMENTS,14/02/2023,10671951485,2,OXFORD BUS COMPANY
OXFORDSHIRE CC,ENVIRONMENT AND ECONOMY,"	OXFORDSHIRE MUSEUM",MATERIALS,14/02/2023,10671951489,100,APEX RADIO SYSTEMS LTD
OXFORDSHIRE CC,ENVIRONMENT AND ECONOMY,"	MUSEUM RETAIL",MATERIALS,14/02/2023,10671951491,199.15,PAYPAL  HAWTHORN
OXFORDSHIRE CC,ENVIRONMENT AND ECONOMY,"	FLEET OPERATIONS",MATERIALS,14/02/2023,10671951509,90.59,AMAZON.CO.UK 1Q5HD2WS4
OXFORDSHIRE CC,"CHILDRENS, YOUNG PEOPLE AND FAMILIES",FSP NON-STAFFING - CENTRAL,PAYMENTS TO TRANSPORT OPERATORS,14/02/2023,10671951515,50,WWW.GWR.COM
OXFORDSHIRE CC,CORPORATE CORE,"MARKETING, COMMUNICATIONS & ENGAGEMENT","PUBLICITY, PROMOTIONS AND ADVERTISEMENT",14/02/2023,10671951519,500,GOOGLE ADS4896546035
OXFORDSHIRE CC,CORPORATE CORE,"MARKETING, COMMUNICATIONS & ENGAGEMENT","PUBLICITY, PROMOTIONS AND ADVERTISEMENT",14/02/2023,10671951523,14.4,SNAP INC SNAP SNAP ADS
OXFORDSHIRE CC,CORPORATE CORE,"MARKETING, COMMUNICATIONS & ENGAGEMENT","PUBLICITY, PROMOTIONS AND ADVERTISEMENT",14/02/2023,10671951527,500,FACEBK WEJMZMF9Z2
OXFORDSHIRE CC,CORPORATE CORE,"MARKETING, COMMUNICATIONS & ENGAGEMENT","PUBLICITY, PROMOTIONS AND ADVERTISEMENT",14/02/2023,10671951529,14.4,SNAP INC SNAP SNAP ADS
OXFORDSHIRE CC,"CHILDRENS, YOUNG PEOPLE AND FAMILIES",DIDCOT MOVE-ON HOME,MATERIALS,14/02/2023,10671951533,8.99,AMAZON PRIME 1Q9ML9RX4
OXFORDSHIRE CC,"CHILDRENS, YOUNG PEOPLE AND FAMILIES",CSS WALLINGFORD,MATERIALS,14/02/2023,10671951123,16.75,AMZNMKTPLACE
OXFORDSHIRE CC,"CHILDRENS, YOUNG PEOPLE AND FAMILIES",CSS WALLINGFORD,MATERIALS,14/02/2023,10671951127,35.94,AMZNMKTPLACE
OXFORDSHIRE CC,"CHILDRENS, YOUNG PEOPLE AND FAMILIES",EYNSHAM,CATERING,14/02/2023,10671951131,7.21,ALDI 77 775
OXFORDSHIRE CC,SOCIAL AND COMMUNITY SERVICES,CSS - ABINGDON,MATERIALS,14/02/2023,10671951137,32.99,AMAZON.CO.UK 133GG4OT4
OXFORDSHIRE CC,SOCIAL AND COMMUNITY SERVICES,CSS WANTAGE,VEHICLE FUEL,14/02/2023,10671951141,27,SAINSBURYS PETROL
OXFORDSHIRE CC,"CHILDRENS, YOUNG PEOPLE AND FAMILIES",CSS WANTAGE,MATERIALS,14/02/2023,10671951161,119,WWW.ARGOS.CO.UK
OXFORDSHIRE CC,"CHILDRENS, YOUNG PEOPLE AND FAMILIES","	LOOKED AFTER CITY 1",OTHER TRANSPORT ARRANGEMENTS,14/02/2023,10671951167,9,OXFORD BUS COMPANY
OXFORDSHIRE CC,ENVIRONMENT AND ECONOMY,HARD FM,HARDWARE AND CROCKERY,14/02/2023,10671951177,35.4,OXON FASTENING SYSTEMS
OXFORDSHIRE CC,ENVIRONMENT AND ECONOMY,HARD FM,HARDWARE AND CROCKERY,14/02/2023,10671951193,132.35,DULUX DECORATOR CENTRE
OXFORDSHIRE CC,ENVIRONMENT AND ECONOMY,HARD FM,HARDWARE AND CROCKERY,14/02/2023,10671951181,16.1,WICKES OXFORD
OXFORDSHIRE CC,ENVIRONMENT AND ECONOMY,HARD FM,HARDWARE AND CROCKERY,14/02/2023,10671951185,159.47,SCREWFIX OXFORD COWLEY
OXFORDSHIRE CC,ENVIRONMENT AND ECONOMY,HARD FM,HARDWARE AND CROCKERY,14/02/2023,10671951189,-62.99,SCREWFIX OXFORD COWLEY
OXFORDSHIRE CC,ENVIRONMENT AND ECONOMY,HARD FM,HARDWARE AND CROCKERY,14/02/2023,10671951197,58.84,B AND Q
OXFORDSHIRE CC,SOCIAL AND COMMUNITY SERVICES,CSS BICESTER,CATERING PROVISIONS,14/02/2023,10671951203,110.06,TESCO STORES 2162
OXFORDSHIRE CC,"CHILDRENS, YOUNG PEOPLE AND FAMILIES",THAME E&A HOME,VEHICLE FUEL,14/02/2023,10671951207,10.36,JOBLINGS
OXFORDSHIRE CC,"CHILDRENS, YOUNG PEOPLE AND FAMILIES",HOUSE PROJECT,SUBSCRIPTIONS,14/02/2023,10671951211,6.83,WITNEY LAKES RESORT
OXFORDSHIRE CC,"CHILDRENS, YOUNG PEOPLE AND FAMILIES",HOUSE PROJECT,SUBSCRIPTIONS,14/02/2023,10671951213,13.72,WITNEY LAKES RESORT
OXFORDSHIRE CC,"CHILDRENS, YOUNG PEOPLE AND FAMILIES",HOUSE PROJECT,MATERIALS,14/02/2023,10671951217,90,WITNEY INSIDE SAINSBUR
OXFORDSHIRE CC,"CHILDRENS, YOUNG PEOPLE AND FAMILIES",THAME E&A HOME,CLOTHING AND UNIFORMS,14/02/2023,10671951233,17.5,TESCO STORES 2038
OXFORDSHIRE CC,"CHILDRENS, YOUNG PEOPLE AND FAMILIES",FSP NON-STAFFING - CENTRAL,MATERIALS,14/02/2023,10671951229,49.98,DECATHLON UK LIMITED
OXFORDSHIRE CC,"CHILDRENS, YOUNG PEOPLE AND FAMILIES","	DISABILITIES TEAM-C",FURNITURE,14/02/2023,10671951243,190,IKEA LTD SHOP ONLINE
OXFORDSHIRE CC,"CHILDRENS, YOUNG PEOPLE AND FAMILIES","	DISABILITIES TEAM-C",FURNITURE,14/02/2023,10671951249,299.99,BENSONSFORBEDSRETAIL
OXFORDSHIRE CC,"CHILDRENS, YOUNG PEOPLE AND FAMILIES",MANAGEMENT RECHARGES,HIRED AND CONTRACTED SERVICES,14/02/2023,10671951263,53.29,ASDA STORES
OXFORDSHIRE CC,SOCIAL AND COMMUNITY SERVICES,CSS WALLINGFORD,MATERIALS,14/02/2023,10671951281,17.48,AMZNMKTPLACE
OXFORDSHIRE CC,"CHILDRENS, YOUNG PEOPLE AND FAMILIES",NTS UASC AGENCY,MATERIALS,14/02/2023,10671951271,20,POUNDLAND LTD 1366
OXFORDSHIRE CC,"CHILDRENS, YOUNG PEOPLE AND FAMILIES",DISABILITIES TEAM S,OTHER TRANSPORT ARRANGEMENTS,14/02/2023,10671951277,"1,073.75",SQ  CIARASCARS ALLOA
OXFORDSHIRE CC,"CHILDRENS, YOUNG PEOPLE AND FAMILIES",THAME E&A HOME,CLOTHING AND UNIFORMS,14/02/2023,10671951297,72.5,PRIMARK 440
OXFORDSHIRE CC,"CHILDRENS, YOUNG PEOPLE AND FAMILIES",THAME E&A HOME,CATERING PROVISIONS,14/02/2023,10671951301,141.13,TESCO STORES 2038
OXFORDSHIRE CC,SOCIAL AND COMMUNITY SERVICES,CSS - OXFORD,MATERIALS,14/02/2023,10671951305,45.85,ALDI STORES 775-142
OXFORDSHIRE CC,"CHILDRENS, YOUNG PEOPLE AND FAMILIES","	LEAVING CARE NORTH",CATERING,14/02/2023,10671951333,3.75,43037200 COSTA COFFEE
OXFORDSHIRE CC,"CHILDRENS, YOUNG PEOPLE AND FAMILIES","	LEAVING CARE NORTH",MATERIALS,14/02/2023,10671951329,2.25,POUNDLAND
OXFORDSHIRE CC,"CHILDRENS, YOUNG PEOPLE AND FAMILIES","	LEAVING CARE NORTH",CATERING,14/02/2023,10671951335,14.38,MCDONALDS 471
OXFORDSHIRE CC,"CHILDRENS, YOUNG PEOPLE AND FAMILIES",HOUSE PROJECT,SUBSCRIPTIONS,14/02/2023,10671951341,34.73,WITNEY LAKES RESORT
OXFORDSHIRE CC,"CHILDRENS, YOUNG PEOPLE AND FAMILIES","	OCCG GRANT",MATERIALS,14/02/2023,10671951347,12,TIMPSON LTD
OXFORDSHIRE CC,"CHILDRENS, YOUNG PEOPLE AND FAMILIES",UASC POST 18,POSTAGE AND DELIVERY,14/02/2023,10671951351,2.35,POST OFFICE COUNTER
OXFORDSHIRE CC,"CHILDRENS, YOUNG PEOPLE AND FAMILIES","	LOOKED AFTER NORTH",ENTERTAINMENT EXPENSES,14/02/2023,10671951355,30,WWW.BETTER.ORG.UK
OXFORDSHIRE CC,CORPORATE CORE,LIBRARY COLLECTIONS,"BOOKS, DVDS AND CDS",14/02/2023,10671951375,192.93,OVERDRIVE DIST
OXFORDSHIRE CC,"CHILDRENS, YOUNG PEOPLE AND FAMILIES",CHILDREN IN CARE NON-STAFFING - NORTH,HIRE OF ACCOMMODATION AND FACILITIES,14/02/2023,10671951361,"1,710.00",HOTEL AT BOOKING.COM
OXFORDSHIRE CC,"CHILDRENS, YOUNG PEOPLE AND FAMILIES",CHILDREN IN CARE NON-STAFFING - NORTH,HIRE OF ACCOMMODATION AND FACILITIES,14/02/2023,10671951365,750,HOTEL AT BOOKING.COM
OXFORDSHIRE CC,"CHILDRENS, YOUNG PEOPLE AND FAMILIES",UASC 16&17,MATERIALS,14/02/2023,10671951381,64.99,NORTON  AP1448715542
OXFORDSHIRE CC,"CHILDRENS, YOUNG PEOPLE AND FAMILIES","	LEAVING CARE CITY 1",CATERING PROVISIONS,14/02/2023,10671951385,2.99,COSTCUTTERS
OXFORDSHIRE CC,"CHILDRENS, YOUNG PEOPLE AND FAMILIES","	LEAVING CARE CITY 1",CATERING PROVISIONS,14/02/2023,10671951391,10,TESCO STORES 2788
OXFORDSHIRE CC,"CHILDRENS, YOUNG PEOPLE AND FAMILIES","	LEAVING CARE CITY 1",CATERING,14/02/2023,10671951395,10.78,MCDONALDS
OXFORDSHIRE CC,"CHILDRENS, YOUNG PEOPLE AND FAMILIES",THAME E&A HOME,MATERIALS,14/02/2023,10671951405,24,PAYPAL  CROCSOFTHEW
OXFORDSHIRE CC,"CHILDRENS, YOUNG PEOPLE AND FAMILIES",DIDCOT MOVE-ON HOME,CATERING PROVISIONS,14/02/2023,10671951411,3.6,SAINSBURYS S/MKTS
OXFORDSHIRE CC,CORPORATE CORE,PUBLIC HEALTH GENERA,PAYMENTS TO TRANSPORT OPERATORS,14/02/2023,10671951415,81.5,WWW.GWR.COM
OXFORDSHIRE CC,CORPORATE CORE,OPERATIONS,MATERIALS,13/02/2023,10665035307,12.84,AMZNMKTPLACE AMAZON.CO
OXFORDSHIRE CC,CORPORATE CORE,OPERATIONS,MATERIALS,13/02/2023,10665035311,12.65,AMZNMKTPLACE AMAZON.CO
OXFORDSHIRE CC,CORPORATE CORE,OPERATIONS,MATERIALS,13/02/2023,10665035313,4.29,AMZNMKTPLACE AMAZON.CO
OXFORDSHIRE CC,SOCIAL AND COMMUNITY SERVICES,CSS - OXFORD,EDUCATIONAL AND VOCATIONAL TRAINING ,13/02/2023,10665035325,80,ZETTLE_ DELTAVIOLIN
OXFORDSHIRE CC,"CHILDRENS, YOUNG PEOPLE AND FAMILIES","	LEAVING CARE SOUTH",OTHER EXPENSES,13/02/2023,10665035163,41.95,AMZNMKTPLACE
OXFORDSHIRE CC,"CHILDRENS, YOUNG PEOPLE AND FAMILIES","	RESIDENTIAL STRATEGY",CATERING,13/02/2023,10665035175,6.1,SQ  HUNTERS CAKE CAFE
OXFORDSHIRE CC,ENVIRONMENT AND ECONOMY,HARD FM,HARDWARE AND CROCKERY,13/02/2023,10665035179,120.01,DULUX DECORATOR CENTRE
OXFORDSHIRE CC,"CHILDRENS, YOUNG PEOPLE AND FAMILIES",FSP STAFFING � CENTRAL,CATERING,13/02/2023,10665035777,0.4,MCDONALDS
OXFORDSHIRE CC,"CHILDRENS, YOUNG PEOPLE AND FAMILIES",FSP STAFFING � CENTRAL,OTHER TRANSPORT ARRANGEMENTS,13/02/2023,10665035769,1.2,OXFORD BUS COMPANY
OXFORDSHIRE CC,"CHILDRENS, YOUNG PEOPLE AND FAMILIES",FSP STAFFING � CENTRAL,OTHER TRANSPORT ARRANGEMENTS,13/02/2023,10665035773,1.2,OXFORD BUS COMPANY
OXFORDSHIRE CC,"CHILDRENS, YOUNG PEOPLE AND FAMILIES",FSP STAFFING � CENTRAL,CATERING,13/02/2023,10665035775,24.15,MCDONALDS
OXFORDSHIRE CC,"CHILDRENS, YOUNG PEOPLE AND FAMILIES",FSP STAFFING � CENTRAL,CATERING,13/02/2023,10665035779,1.49,MCDONALDS
OXFORDSHIRE CC,"CHILDRENS, YOUNG PEOPLE AND FAMILIES",FAMILY SOLUTIONS PLUS NON-STAFF - NORTH,VEHICLES AND PLANT - REPAIRS AND MAIN,13/02/2023,10665035791,48,HALFORDS E.COMM
OXFORDSHIRE CC,"CHILDRENS, YOUNG PEOPLE AND FAMILIES",UASC 16&17,CLOTHING AND UNIFORMS,13/02/2023,10665035793,78,PRIMARK 693
OXFORDSHIRE CC,"CHILDRENS, YOUNG PEOPLE AND FAMILIES",CSS - ABINGDON,VEHICLES AND PLANT - REPAIRS AND MAIN,13/02/2023,10665035805,17.54,GSF CAR PARTS
OXFORDSHIRE CC,"CHILDRENS, YOUNG PEOPLE AND FAMILIES",PAUSE PROGRAMME,MATERIALS,13/02/2023,10665035201,19.18,THE RANGE
OXFORDSHIRE CC,"CHILDRENS, YOUNG PEOPLE AND FAMILIES",PAUSE PROGRAMME,CATERING,13/02/2023,10665035205,7,43032510 COSTA COFFEE
OXFORDSHIRE CC,"CHILDRENS, YOUNG PEOPLE AND FAMILIES",PAUSE PROGRAMME,CATERING,13/02/2023,10665035207,11.67,MCDONALDS
OXFORDSHIRE CC,ENVIRONMENT AND ECONOMY,BANBURY LIBRARY,MATERIALS,13/02/2023,10665035213,23,BANBURY SHOE REPAIR AN
OXFORDSHIRE CC,"CHILDRENS, YOUNG PEOPLE AND FAMILIES",THAME E&A HOME,LAUNDRY AND DRY CLEANING,13/02/2023,10665035217,10,SQ  MR MEND SHOE REPAI
OXFORDSHIRE CC,"CHILDRENS, YOUNG PEOPLE AND FAMILIES",CHILDREN IN CARE NON-STAFFING - CENTRL 2,PAYMENTS TO TRANSPORT OPERATORS,13/02/2023,10665035239,152.02,TRAINLINE.COM
OXFORDSHIRE CC,SOCIAL AND COMMUNITY SERVICES,"	LIBRARY COLLECTIONS",MATERIALS,13/02/2023,10665035227,333.6,SP CREATIVEHUT EDUCA
OXFORDSHIRE CC,"CHILDRENS, YOUNG PEOPLE AND FAMILIES","	LEAVING CARE CITY 2",OTHER TRANSPORT ARRANGEMENTS,13/02/2023,10665035231,1.6,LONDON BOROUGH OF HILL
OXFORDSHIRE CC,"CHILDRENS, YOUNG PEOPLE AND FAMILIES",CHILDREN IN CARE NON-STAFFING - CENTRL 1,PAYMENTS TO TRANSPORT OPERATORS,13/02/2023,10665035235,72.95,TRAINLINE.COM
OXFORDSHIRE CC,"CHILDRENS, YOUNG PEOPLE AND FAMILIES",CHILDREN IN CARE NON-STAFFING - CENTRL 2,ENTERTAINMENT EXPENSES,13/02/2023,10665035243,54.99,WWW.ARGOS.CO.UK
OXFORDSHIRE CC,"CHILDRENS, YOUNG PEOPLE AND FAMILIES",CHILDREN IN CARE NON-STAFFING - CENTRL 1,ENTERTAINMENT EXPENSES,13/02/2023,10665035245,29.83,HOLLYWOOD BOWL
OXFORDSHIRE CC,SOCIAL AND COMMUNITY SERVICES,SCHOOLS FM CATERING AREA 2,CATERING PROVISIONS,13/02/2023,10665035251,6.85,SAINSBURYS S/MKTS
OXFORDSHIRE CC,SOCIAL AND COMMUNITY SERVICES,SCHOOLS FM CATERING AREA 2,CATERING PROVISIONS,13/02/2023,10665035253,13.85,SAINSBURYS S/MKTS
OXFORDSHIRE CC,"CHILDRENS, YOUNG PEOPLE AND FAMILIES","	LOOKED AFTER CITY 1",PAYMENTS TO TRANSPORT OPERATORS,13/02/2023,10665035255,45.74,TRAINLINE
OXFORDSHIRE CC,ENVIRONMENT AND ECONOMY,"	ROW MAINT",VEHICLE FUEL,13/02/2023,10665035259,90.01,BELLINGERS S.STN
OXFORDSHIRE CC,SOCIAL AND COMMUNITY SERVICES,CSS WITNEY,CATERING PROVISIONS,13/02/2023,10665035271,3.3,MARKS&SPENCER PLC SACA
OXFORDSHIRE CC,SOCIAL AND COMMUNITY SERVICES,CSS BICESTER,VEHICLE FUEL,13/02/2023,10665034655,16.99,JOBLINGS
OXFORDSHIRE CC,SOCIAL AND COMMUNITY SERVICES,CSS BICESTER,VEHICLES AND PLANT - REPAIRS AND MAIN,13/02/2023,10665034657,50,WAVES BICESTER
OXFORDSHIRE CC,"CHILDRENS, YOUNG PEOPLE AND FAMILIES","	MARLBOROUGH",MATERIALS,13/02/2023,10665035305,-17.99,AMZNMKTPLACE AMAZON.CO
OXFORDSHIRE CC,"CHILDRENS, YOUNG PEOPLE AND FAMILIES",FAMILY SOLUTIONS PLUS NON-STAFF � SOUTH,OTHER TRANSPORT ARRANGEMENTS,13/02/2023,10665035631,280,CENTRAL CARS
OXFORDSHIRE CC,"CHILDRENS, YOUNG PEOPLE AND FAMILIES",STH EARLY HELP-ABNDN,"BOOKS, DVDS AND CDS",13/02/2023,10665035635,12.99,AMAZON.CO.UK 1Q3NK1U44
OXFORDSHIRE CC,CORPORATE CORE,SCHOOLS FM CATERING AREA 1,CATERING PROVISIONS,13/02/2023,10665035639,12,TESCO-STORES 2305
OXFORDSHIRE CC,"CHILDRENS, YOUNG PEOPLE AND FAMILIES",DIDCOT MOVE-ON HOME,CLEANING MATERIALS,13/02/2023,10665035643,35.85,SAINSBURYS S/MKTS
OXFORDSHIRE CC,"CHILDRENS, YOUNG PEOPLE AND FAMILIES",DIDCOT MOVE-ON HOME,CATERING PROVISIONS,13/02/2023,10665035647,37.11,SAINSBURYS S/MKTS
OXFORDSHIRE CC,"CHILDRENS, YOUNG PEOPLE AND FAMILIES",DIDCOT MOVE-ON HOME,CATERING PROVISIONS,13/02/2023,10665035649,6.4,ASDA STORES 5123
OXFORDSHIRE CC,"CHILDRENS, YOUNG PEOPLE AND FAMILIES","	LEAVING CARE CITY 1",DRUGS AND MEDICAL SUPPLIES,13/02/2023,10665035019,23.33,BOOTS 6595
OXFORDSHIRE CC,"CHILDRENS, YOUNG PEOPLE AND FAMILIES","	LEAVING CARE CITY 1",MATERIALS,13/02/2023,10665035023,3.48,HOME BARGAINS
OXFORDSHIRE CC,"CHILDRENS, YOUNG PEOPLE AND FAMILIES","	LEAVING CARE CITY 1",CATERING,13/02/2023,10665035027,15.57,MCDONALDS
OXFORDSHIRE CC,"CHILDRENS, YOUNG PEOPLE AND FAMILIES",MEMBERS ALLOWANCES,MATERIALS,13/02/2023,10665035039,22.88,AMZNMKTPLACE
OXFORDSHIRE CC,"CHILDRENS, YOUNG PEOPLE AND FAMILIES",DIDCOT MOVE-ON HOME,CATERING,13/02/2023,10665035043,5.36,BOSWELLS
OXFORDSHIRE CC,"CHILDRENS, YOUNG PEOPLE AND FAMILIES",FSP NON-STAFFING - CENTRAL,HIRE OF ACCOMMODATION AND FACILITIES,13/02/2023,10665035657,246.63,PREMIER INN
OXFORDSHIRE CC,"CHILDRENS, YOUNG PEOPLE AND FAMILIES",UASC 16&17,OTHER EXPENSES,13/02/2023,10665035685,0.99,TESCO STORES 2064
OXFORDSHIRE CC,"CHILDRENS, YOUNG PEOPLE AND FAMILIES",UASC 16&17,OTHER EXPENSES,13/02/2023,10665035689,13,TESCO STORES 2064
OXFORDSHIRE CC,"CHILDRENS, YOUNG PEOPLE AND FAMILIES",KINGFISHER,CATERING,13/02/2023,10665035073,8.19,MCDONALDS
OXFORDSHIRE CC,"CHILDRENS, YOUNG PEOPLE AND FAMILIES",KINGFISHER,PAYMENTS TO TRANSPORT OPERATORS,13/02/2023,10665035063,36.27,TRAINLINE
OXFORDSHIRE CC,"CHILDRENS, YOUNG PEOPLE AND FAMILIES",KINGFISHER,MATERIALS,13/02/2023,10665035065,19,WITNEY INSIDE SAINSBUR
OXFORDSHIRE CC,"CHILDRENS, YOUNG PEOPLE AND FAMILIES",KINGFISHER,MATERIALS,13/02/2023,10665035069,10,WITNEY INSIDE SAINSBUR
OXFORDSHIRE CC,"CHILDRENS, YOUNG PEOPLE AND FAMILIES",KINGFISHER,PAYMENTS TO TRANSPORT OPERATORS,13/02/2023,10665035077,6,BICESTER VIL SSTP
OXFORDSHIRE CC,"CHILDRENS, YOUNG PEOPLE AND FAMILIES",THAME E&A HOME,DRUGS AND MEDICAL SUPPLIES,13/02/2023,10665035087,31.22,BOOTS UK ECOMM
OXFORDSHIRE CC,"CHILDRENS, YOUNG PEOPLE AND FAMILIES",FAMILY SOLUTIONS PLUS NON-STAFF - NORTH,CATERING PROVISIONS,13/02/2023,10665035097,15.15,SPAR
OXFORDSHIRE CC,"CHILDRENS, YOUNG PEOPLE AND FAMILIES",THAME E&A HOME,CATERING,13/02/2023,10665035101,22.23,BURGER KING
OXFORDSHIRE CC,"CHILDRENS, YOUNG PEOPLE AND FAMILIES",40 THE MOORS,OTHER EXPENSES,13/02/2023,10665035707,25,TESCO STORES 2788
OXFORDSHIRE CC,CORPORATE CORE,ICT OPERATIONS & MAI,PURCHASE OF IT EQUIPMENT,13/02/2023,10665035693,286.41,AMZNMKTPLACE
OXFORDSHIRE CC,"CHILDRENS, YOUNG PEOPLE AND FAMILIES",EYNSHAM,CATERING,13/02/2023,10665035701,136.2,OXY ORIENTAL
OXFORDSHIRE CC,"CHILDRENS, YOUNG PEOPLE AND FAMILIES",40 THE MOORS,CATERING PROVISIONS,13/02/2023,10665035711,1.22,TESCO STORES 2788
OXFORDSHIRE CC,"CHILDRENS, YOUNG PEOPLE AND FAMILIES",THAME E&A HOME,CATERING PROVISIONS,13/02/2023,10665035717,16.2,TESCO STORES 4480
OXFORDSHIRE CC,"CHILDRENS, YOUNG PEOPLE AND FAMILIES",THAME E&A HOME,CATERING PROVISIONS,13/02/2023,10665035719,10.25,SAINSBURYS SUPERMA
OXFORDSHIRE CC,ENTERPRISEVC,HOLDING CODE FOR REA,HARDWARE AND CROCKERY,13/02/2023,10665035721,10.02,SYDENHAMS LTD
OXFORDSHIRE CC,ENTERPRISEVC,HOLDING CODE FOR REA,HARDWARE AND CROCKERY,13/02/2023,10665035725,39.05,SCREWFIX DIR LTD
OXFORDSHIRE CC,"CHILDRENS, YOUNG PEOPLE AND FAMILIES",THAME E&A HOME,CATERING,13/02/2023,10665035107,8.17,MCDONALDS
OXFORDSHIRE CC,ENVIRONMENT AND ECONOMY,BICESTER LIBRARY,OTHER TRANSPORT ARRANGEMENTS,13/02/2023,10665035129,158.1,BICESTER POST OFFICE
OXFORDSHIRE CC,"CHILDRENS, YOUNG PEOPLE AND FAMILIES",THAME E&A HOME,TELEPHONE - EQUIPMENT,13/02/2023,10665035133,10,GIFFGAFF
OXFORDSHIRE CC,"CHILDRENS, YOUNG PEOPLE AND FAMILIES",THAME E&A HOME,CATERING,13/02/2023,10665035137,30,KASHMIRI KARAHI
OXFORDSHIRE CC,"CHILDRENS, YOUNG PEOPLE AND FAMILIES",WITNEY,CATERING PROVISIONS,13/02/2023,10665035143,127.37,WM MORRISONS STORE PIC
OXFORDSHIRE CC,"CHILDRENS, YOUNG PEOPLE AND FAMILIES","	LEAVING CARE CITY 2",CATERING PROVISIONS,13/02/2023,10665035741,13.95,WELCOME BREAK-OXFORD S
OXFORDSHIRE CC,"CHILDRENS, YOUNG PEOPLE AND FAMILIES","	LOOKED AFTER SOUTH",PROFESSIONAL SUBSCRIPTIONS,13/02/2023,10665035743,-11.89,ONTOPUP.COM
OXFORDSHIRE CC,CORPORATE CORE,"MARKETING, COMMUNICATIONS & ENGAGEMENT",IT SOFTWARE,13/02/2023,10665035487,677.26,MAILCHIMP
OXFORDSHIRE CC,"CHILDRENS, YOUNG PEOPLE AND FAMILIES",40 THE MOORS,OTHER EXPENSES,13/02/2023,10665035493,16.98,VUE ENTERTAINMENT LTD
OXFORDSHIRE CC,"CHILDRENS, YOUNG PEOPLE AND FAMILIES",40 THE MOORS,CATERING PROVISIONS,13/02/2023,10665035547,78.95,SAINSBURY'S S/MKT
OXFORDSHIRE CC,"CHILDRENS, YOUNG PEOPLE AND FAMILIES",KIDLINGTON LIBRARY,"NEWSPAPERS, PERIODICALS AND PUBLICATIONS",13/02/2023,10665035555,94.3,OXFORD HOUSE
OXFORDSHIRE CC,"CHILDRENS, YOUNG PEOPLE AND FAMILIES",KIDLINGTON LIBRARY,"NEWSPAPERS, PERIODICALS AND PUBLICATIONS",13/02/2023,10665035561,123.5,OXFORD HOUSE
OXFORDSHIRE CC,"CHILDRENS, YOUNG PEOPLE AND FAMILIES","	LEAVING CARE SOUTH",PAYMENTS TO TRANSPORT OPERATORS,13/02/2023,10665035565,56.75,TRAINLINE
OXFORDSHIRE CC,"CHILDRENS, YOUNG PEOPLE AND FAMILIES",EYNSHAM,CATERING PROVISIONS,13/02/2023,10665035569,223.94,TESCO STORES 2008
OXFORDSHIRE CC,"CHILDRENS, YOUNG PEOPLE AND FAMILIES",EYNSHAM,CATERING PROVISIONS,13/02/2023,10665035571,15,MAYFIELDEGGS
OXFORDSHIRE CC,"CHILDRENS, YOUNG PEOPLE AND FAMILIES",EYNSHAM,CATERING,13/02/2023,10665034945,51.2,WWW.SHAANWITNEY.CO.UK
OXFORDSHIRE CC,CORPORATE CORE,WANTAGE LIBRARY,MATERIALS,13/02/2023,10665034939,20.94,AMZNMKTPLACE
OXFORDSHIRE CC,"CHILDRENS, YOUNG PEOPLE AND FAMILIES",EYNSHAM,DRUGS AND MEDICAL SUPPLIES,13/02/2023,10665034949,27.62,SUPERDRUG STORES PLC
OXFORDSHIRE CC,CORPORATE CORE,,STATIONERY,13/02/2023,10665035605,151.23,LYRECO UK LTD
OXFORDSHIRE CC,"CHILDRENS, YOUNG PEOPLE AND FAMILIES",FAMILY SOLUTIONS PLUS NON-STAFF - NORTH,OTHER TRANSPORT ARRANGEMENTS,13/02/2023,10665035607,82.85,NATIONAL EXPRESS LIMIT
OXFORDSHIRE CC,"CHILDRENS, YOUNG PEOPLE AND FAMILIES","	LOOKED AFTER NORTH",CATERING PROVISIONS,13/02/2023,10665034987,100,ASDA STORES LTD
OXFORDSHIRE CC,"CHILDRENS, YOUNG PEOPLE AND FAMILIES","	OCCG GRANT",CATERING,13/02/2023,10665034975,4.95,SAINSBURYS S/MKTS
OXFORDSHIRE CC,"CHILDRENS, YOUNG PEOPLE AND FAMILIES","	LEAVING CARE CITY 1",MATERIALS,13/02/2023,10665035017,31.97,DECATHLON
OXFORDSHIRE CC,"CHILDRENS, YOUNG PEOPLE AND FAMILIES",FAMILY SOLUTIONS PLUS NON-STAFF � SOUTH,"BOOKS, DVDS AND CDS",13/02/2023,10665035627,17.58,AMAZON.CO.UK 1Q08E57Z4
OXFORDSHIRE CC,"CHILDRENS, YOUNG PEOPLE AND FAMILIES","	FPT CITY",POSTAGE AND DELIVERY,13/02/2023,10665035617,6.95,ROYAL MAIL GROUP LTD
OXFORDSHIRE CC,"CHILDRENS, YOUNG PEOPLE AND FAMILIES","	OCCG GRANT",CATERING PROVISIONS,13/02/2023,10665035625,7.95,CO-OPERATIVE FOOD
OXFORDSHIRE CC,"CHILDRENS, YOUNG PEOPLE AND FAMILIES",THAME E&A HOME,MATERIALS,13/02/2023,10665034781,10,AMAZON.CO.UK 1Q7YN6DO4
OXFORDSHIRE CC,"CHILDRENS, YOUNG PEOPLE AND FAMILIES",THAME E&A HOME,CATERING PROVISIONS,13/02/2023,10665034785,155.29,TESCO STORES 2038
OXFORDSHIRE CC,"CHILDRENS, YOUNG PEOPLE AND FAMILIES",THAME E&A HOME,MATERIALS,13/02/2023,10665034789,7.99,TESCO SUBSCRIPTION
OXFORDSHIRE CC,"CHILDRENS, YOUNG PEOPLE AND FAMILIES","	LOOKED AFTER CITY 2",VEHICLE FUEL,13/02/2023,10665035397,28.01,JOBLINGS
OXFORDSHIRE CC,SOCIAL AND COMMUNITY SERVICES,CSS WANTAGE,ENTERTAINMENT EXPENSES,13/02/2023,10665035417,9,WWW.BETTER.ORG.UK
OXFORDSHIRE CC,SOCIAL AND COMMUNITY SERVICES,CSS WANTAGE,PAYMENT TO GOVERNMENT DEPARTMENTS,13/02/2023,10665035419,10,OXFORDSHIRE CC MOTO1
OXFORDSHIRE CC,SOCIAL AND COMMUNITY SERVICES,CSS WANTAGE,ENTERTAINMENT EXPENSES,13/02/2023,10665035421,6.52,HOLLYWOOD BOWL
OXFORDSHIRE CC,"CHILDRENS, YOUNG PEOPLE AND FAMILIES",THAME E&A HOME,OTHER TRANSPORT ARRANGEMENTS,13/02/2023,10665034797,4.5,WESTGATE OXFORD CAR PA
OXFORDSHIRE CC,"CHILDRENS, YOUNG PEOPLE AND FAMILIES",THAME E&A HOME,MATERIALS,13/02/2023,10665034791,3,THEWORKS.CO.UK
OXFORDSHIRE CC,"CHILDRENS, YOUNG PEOPLE AND FAMILIES",THAME E&A HOME,OTHER EXPENSES,13/02/2023,10665034793,49.99,NINTENDO OF EUROPE GMB
OXFORDSHIRE CC,"CHILDRENS, YOUNG PEOPLE AND FAMILIES",THAME E&A HOME,MATERIALS,13/02/2023,10665034795,25,HOBBYCRAFT
OXFORDSHIRE CC,"CHILDRENS, YOUNG PEOPLE AND FAMILIES",THAME E&A HOME,CATERING,13/02/2023,10665034801,23.55,NEDS NOODLES
OXFORDSHIRE CC,"CHILDRENS, YOUNG PEOPLE AND FAMILIES",THAME E&A HOME,VEHICLE FUEL,13/02/2023,10665034805,14.93,ESSO BICESTER SERVICES
OXFORDSHIRE CC,ENVIRONMENT AND ECONOMY,WASTE REDUCTION GEN,"PUBLICITY, PROMOTIONS AND ADVERTISEMENT",13/02/2023,10665034811,1.5,FACEBK ADS
OXFORDSHIRE CC,ENVIRONMENT AND ECONOMY,WASTE REDUCTION GEN,"PUBLICITY, PROMOTIONS AND ADVERTISEMENT",13/02/2023,10665034813,0.13,FACEBK DU2RCLPND2
OXFORDSHIRE CC,ENVIRONMENT AND ECONOMY,WASTE REDUCTION GEN,"PUBLICITY, PROMOTIONS AND ADVERTISEMENT",13/02/2023,10665034817,0.08,FACEBK  Z3HW2MKPD2
OXFORDSHIRE CC,ENVIRONMENT AND ECONOMY,WASTE REDUCTION GEN,"PUBLICITY, PROMOTIONS AND ADVERTISEMENT",13/02/2023,10665034821,1.5,FACEBK  7RGW2MKPD2
OXFORDSHIRE CC,"CHILDRENS, YOUNG PEOPLE AND FAMILIES",WITNEY,CATERING,13/02/2023,10665035441,57,PEKING CHEF
OXFORDSHIRE CC,"CHILDRENS, YOUNG PEOPLE AND FAMILIES",40 THE MOORS,SUBSCRIPTIONS,13/02/2023,10665035457,47.1,HOLLYWOOD BOWL
OXFORDSHIRE CC,"CHILDRENS, YOUNG PEOPLE AND FAMILIES",40 THE MOORS,CLOTHING AND UNIFORMS,13/02/2023,10665035459,74.95,NEXT DIRECTORY
OXFORDSHIRE CC,"CHILDRENS, YOUNG PEOPLE AND FAMILIES",40 THE MOORS,ENTERTAINMENT EXPENSES,13/02/2023,10665035463,10,HOLLYWOOD BOWL
OXFORDSHIRE CC,ENVIRONMENT AND ECONOMY,THE RIDGEWAY,CATERING,13/02/2023,10665034825,3.8,QUEENS PARK ART CENTR
OXFORDSHIRE CC,SOCIAL AND COMMUNITY SERVICES,CSS - OXFORD,CATERING PROVISIONS,13/02/2023,10665034827,69.28,ALDI STORES 775-142
OXFORDSHIRE CC,SOCIAL AND COMMUNITY SERVICES,CSS - OXFORD,MATERIALS,13/02/2023,10665034831,39.05,ALDI STORES 775-142
OXFORDSHIRE CC,"CHILDRENS, YOUNG PEOPLE AND FAMILIES",40 THE MOORS,CATERING PROVISIONS,13/02/2023,10665035471,135.11,TESCO STORES 2994
OXFORDSHIRE CC,"CHILDRENS, YOUNG PEOPLE AND FAMILIES",40 THE MOORS,TELEPHONE - EQUIPMENT,13/02/2023,10665035465,20,THREE
OXFORDSHIRE CC,"CHILDRENS, YOUNG PEOPLE AND FAMILIES",40 THE MOORS,ENTERTAINMENT EXPENSES,13/02/2023,10665035467,15.25,HOLLYWOOD BOWL
